BIOGUIDE_ID,OFFICE,QUARTER,CATEGORY,DATE,PAYEE,START DATE,END DATE,PURPOSE,AMOUNT,YEAR,TRANSCODE,TRANSCODELONG,RECORDID,RECIP (orig.)
,OFFICE OF THE SPEAKER,2012Q2,PERSONNEL BENEFITS,04-16,HON. JOHN A. BOEHNER,04/01/12,04/30/12,OFFICIAL EXPENSES FOR LEADERS,"2,083.33",2012,AP,Accounts payable,00424805,HON. JOHN A. BOEHNER
,OFFICE OF THE SPEAKER,2012Q2,PERSONNEL BENEFITS,05-17,HON. JOHN A. BOEHNER,05/01/12,05/31/12,OFFICIAL EXPENSES FOR LEADERS,"2,083.33",2012,AP,Accounts payable,00447650,HON. JOHN A. BOEHNER
,OFFICE OF THE SPEAKER,2012Q2,PERSONNEL BENEFITS,06-15,HON. JOHN A. BOEHNER,06/01/12,06/30/12,OFFICIAL EXPENSES FOR LEADERS,"2,083.33",2012,AP,Accounts payable,00466740,HON. JOHN A. BOEHNER
,OFFICE OF THE SPEAKER,2012Q2,FRANKED MAIL,04-26,UNITED STATES POSTAL SERVICE,03/01/12,03/31/12,FRANKED MAIL,210.49,2012,AP,Accounts payable,00433153,UNITED STATES POSTAL SERVICE
,OFFICE OF THE SPEAKER,2012Q2,FRANKED MAIL,05-17,UNITED STATES POSTAL SERVICE,04/01/12,04/30/12,FRANKED MAIL,127.79,2012,AP,Accounts payable,00447400,UNITED STATES POSTAL SERVICE
,OFFICE OF THE SPEAKER,2012Q2,FRANKED MAIL,06-22,UNITED STATES POSTAL SERVICE,05/01/12,05/31/12,FRANKED MAIL,118.62,2012,AP,Accounts payable,00475713,UNITED STATES POSTAL SERVICE
,OFFICE OF THE SPEAKER,2012Q2,PERSONNEL COMPENSATION,"","ANDRES, ELIZABETH G",04/01/12,05/06/12,DIRECTOR OF ADVANCE,"5,201.39",2012,"","","","ANDRES, ELIZABETH G"
,OFFICE OF THE SPEAKER,2012Q2,PERSONNEL COMPENSATION,"","ANDREWS,THOMAS S",04/01/12,06/30/12,SENIOR STAFF ASSISTANT,"8,000.01",2012,"","","","ANDREWS,THOMAS S"
,OFFICE OF THE SPEAKER,2012Q2,PERSONNEL COMPENSATION,"","ANDREWS,THOMAS S",03/01/12,05/31/12,SENIOR STAFF ASSISTANT (OVERTIME),"1,603.83",2012,"","","","ANDREWS,THOMAS S"
,OFFICE OF THE SPEAKER,2012Q2,PERSONNEL COMPENSATION,"","AVONDOGLIO,BRYANT J",04/01/12,06/30/12,ADVANCE & DIGITAL PRODUC MGR,"20,000.01",2012,"","","","AVONDOGLIO,BRYANT J"
,OFFICE OF THE SPEAKER,2012Q2,PERSONNEL COMPENSATION,"","BECKER,ALEXANDER M",04/01/12,06/30/12,STAFF ASSISTANT,"6,999.99",2012,"","","","BECKER,ALEXANDER M"
,OFFICE OF THE SPEAKER,2012Q2,PERSONNEL COMPENSATION,"","BECKER,ALEXANDER M",03/01/12,05/31/12,STAFF ASSISTANT (OVERTIME),868.26,2012,"","","","BECKER,ALEXANDER M"
,OFFICE OF THE SPEAKER,2012Q2,PERSONNEL COMPENSATION,"","BELAIR, BRENDAN M",04/01/12,06/30/12,SHARED EMPLOYEE,"20,000.01",2012,"","","","BELAIR, BRENDAN M"
,OFFICE OF THE SPEAKER,2012Q2,PERSONNEL COMPENSATION,"","BENJAMIN, WILLIAM C",04/01/12,06/30/12,DIR OF INFORMATION TECHNOLOGY,"23,250.00",2012,"","","","BENJAMIN, WILLIAM C"
,OFFICE OF THE SPEAKER,2012Q2,PERSONNEL COMPENSATION,"","BLAKE,KRISTENE",04/01/12,04/30/12,EXECUTIVE ASSISTANT,"5,000.00",2012,"","","","BLAKE,KRISTENE"
,OFFICE OF THE SPEAKER,2012Q2,PERSONNEL COMPENSATION,"","BLAKE,KRISTENE",05/01/12,06/30/12,DIRECTOR OF SCHDLNG/EXEC ASST,"14,583.34",2012,"","","","BLAKE,KRISTENE"
,OFFICE OF THE SPEAKER,2012Q2,PERSONNEL COMPENSATION,"","BOYD,KATHRYN E",04/01/12,06/30/12,ASST COMMUNICATIONS DIRECTOR,"20,000.01",2012,"","","","BOYD,KATHRYN E"
,OFFICE OF THE SPEAKER,2012Q2,PERSONNEL COMPENSATION,"","BOZA-HOLMAN, SOFIA M",05/15/12,06/30/12,STAFF ASSISTANT,"3,577.77",2012,"","","","BOZA-HOLMAN, SOFIA M"
,OFFICE OF THE SPEAKER,2012Q2,PERSONNEL COMPENSATION,"","BUCK, BRENDAN K",04/01/12,06/30/12,PRESS SECRETARY,"28,749.99",2012,"","","","BUCK, BRENDAN K"
,OFFICE OF THE SPEAKER,2012Q2,PERSONNEL COMPENSATION,"","BUNKER,ANDREW R",06/04/12,06/30/12,STAFF ASSISTANT,"2,100.00",2012,"","","","BUNKER,ANDREW R"
,OFFICE OF THE SPEAKER,2012Q2,PERSONNEL COMPENSATION,"","CASSIDY, ED",04/01/12,06/30/12,DIRECTOR OF HOUSE OPERATIONS,"42,000.00",2012,"","","","CASSIDY, ED"
,OFFICE OF THE SPEAKER,2012Q2,PERSONNEL COMPENSATION,"","CATANZARO,MICHAEL J",04/01/12,06/30/12,ASST TO THE SPEAKER FOR POLICY,"42,000.00",2012,"","","","CATANZARO,MICHAEL J"
,OFFICE OF THE SPEAKER,2012Q2,PERSONNEL COMPENSATION,"","CHAPLIN, KRISTEN F",04/01/12,04/19/12,DIR OF SCHEDLNG & SPEC EVENTS,"5,145.83",2012,"","","","CHAPLIN, KRISTEN F"
,OFFICE OF THE SPEAKER,2012Q2,PERSONNEL COMPENSATION,"","DESTEFANO,JOHN",04/01/12,06/30/12,SR ADVISOR FOR MEMBER SERVICES,"41,250.00",2012,"","","","DESTEFANO,JOHN"
,OFFICE OF THE SPEAKER,2012Q2,PERSONNEL COMPENSATION,"","DEUTSCH,JEREMY",04/01/12,06/30/12,SHARED EMPLOYEE,"20,000.01",2012,"","","","DEUTSCH,JEREMY"
,OFFICE OF THE SPEAKER,2012Q2,PERSONNEL COMPENSATION,"","ECKARD,NASTASHA",04/01/12,06/30/12,LEGISLATIVE ASSISTANT,"12,999.99",2012,"","","","ECKARD,NASTASHA"
,OFFICE OF THE SPEAKER,2012Q2,PERSONNEL COMPENSATION,"","EICHHORN, JARED D",04/01/12,06/30/12,FLOOR ASSISTANT,"12,000.00",2012,"","","","EICHHORN, JARED D"
,OFFICE OF THE SPEAKER,2012Q2,PERSONNEL COMPENSATION,"","FINNEGAN,PATRICK",04/01/12,04/30/12,HOUSE OPERATIONS ASSISTANT,"3,583.33",2012,"","","","FINNEGAN,PATRICK"
,OFFICE OF THE SPEAKER,2012Q2,PERSONNEL COMPENSATION,"","FINNEGAN,PATRICK",05/01/12,06/30/12,SPECIAL ASSISTANT TO THE SPEAK,"7,166.66",2012,"","","","FINNEGAN,PATRICK"
,OFFICE OF THE SPEAKER,2012Q2,PERSONNEL COMPENSATION,"","GILLESPIE,MAURA M",04/01/12,04/30/12,STAFF ASSISTANT,"2,333.33",2012,"","","","GILLESPIE,MAURA M"
,OFFICE OF THE SPEAKER,2012Q2,PERSONNEL COMPENSATION,"","GILLESPIE,MAURA M",05/01/12,06/30/12,SCHEDULING ASSISTANT,"6,666.66",2012,"","","","GILLESPIE,MAURA M"
,OFFICE OF THE SPEAKER,2012Q2,PERSONNEL COMPENSATION,"","GILLESPIE,MAURA M",03/01/12,04/30/12,STAFF ASSISTANT (OVERTIME),"1,332.68",2012,"","","","GILLESPIE,MAURA M"
,OFFICE OF THE SPEAKER,2012Q2,PERSONNEL COMPENSATION,"","GILLESPIE,MAURA M",05/01/12,05/31/12,SCHEDULING ASSISTANT (OVERTIME),634.61,2012,"","","","GILLESPIE,MAURA M"
,OFFICE OF THE SPEAKER,2012Q2,PERSONNEL COMPENSATION,"","GREEN, JO-MARIE S",04/01/12,06/30/12,GEN COUNSEL & CHIEF OF LEG OPS,"42,999.99",2012,"","","","GREEN, JO-MARIE S"
,OFFICE OF THE SPEAKER,2012Q2,PERSONNEL COMPENSATION,"","GREENE,WILLIAM P",04/01/12,06/30/12,DIRECTOR-OUTREACH,"33,825.00",2012,"","","","GREENE,WILLIAM P"
,OFFICE OF THE SPEAKER,2012Q2,PERSONNEL COMPENSATION,"","HALEY, KATHERINE C",04/01/12,06/30/12,ASST TO SPEAKER FOR POLICY,"22,125.00",2012,"","","","HALEY, KATHERINE C"
,OFFICE OF THE SPEAKER,2012Q2,PERSONNEL COMPENSATION,"","HARROUN, TIMOTHY J",04/01/12,06/30/12,MANAGER REPUBLICAN CLOAKROOM,"33,287.49",2012,"","","","HARROUN, TIMOTHY J"
,OFFICE OF THE SPEAKER,2012Q2,PERSONNEL COMPENSATION,"","HERRLE, CYNTHIA A",04/01/12,06/30/12,ASST TO THE SPEAKER FOR POLICY,"35,550.00",2012,"","","","HERRLE, CYNTHIA A"
,OFFICE OF THE SPEAKER,2012Q2,PERSONNEL COMPENSATION,"","HUTCHESON,NATHANIEL J",04/01/12,06/30/12,FLOOR ASSISTANT,"9,999.99",2012,"","","","HUTCHESON,NATHANIEL J"
,OFFICE OF THE SPEAKER,2012Q2,PERSONNEL COMPENSATION,"","JACKSON,BARRY S",04/01/12,06/30/12,CHIEF OF STAFF,"43,125.00",2012,"","","","JACKSON,BARRY S"
,OFFICE OF THE SPEAKER,2012Q2,PERSONNEL COMPENSATION,"","KAMIS,KYLA M",04/01/12,04/30/12,SPEC EVENTS & SCH ASSISTANT,"3,333.33",2012,"","","","KAMIS,KYLA M"
,OFFICE OF THE SPEAKER,2012Q2,PERSONNEL COMPENSATION,"","KAMIS,KYLA M",05/01/12,05/31/12,SPECIAL EVENTS COORDINATOR,"3,750.00",2012,"","","","KAMIS,KYLA M"
,OFFICE OF THE SPEAKER,2012Q2,PERSONNEL COMPENSATION,"","KAMIS,KYLA M",06/01/12,06/30/12,DIRECTOR OF SPECIAL EVENTS,"4,583.33",2012,"","","","KAMIS,KYLA M"
,OFFICE OF THE SPEAKER,2012Q2,PERSONNEL COMPENSATION,"","KINZEL,WILL C",04/01/12,06/30/12,ASST TO THE SPEAKER FOR POLICY,"28,599.99",2012,"","","","KINZEL,WILL C"
,OFFICE OF THE SPEAKER,2012Q2,PERSONNEL COMPENSATION,"","KOLEGO, TREVOR W",04/01/12,06/30/12,DEPUTY DIR MEMBERS SERVICES,"32,499.99",2012,"","","","KOLEGO, TREVOR W"
,OFFICE OF THE SPEAKER,2012Q2,PERSONNEL COMPENSATION,"","LAMPERT,JUSTIN",04/01/12,06/30/12,RESEARCH ASSISTANT,"11,250.00",2012,"","","","LAMPERT,JUSTIN"
,OFFICE OF THE SPEAKER,2012Q2,PERSONNEL COMPENSATION,"","LOLLI,TIMOTHY R",04/01/12,06/30/12,STAFF ASSISTANT,"5,250.00",2012,"","","","LOLLI,TIMOTHY R"
,OFFICE OF THE SPEAKER,2012Q2,PERSONNEL COMPENSATION,"","LOLLI,TIMOTHY R",03/01/12,05/31/12,STAFF ASSISTANT (OVERTIME),838.33,2012,"","","","LOLLI,TIMOTHY R"
,OFFICE OF THE SPEAKER,2012Q2,PERSONNEL COMPENSATION,"","LOLLI,TIMOTHY R",06/01/12,06/30/12,STAFF ASSISTANT (OTHER COMPENSATION),"1,041.67",2012,"","","","LOLLI,TIMOTHY R"
,OFFICE OF THE SPEAKER,2012Q2,PERSONNEL COMPENSATION,"","LOPER,BRETT S",04/01/12,06/30/12,POLICY DIRECTOR,"42,999.99",2012,"","","","LOPER,BRETT S"
,OFFICE OF THE SPEAKER,2012Q2,PERSONNEL COMPENSATION,"","LOZUPONE, AMY S",04/01/12,06/30/12,DIRECTOR OF ADMIN OPERATIONS,"35,750.01",2012,"","","","LOZUPONE, AMY S"
,OFFICE OF THE SPEAKER,2012Q2,PERSONNEL COMPENSATION,"","LUKEMAN,KATHERINE A",04/01/12,06/30/12,ASSOCIATE COUNSEL,"12,999.99",2012,"","","","LUKEMAN,KATHERINE A"
,OFFICE OF THE SPEAKER,2012Q2,PERSONNEL COMPENSATION,"","MACDONALD, B",04/01/12,06/30/12,SHARED EMPLOYEE,"20,000.01",2012,"","","","MACDONALD, B"
,OFFICE OF THE SPEAKER,2012Q2,PERSONNEL COMPENSATION,"","MINKLER,ANN W",04/01/12,06/30/12,FLOOR ASSISTANT,"8,250.00",2012,"","","","MINKLER,ANN W"
,OFFICE OF THE SPEAKER,2012Q2,PERSONNEL COMPENSATION,"","MINKLER,ANN W",03/01/12,03/31/12,FLOOR ASSISTANT (OVERTIME),547.35,2012,"","","","MINKLER,ANN W"
,OFFICE OF THE SPEAKER,2012Q2,PERSONNEL COMPENSATION,"","PIERSON, JAY",04/01/12,06/30/12,FLOOR ASSISTANT,"42,099.99",2012,"","","","PIERSON, JAY"
,OFFICE OF THE SPEAKER,2012Q2,PERSONNEL COMPENSATION,"","PORTER, EMILY S",04/01/12,06/30/12,ASST TO THE SPEAKER FOR POLICY,"27,500.01",2012,"","","","PORTER, EMILY S"
,OFFICE OF THE SPEAKER,2012Q2,PERSONNEL COMPENSATION,"","PROPP,ELIZABETH R",04/01/12,06/30/12,DEPUTY PRESS SECRETARY,"14,250.00",2012,"","","","PROPP,ELIZABETH R"
,OFFICE OF THE SPEAKER,2012Q2,PERSONNEL COMPENSATION,"","REED, HEATHER E",04/01/12,06/30/12,ASSISTANT PRESS SECRETARY,"11,250.00",2012,"","","","REED, HEATHER E"
,OFFICE OF THE SPEAKER,2012Q2,PERSONNEL COMPENSATION,"","REED, MARY K",04/01/12,06/30/12,SHARED EMPLOYEE,"8,124.99",2012,"","","","REED, MARY K"
,OFFICE OF THE SPEAKER,2012Q2,PERSONNEL COMPENSATION,"","RICCI,MICHAEL",04/01/12,06/30/12,DIRECTOR OF SPEECHWRITING,"31,500.00",2012,"","","","RICCI,MICHAEL"
,OFFICE OF THE SPEAKER,2012Q2,PERSONNEL COMPENSATION,"","ROGERS, GEORGE R",04/01/12,06/30/12,ASST TO THE SPEAKER FOR POLICY,"37,500.00",2012,"","","","ROGERS, GEORGE R"
,OFFICE OF THE SPEAKER,2012Q2,PERSONNEL COMPENSATION,"","SAGER,MICHAEL J",04/01/12,06/30/12,SYSTEMS ADMINISTRATOR,"20,000.01",2012,"","","","SAGER,MICHAEL J"
,OFFICE OF THE SPEAKER,2012Q2,PERSONNEL COMPENSATION,"","SCHNITTGER, DAVID M",04/01/12,06/30/12,"DEP CHIEF OF STAFF,COMMUN OPS","43,125.00",2012,"","","","SCHNITTGER, DAVID M"
,OFFICE OF THE SPEAKER,2012Q2,PERSONNEL COMPENSATION,"","SEYMOUR JR, DONALD P",04/01/12,06/30/12,DIGITAL COMMUNICATIONS DIRECTO,"32,750.01",2012,"","","","SEYMOUR JR, DONALD P"
,OFFICE OF THE SPEAKER,2012Q2,PERSONNEL COMPENSATION,"","SKRZYCKI, KRISTIN S",04/01/12,06/30/12,SHARED EMPLOYEE,"20,000.01",2012,"","","","SKRZYCKI, KRISTIN S"
,OFFICE OF THE SPEAKER,2012Q2,PERSONNEL COMPENSATION,"","SMITH, KEVIN",04/01/12,06/30/12,DIRECTOR OF COMMUNICATIONS,"38,874.99",2012,"","","","SMITH, KEVIN"
,OFFICE OF THE SPEAKER,2012Q2,PERSONNEL COMPENSATION,"","SOMMERS, MICHAEL J",04/01/12,06/30/12,DEP CHIEF OF STAF FOR LEAD OPS,"43,125.00",2012,"","","","SOMMERS, MICHAEL J"
,OFFICE OF THE SPEAKER,2012Q2,PERSONNEL COMPENSATION,"","STEEL, MICHAEL",04/01/12,06/30/12,PRESS SECRETARY,"33,125.01",2012,"","","","STEEL, MICHAEL"
,OFFICE OF THE SPEAKER,2012Q2,PERSONNEL COMPENSATION,"","STEWART, DAVID B",04/01/12,06/30/12,ASST TO SPEAKER FOR POLICY,"23,187.51",2012,"","","","STEWART, DAVID B"
,OFFICE OF THE SPEAKER,2012Q2,PERSONNEL COMPENSATION,"","STEWART, JENNIFER M",04/01/12,06/30/12,ASST TO SPEAKER FOR POLICY,"27,500.01",2012,"","","","STEWART, JENNIFER M"
,OFFICE OF THE SPEAKER,2012Q2,PERSONNEL COMPENSATION,"","STOCKWELL,KERRY W",04/01/12,04/30/12,SPECIAL EVENTS COORDINATOR,"4,583.33",2012,"","","","STOCKWELL,KERRY W"
,OFFICE OF THE SPEAKER,2012Q2,PERSONNEL COMPENSATION,"","STOCKWELL,KERRY W",05/01/12,06/30/12,DIRECTOR OF SPECIAL EVENTS,"7,388.89",2012,"","","","STOCKWELL,KERRY W"
,OFFICE OF THE SPEAKER,2012Q2,PERSONNEL COMPENSATION,"","STOCKWELL,KERRY W",06/01/12,06/30/12,DIRECTOR OF SPECIAL EVENTS (OTHER COMPENSATION),"1,361.11",2012,"","","","STOCKWELL,KERRY W"
,OFFICE OF THE SPEAKER,2012Q2,PERSONNEL COMPENSATION,"","STRUNK, JEFFREY A",04/01/12,06/30/12,DEPUTY FLOOR DIRECTOR,"18,750.00",2012,"","","","STRUNK, JEFFREY A"
,OFFICE OF THE SPEAKER,2012Q2,PERSONNEL COMPENSATION,"","THORSEN, ANNE B",04/01/12,06/30/12,FLOOR DIRECTOR,"35,000.01",2012,"","","","THORSEN, ANNE B"
,OFFICE OF THE SPEAKER,2012Q2,PERSONNEL COMPENSATION,"","WOLF,ADAM J",04/01/12,06/30/12,SHARED EMPLOYEE,"12,500.01",2012,"","","","WOLF,ADAM J"
,OFFICE OF THE SPEAKER,2012Q2,TRAVEL,04-11,"AVONDOGLIO, BRYANT J",03/22/12,03/25/12,COMMERCIAL TRANSPORTATION,"1,128.10",2012,AP,Accounts payable,00420013,"AVONDOGLIO, BRYANT J"
,OFFICE OF THE SPEAKER,2012Q2,TRAVEL,04-11,"AVONDOGLIO, BRYANT J",03/22/12,03/25/12,LODGING,309.81,2012,AP,Accounts payable,00420030,"AVONDOGLIO, BRYANT J"
,OFFICE OF THE SPEAKER,2012Q2,TRAVEL,04-11,"AVONDOGLIO, BRYANT J",03/22/12,03/25/12,COMMERCIAL TRANSPORTATION,85.00,2012,AP,Accounts payable,00420039,"AVONDOGLIO, BRYANT J"
,OFFICE OF THE SPEAKER,2012Q2,TRAVEL,04-11,"AVONDOGLIO, BRYANT J",03/25/12,03/25/12,TAXI/PARKING/TOLLS,15.00,2012,AP,Accounts payable,00420051,"AVONDOGLIO, BRYANT J"
,OFFICE OF THE SPEAKER,2012Q2,TRAVEL,04-11,"AVONDOGLIO, BRYANT J",03/23/12,03/25/12,MEALS,18.32,2012,AP,Accounts payable,00420056,"AVONDOGLIO, BRYANT J"
,OFFICE OF THE SPEAKER,2012Q2,TRAVEL,04-12,"ECKARD,NASTASHA",03/23/12,03/23/12,MEALS,28.38,2012,AP,Accounts payable,00421682,"ECKARD,NASTASHA"
,OFFICE OF THE SPEAKER,2012Q2,TRAVEL,04-12,"ECKARD,NASTASHA",03/23/12,03/24/12,CAR RENTAL,41.64,2012,AP,Accounts payable,00421685,"ECKARD,NASTASHA"
,OFFICE OF THE SPEAKER,2012Q2,TRAVEL,04-12,"ECKARD,NASTASHA",03/24/12,03/24/12,GASOLINE,10.07,2012,AP,Accounts payable,00421687,"ECKARD,NASTASHA"
,OFFICE OF THE SPEAKER,2012Q2,TRAVEL,04-12,"ECKARD,NASTASHA",03/24/12,03/24/12,LODGING,78.93,2012,AP,Accounts payable,00421691,"ECKARD,NASTASHA"
,OFFICE OF THE SPEAKER,2012Q2,TRAVEL,04-25,"ROGERS, GEORGE",04/11/12,04/13/12,TAXI/PARKING/TOLLS,106.38,2012,AP,Accounts payable,00428660,"ROGERS, GEORGE"
,OFFICE OF THE SPEAKER,2012Q2,TRAVEL,04-25,"ROGERS, GEORGE",04/11/12,04/11/12,COMMERCIAL TRANSPORTATION,422.00,2012,AP,Accounts payable,00433091,"ROGERS, GEORGE"
,OFFICE OF THE SPEAKER,2012Q2,TRAVEL,04-25,"ROGERS, GEORGE",04/11/12,04/14/12,LODGING,560.10,2012,AP,Accounts payable,00433105,"ROGERS, GEORGE"
,OFFICE OF THE SPEAKER,2012Q2,TRAVEL,04-25,"ROGERS, GEORGE",04/14/12,04/14/12,MEALS,21.23,2012,AP,Accounts payable,00433119,"ROGERS, GEORGE"
,OFFICE OF THE SPEAKER,2012Q2,TRAVEL,04-30,"JACKSON,BARRY S",02/23/12,03/06/12,TAXI/PARKING/TOLLS,70.00,2012,AP,Accounts payable,00435707,"JACKSON,BARRY S"
,OFFICE OF THE SPEAKER,2012Q2,TRAVEL,04-30,"SOMMERS,MICHAEL",01/11/12,01/19/12,TAXI/PARKING/TOLLS,28.00,2012,AP,Accounts payable,00435708,"SOMMERS,MICHAEL"
,OFFICE OF THE SPEAKER,2012Q2,TRAVEL,04-30,"SOMMERS,MICHAEL",01/19/12,01/20/12,TAXI/PARKING/TOLLS,80.00,2012,AP,Accounts payable,00435714,"SOMMERS,MICHAEL"
,OFFICE OF THE SPEAKER,2012Q2,TRAVEL,05-07,"GREEN, JO-MARIE S",04/27/12,04/27/12,TAXI/PARKING/TOLLS,33.00,2012,AP,Accounts payable,00439542,"GREEN, JO-MARIE S"
,OFFICE OF THE SPEAKER,2012Q2,"RENT, COMMUNICATION, UTILITIES",04-12,"LOZUPONE, AMY S",04/02/12,04/02/12,POSTAGE / COURIER / BOX RENTAL,12.02,2012,AP,Accounts payable,00420422,"LOZUPONE, AMY S"
,OFFICE OF THE SPEAKER,2012Q2,"RENT, COMMUNICATION, UTILITIES",04-18,CITIBANK P CARD,02/29/12,03/28/12,UTILITIES,213.51,2012,AP,Accounts payable,00428265,CITIBANK P CARD
,OFFICE OF THE SPEAKER,2012Q2,"RENT, COMMUNICATION, UTILITIES",04-24,FEDERAL EXPRESS,01/23/12,01/23/12,POSTAGE / COURIER / BOX RENTAL,5.65,2012,AP,Accounts payable,00431635,FEDERAL EXPRESS
,OFFICE OF THE SPEAKER,2012Q2,PRINTING AND REPRODUCTION,04-26,"",04/01/12,04/30/12,PHOTOGRAPHIC (TRANSFER),220.60,2012,GL,General ledger,PIX0018701,""
,OFFICE OF THE SPEAKER,2012Q2,PRINTING AND REPRODUCTION,05-18,CITIBANK P CARD,03/29/12,04/28/12,PRINTING & REPRODUCTION,180.00,2012,AP,Accounts payable,00449702,CITIBANK P CARD
,OFFICE OF THE SPEAKER,2012Q2,PRINTING AND REPRODUCTION,05-24,CITIBANK P CARD,03/29/12,04/28/12,PRINTING & REPRODUCTION,-180.00,2012,AP,Accounts payable,00455252,CITIBANK P CARD
,OFFICE OF THE SPEAKER,2012Q2,PRINTING AND REPRODUCTION,05-25,"",05/01/12,05/31/12,PHOTOGRAPHIC (TRANSFER),792.90,2012,GL,General ledger,PIX0019569,""
,OFFICE OF THE SPEAKER,2012Q2,PRINTING AND REPRODUCTION,06-29,"",06/01/12,06/30/12,PHOTOGRAPHIC (TRANSFER),102.00,2012,GL,General ledger,PIX0020428,""
,OFFICE OF THE SPEAKER,2012Q2,OTHER SERVICES,04-26,FIRESIDE21,03/01/12,03/31/12,"WEB DEV HST,EMAIL & RLTD SERV",700.00,2012,AP,Accounts payable,00433239,FIRESIDE21
,OFFICE OF THE SPEAKER,2012Q2,OTHER SERVICES,05-24,FIRESIDE21,03/01/12,03/31/12,"WEB DEV HST,EMAIL & RLTD SERV",-700.00,2012,AP,Accounts payable,00454849,FIRESIDE21
,OFFICE OF THE SPEAKER,2012Q2,SUPPLIES AND MATERIALS,04-02,COCA-COLA ENTERPRISES,03/27/12,03/27/12,FOOD & BEVERAGE,136.80,2012,AP,Accounts payable,00414897,COCA-COLA ENTERPRISES
,OFFICE OF THE SPEAKER,2012Q2,SUPPLIES AND MATERIALS,04-11,JOE RAGAN'S COFFEE LTD,03/01/12,03/01/12,FOOD & BEVERAGE,420.73,2012,AP,Accounts payable,00419963,JOE RAGAN'S COFFEE LTD
,OFFICE OF THE SPEAKER,2012Q2,SUPPLIES AND MATERIALS,04-11,JOE RAGAN'S COFFEE LTD,03/08/12,03/08/12,FOOD & BEVERAGE,486.02,2012,AP,Accounts payable,00419969,JOE RAGAN'S COFFEE LTD
,OFFICE OF THE SPEAKER,2012Q2,SUPPLIES AND MATERIALS,04-11,JOE RAGAN'S COFFEE LTD,03/15/12,03/15/12,FOOD & BEVERAGE,328.35,2012,AP,Accounts payable,00419972,JOE RAGAN'S COFFEE LTD
,OFFICE OF THE SPEAKER,2012Q2,SUPPLIES AND MATERIALS,04-11,JOE RAGAN'S COFFEE LTD,03/22/12,03/22/12,FOOD & BEVERAGE,554.79,2012,AP,Accounts payable,00419977,JOE RAGAN'S COFFEE LTD
,OFFICE OF THE SPEAKER,2012Q2,SUPPLIES AND MATERIALS,04-11,JOE RAGAN'S COFFEE LTD,03/29/12,03/29/12,FOOD & BEVERAGE,509.22,2012,AP,Accounts payable,00419980,JOE RAGAN'S COFFEE LTD
,OFFICE OF THE SPEAKER,2012Q2,SUPPLIES AND MATERIALS,04-11,HAGUE QUALITY WATER OF MD INC,04/04/12,04/04/12,WATER,189.00,2012,AP,Accounts payable,00419998,HAGUE QUALITY WATER OF MD INC
,OFFICE OF THE SPEAKER,2012Q2,SUPPLIES AND MATERIALS,04-18,CITIBANK P CARD,02/29/12,03/28/12,FOOD & BEVERAGE,"1,520.66",2012,AP,Accounts payable,00428265,CITIBANK P CARD
,OFFICE OF THE SPEAKER,2012Q2,SUPPLIES AND MATERIALS,04-18,CITIBANK P CARD,02/29/12,03/28/12,HABITATION EXPENSE,200.00,2012,AP,Accounts payable,00428265,CITIBANK P CARD
,OFFICE OF THE SPEAKER,2012Q2,SUPPLIES AND MATERIALS,04-18,CITIBANK P CARD,02/29/12,03/28/12,PUBLICATIONS/REFERENCE MAT'L,219.93,2012,AP,Accounts payable,00428265,CITIBANK P CARD
,OFFICE OF THE SPEAKER,2012Q2,SUPPLIES AND MATERIALS,04-30,COCA-COLA ENTERPRISES,04/24/12,04/24/12,FOOD & BEVERAGE,211.04,2012,AP,Accounts payable,00435703,COCA-COLA ENTERPRISES
,OFFICE OF THE SPEAKER,2012Q2,SUPPLIES AND MATERIALS,04-30,"REED, MARY K",04/25/12,04/25/12,OFFICE SUPPLIES (OUTSIDE),14.28,2012,AP,Accounts payable,00435705,"REED, MARY K"
,OFFICE OF THE SPEAKER,2012Q2,SUPPLIES AND MATERIALS,05-07,COCA-COLA ENTERPRISES,05/01/12,05/01/12,FOOD & BEVERAGE,154.56,2012,AP,Accounts payable,00439546,COCA-COLA ENTERPRISES
,OFFICE OF THE SPEAKER,2012Q2,SUPPLIES AND MATERIALS,05-16,JOE RAGAN'S COFFEE LTD,04/05/12,04/05/12,FOOD & BEVERAGE,548.31,2012,AP,Accounts payable,00445302,JOE RAGAN'S COFFEE LTD
,OFFICE OF THE SPEAKER,2012Q2,SUPPLIES AND MATERIALS,05-16,JOE RAGAN'S COFFEE LTD,04/16/12,04/16/12,FOOD & BEVERAGE,354.74,2012,AP,Accounts payable,00445304,JOE RAGAN'S COFFEE LTD
,OFFICE OF THE SPEAKER,2012Q2,SUPPLIES AND MATERIALS,05-16,HAGUE QUALITY WATER OF MD INC,05/04/12,05/04/12,WATER,252.00,2012,AP,Accounts payable,00445314,HAGUE QUALITY WATER OF MD INC
,OFFICE OF THE SPEAKER,2012Q2,SUPPLIES AND MATERIALS,05-16,DESIGN CUISINE,03/28/12,03/28/12,FOOD & BEVERAGE,"3,882.58",2012,AP,Accounts payable,00445315,DESIGN CUISINE
,OFFICE OF THE SPEAKER,2012Q2,SUPPLIES AND MATERIALS,05-16,DESIGN CUISINE,02/29/12,02/29/12,FOOD & BEVERAGE,"3,538.00",2012,AP,Accounts payable,00445318,DESIGN CUISINE
,OFFICE OF THE SPEAKER,2012Q2,SUPPLIES AND MATERIALS,05-17,JOE RAGAN'S COFFEE LTD,04/23/12,04/23/12,FOOD & BEVERAGE,450.96,2012,AP,Accounts payable,00447371,JOE RAGAN'S COFFEE LTD
,OFFICE OF THE SPEAKER,2012Q2,SUPPLIES AND MATERIALS,05-18,CITIBANK P CARD,03/29/12,04/28/12,FOOD & BEVERAGE,"2,639.10",2012,AP,Accounts payable,00449702,CITIBANK P CARD
,OFFICE OF THE SPEAKER,2012Q2,SUPPLIES AND MATERIALS,06-07,COCA-COLA REFRESHMENTS,05/29/12,05/29/12,FOOD & BEVERAGE,219.12,2012,AP,Accounts payable,00462108,COCA-COLA REFRESHMENTS
,OFFICE OF THE SPEAKER,2012Q2,SUPPLIES AND MATERIALS,06-12,JOE RAGAN'S COFFEE LTD,05/03/12,05/03/12,FOOD & BEVERAGE,589.44,2012,AP,Accounts payable,00464752,JOE RAGAN'S COFFEE LTD
,OFFICE OF THE SPEAKER,2012Q2,SUPPLIES AND MATERIALS,06-12,JOE RAGAN'S COFFEE LTD,05/10/12,05/10/12,FOOD & BEVERAGE,455.62,2012,AP,Accounts payable,00464754,JOE RAGAN'S COFFEE LTD
,OFFICE OF THE SPEAKER,2012Q2,SUPPLIES AND MATERIALS,06-12,JOE RAGAN'S COFFEE LTD,05/17/12,05/17/12,FOOD & BEVERAGE,424.56,2012,AP,Accounts payable,00464758,JOE RAGAN'S COFFEE LTD
,OFFICE OF THE SPEAKER,2012Q2,SUPPLIES AND MATERIALS,06-12,JOE RAGAN'S COFFEE LTD,05/24/12,05/24/12,FOOD & BEVERAGE,619.77,2012,AP,Accounts payable,00464760,JOE RAGAN'S COFFEE LTD
,OFFICE OF THE SPEAKER,2012Q2,SUPPLIES AND MATERIALS,06-12,JOE RAGAN'S COFFEE LTD,05/30/12,05/30/12,FOOD & BEVERAGE,320.79,2012,AP,Accounts payable,00464762,JOE RAGAN'S COFFEE LTD
,OFFICE OF THE SPEAKER,2012Q2,SUPPLIES AND MATERIALS,06-12,COCA-COLA REFRESHMENTS,06/05/12,06/05/12,FOOD & BEVERAGE,121.44,2012,AP,Accounts payable,00464766,COCA-COLA REFRESHMENTS
,OFFICE OF THE SPEAKER,2012Q2,SUPPLIES AND MATERIALS,06-12,"LEADERSHIP DIRECTORIES, INC",07/01/12,01/01/13,PUBLICATIONS/REFERENCE MAT'L,399.00,2012,AP,Accounts payable,00464768,"LEADERSHIP DIRECTORIES, INC"
,OFFICE OF THE SPEAKER,2012Q2,SUPPLIES AND MATERIALS,06-12,HAGUE QUALITY WATER OF MD INC,06/04/12,06/04/12,WATER,252.00,2012,AP,Accounts payable,00464771,HAGUE QUALITY WATER OF MD INC
,OFFICE OF THE SPEAKER,2012Q2,SUPPLIES AND MATERIALS,06-20,CITIBANK P CARD,04/29/12,05/28/12,FOOD & BEVERAGE,"2,022.54",2012,AP,Accounts payable,00474159,CITIBANK P CARD
,OFFICE OF THE SPEAKER,2012Q2,SUPPLIES AND MATERIALS,06-20,CITIBANK P CARD,04/29/12,05/28/12,HABITATION EXPENSE,126.50,2012,AP,Accounts payable,00474159,CITIBANK P CARD
,OFFICE OF THE SPEAKER,2012Q2,SUPPLIES AND MATERIALS,06-25,COCA-COLA REFRESHMENTS,06/19/12,06/19/12,FOOD & BEVERAGE,143.52,2012,AP,Accounts payable,00475975,COCA-COLA REFRESHMENTS
,OFFICE OF THE MAJORITY LEADER,2012Q2,FRANKED MAIL,04-26,UNITED STATES POSTAL SERVICE,03/01/12,03/31/12,FRANKED MAIL,32.87,2012,AP,Accounts payable,00433153,UNITED STATES POSTAL SERVICE
,OFFICE OF THE MAJORITY LEADER,2012Q2,FRANKED MAIL,05-17,UNITED STATES POSTAL SERVICE,04/01/12,04/30/12,FRANKED MAIL,11.93,2012,AP,Accounts payable,00447400,UNITED STATES POSTAL SERVICE
,OFFICE OF THE MAJORITY LEADER,2012Q2,PERSONNEL COMPENSATION,"","BARRERA,AMY D",04/01/12,06/30/12,DIRECTOR OF ADMINISTRATION,"3,750.00",2012,"","","","BARRERA,AMY D"
,OFFICE OF THE MAJORITY LEADER,2012Q2,PERSONNEL COMPENSATION,"","BRADLEY, NEIL L",04/01/12,06/30/12,DEPUTY CHEIF OF STAFF,"43,125.00",2012,"","","","BRADLEY, NEIL L"
,OFFICE OF THE MAJORITY LEADER,2012Q2,PERSONNEL COMPENSATION,"","BRAVO, MATTHEW",04/01/12,06/30/12,FLOOR ASSISTANT/SPECIAL ASSIST,"11,250.00",2012,"","","","BRAVO, MATTHEW"
,OFFICE OF THE MAJORITY LEADER,2012Q2,PERSONNEL COMPENSATION,"","CHRISTENSEN, AUTUMN",04/01/12,06/30/12,SHARED EMPLOYEE,"3,000.00",2012,"","","","CHRISTENSEN, AUTUMN"
,OFFICE OF THE MAJORITY LEADER,2012Q2,PERSONNEL COMPENSATION,"","CUMMINGS,TIMOTHY P",04/01/12,06/30/12,STAFF ASSISTANT,"6,000.00",2012,"","","","CUMMINGS,TIMOTHY P"
,OFFICE OF THE MAJORITY LEADER,2012Q2,PERSONNEL COMPENSATION,"","DAYSPRING, BRADFORD",04/01/12,04/01/12,DEPUTY CHIEF OF STAFF,467.81,2012,"","","","DAYSPRING, BRADFORD"
,OFFICE OF THE MAJORITY LEADER,2012Q2,PERSONNEL COMPENSATION,"","DAYSPRING, BRADFORD",04/01/12,04/01/12,DEPUTY CHIEF OF STAFF (OTHER COMPENSATION),"9,122.26",2012,"","","","DAYSPRING, BRADFORD"
,OFFICE OF THE MAJORITY LEADER,2012Q2,PERSONNEL COMPENSATION,"","DOLBOW, WILLIAM R",04/01/12,06/30/12,SENIOR ADVISOR,"43,125.00",2012,"","","","DOLBOW, WILLIAM R"
,OFFICE OF THE MAJORITY LEADER,2012Q2,PERSONNEL COMPENSATION,"","FALLON,LAENA E",04/01/12,06/30/12,COMMUNICATIONS DIRECTOR,"31,666.66",2012,"","","","FALLON,LAENA E"
,OFFICE OF THE MAJORITY LEADER,2012Q2,PERSONNEL COMPENSATION,"","FARRAR,KATHERINE D",06/11/12,06/30/12,STAFF ASSISTANT,"1,388.89",2012,"","","","FARRAR,KATHERINE D"
,OFFICE OF THE MAJORITY LEADER,2012Q2,PERSONNEL COMPENSATION,"","FERENCE, MICHAEL J",04/01/12,06/30/12,DIRECTOR OF OUTREACH,"42,102.75",2012,"","","","FERENCE, MICHAEL J"
,OFFICE OF THE MAJORITY LEADER,2012Q2,PERSONNEL COMPENSATION,"","GUSTAFSON,NICOLE M",04/01/12,06/30/12,POLICY ADVISOR/COUNSEL,"15,500.01",2012,"","","","GUSTAFSON,NICOLE M"
,OFFICE OF THE MAJORITY LEADER,2012Q2,PERSONNEL COMPENSATION,"","HEYE,DOUGLAS R",04/06/12,06/30/12,DEPUTY CHIEF OF STAFF-COMMUNIC,"39,666.67",2012,"","","","HEYE,DOUGLAS R"
,OFFICE OF THE MAJORITY LEADER,2012Q2,PERSONNEL COMPENSATION,"","JAEGER, CHERYL L",04/01/12,06/30/12,SENIOR POLICY ADVISOR,"20,649.99",2012,"","","","JAEGER, CHERYL L"
,OFFICE OF THE MAJORITY LEADER,2012Q2,PERSONNEL COMPENSATION,"","JOHNSTON,STEVEN",04/01/12,04/11/12,ASSOCIATE DIR OF NEW MEDIA,"1,268.06",2012,"","","","JOHNSTON,STEVEN"
,OFFICE OF THE MAJORITY LEADER,2012Q2,PERSONNEL COMPENSATION,"","JOSEPH,COURTNEY E",04/01/12,06/30/12,CONGRESSIONAL STAFF,"7,500.00",2012,"","","","JOSEPH,COURTNEY E"
,OFFICE OF THE MAJORITY LEADER,2012Q2,PERSONNEL COMPENSATION,"","KAREM,ROBERT S",04/01/12,06/30/12,SENIOR POLICY ADVISOR,"29,250.00",2012,"","","","KAREM,ROBERT S"
,OFFICE OF THE MAJORITY LEADER,2012Q2,PERSONNEL COMPENSATION,"","KEECH,EMILY H",04/01/12,05/31/12,STAFF ASSISTANT,"4,166.66",2012,"","","","KEECH,EMILY H"
,OFFICE OF THE MAJORITY LEADER,2012Q2,PERSONNEL COMPENSATION,"","KEECH,EMILY H",06/01/12,06/30/12,DEPUTY DIRECTOR OF MEMBER SVCS,"2,500.00",2012,"","","","KEECH,EMILY H"
,OFFICE OF THE MAJORITY LEADER,2012Q2,PERSONNEL COMPENSATION,"","LIRA,MATHEW L",04/01/12,05/31/12,DIRECTOR OF NEW MEDIA,"15,833.34",2012,"","","","LIRA,MATHEW L"
,OFFICE OF THE MAJORITY LEADER,2012Q2,PERSONNEL COMPENSATION,"","LIRA,MATHEW L",06/01/12,06/30/12,DIRECTOR OF DIGITAL MEDIA,"7,916.67",2012,"","","","LIRA,MATHEW L"
,OFFICE OF THE MAJORITY LEADER,2012Q2,PERSONNEL COMPENSATION,"","MAHAN,ROGER A",04/01/12,06/30/12,POLICY ADVISOR,"14,375.01",2012,"","","","MAHAN,ROGER A"
,OFFICE OF THE MAJORITY LEADER,2012Q2,PERSONNEL COMPENSATION,"","NELSON, VALERIE S",04/01/12,06/30/12,DIR OF MEMBER SERVICES,"28,749.99",2012,"","","","NELSON, VALERIE S"
,OFFICE OF THE MAJORITY LEADER,2012Q2,PERSONNEL COMPENSATION,"","NEVINS, KYLE W",04/01/12,06/30/12,DEPUTY CHIEF OF STAFF,"43,125.00",2012,"","","","NEVINS, KYLE W"
,OFFICE OF THE MAJORITY LEADER,2012Q2,PERSONNEL COMPENSATION,"","PATRICK,BRIAN C",04/01/12,05/01/12,STRATEGIC COMMUNICATIONS,"5,812.50",2012,"","","","PATRICK,BRIAN C"
,OFFICE OF THE MAJORITY LEADER,2012Q2,PERSONNEL COMPENSATION,"","RODRIGUERA JR,SERGIO G",04/01/12,04/15/12,SPEECH WRITER,"2,291.67",2012,"","","","RODRIGUERA JR,SERGIO G"
,OFFICE OF THE MAJORITY LEADER,2012Q2,PERSONNEL COMPENSATION,"","STOMBRES, STEVEN C",04/01/12,06/30/12,CHIEF OF STAFF,"43,125.00",2012,"","","","STOMBRES, STEVEN C"
,OFFICE OF THE MAJORITY LEADER,2012Q2,PERSONNEL COMPENSATION,"","STRAUS,JESSICA",04/01/12,06/30/12,ASSISTANT PRESS SECRETARY,"13,083.33",2012,"","","","STRAUS,JESSICA"
,OFFICE OF THE MAJORITY LEADER,2012Q2,PERSONNEL COMPENSATION,"","TUELL,JAMES A",04/01/12,06/30/12,ASST TO THE CHIEF OF STAFF,"5,295.15",2012,"","","","TUELL,JAMES A"
,OFFICE OF THE MAJORITY LEADER,2012Q2,PERSONNEL COMPENSATION,"","VIESON, CHRISTOPHER W",04/01/12,06/30/12,DEPUTY DIRECTOR OF FLOOR OPERA,"26,583.33",2012,"","","","VIESON, CHRISTOPHER W"
,OFFICE OF THE MAJORITY LEADER,2012Q2,PERSONNEL COMPENSATION,"","WALSH,WILLIAM C",06/04/12,06/30/12,DEPUTY DIR OF DIGITAL SERVICES,"3,000.00",2012,"","","","WALSH,WILLIAM C"
,OFFICE OF THE MAJORITY LEADER,2012Q2,PERSONNEL COMPENSATION,"","WILLIAMS, KELLY K",04/01/12,06/30/12,FINANCIAL ADMINISTRATOR,"8,583.33",2012,"","","","WILLIAMS, KELLY K"
,OFFICE OF THE MAJORITY LEADER,2012Q2,PERSONNEL COMPENSATION,"","ZACKON,MATTHEW R",04/01/12,06/30/12,SPECIAL ASSISTANT,"6,249.99",2012,"","","","ZACKON,MATTHEW R"
,OFFICE OF THE MAJORITY LEADER,2012Q2,TRAVEL,05-01,"FERENCE, MICHAEL J",04/02/12,04/04/12,CAR RENTAL,135.41,2012,AP,Accounts payable,00434451,"FERENCE, MICHAEL J"
,OFFICE OF THE MAJORITY LEADER,2012Q2,TRAVEL,05-01,"FERENCE, MICHAEL J",04/02/12,04/04/12,LODGING,206.91,2012,AP,Accounts payable,00435426,"FERENCE, MICHAEL J"
,OFFICE OF THE MAJORITY LEADER,2012Q2,TRAVEL,05-01,"ZACKON, MATTHEW",03/27/12,03/27/12,TAXI/PARKING/TOLLS,15.00,2012,AP,Accounts payable,00435787,"ZACKON, MATTHEW"
,OFFICE OF THE MAJORITY LEADER,2012Q2,TRAVEL,05-01,"TUELL,JAMES A",03/07/12,03/07/12,PRIVATE AUTO MILEAGE,3.03,2012,AP,Accounts payable,00435804,"TUELL,JAMES A"
,OFFICE OF THE MAJORITY LEADER,2012Q2,TRAVEL,05-31,"ZACKON, MATTHEW",04/19/12,04/19/12,TAXI/PARKING/TOLLS,14.00,2012,AP,Accounts payable,00457853,"ZACKON, MATTHEW"
,OFFICE OF THE MAJORITY LEADER,2012Q2,TRAVEL,05-31,"KEECH, EMILY H",04/11/12,04/11/12,PRIVATE AUTO MILEAGE,17.17,2012,AP,Accounts payable,00457856,"KEECH, EMILY H"
,OFFICE OF THE MAJORITY LEADER,2012Q2,TRAVEL,05-31,ARCHITECT OF THE CAPITOL,01/01/12,03/31/12,DETAILEE TRAVEL,916.75,2012,AP,Accounts payable,00457859,ARCHITECT OF THE CAPITOL
,OFFICE OF THE MAJORITY LEADER,2012Q2,TRAVEL,05-31,"NELSON, VALERIE S",03/27/12,04/24/12,TAXI/PARKING/TOLLS,65.00,2012,AP,Accounts payable,00457863,"NELSON, VALERIE S"
,OFFICE OF THE MAJORITY LEADER,2012Q2,TRAVEL,05-31,"FERENCE, MICHAEL J",05/01/12,05/03/12,TAXI/PARKING/TOLLS,27.00,2012,AP,Accounts payable,00457864,"FERENCE, MICHAEL J"
,OFFICE OF THE MAJORITY LEADER,2012Q2,TRAVEL,05-31,"FERENCE, MICHAEL J",05/01/12,05/01/12,TAXI/PARKING/TOLLS,49.00,2012,AP,Accounts payable,00457867,"FERENCE, MICHAEL J"
,OFFICE OF THE MAJORITY LEADER,2012Q2,TRAVEL,05-31,"FERENCE, MICHAEL J",05/02/12,05/02/12,TAXI/PARKING/TOLLS,40.75,2012,AP,Accounts payable,00457870,"FERENCE, MICHAEL J"
,OFFICE OF THE MAJORITY LEADER,2012Q2,TRAVEL,05-31,"FERENCE, MICHAEL J",05/01/12,05/03/12,LODGING,592.58,2012,AP,Accounts payable,00457872,"FERENCE, MICHAEL J"
,OFFICE OF THE MAJORITY LEADER,2012Q2,TRAVEL,05-31,"CUMMINGS, TIMOTHY P",04/23/12,04/27/12,PRIVATE AUTO MILEAGE,10.10,2012,AP,Accounts payable,00457877,"CUMMINGS, TIMOTHY P"
,OFFICE OF THE MAJORITY LEADER,2012Q2,TRAVEL,05-31,"KEECH, EMILY H",04/20/12,05/09/12,PRIVATE AUTO MILEAGE,50.00,2012,AP,Accounts payable,00457879,"KEECH, EMILY H"
,OFFICE OF THE MAJORITY LEADER,2012Q2,TRAVEL,05-31,"NELSON, VALERIE S",02/14/12,02/14/12,TAXI/PARKING/TOLLS,32.00,2012,AP,Accounts payable,00457880,"NELSON, VALERIE S"
,OFFICE OF THE MAJORITY LEADER,2012Q2,TRAVEL,06-13,"ZACKON, MATTHEW",05/16/12,05/16/12,TAXI/PARKING/TOLLS,21.00,2012,AP,Accounts payable,00465827,"ZACKON, MATTHEW"
,OFFICE OF THE MAJORITY LEADER,2012Q2,TRAVEL,06-13,"CUMMINGS, TIMOTHY P",05/14/12,05/29/12,PRIVATE AUTO MILEAGE,8.08,2012,AP,Accounts payable,00465835,"CUMMINGS, TIMOTHY P"
,OFFICE OF THE MAJORITY LEADER,2012Q2,"RENT, COMMUNICATION, UTILITIES",04-06,FEDERAL EXPRESS CORP,04/03/12,04/03/12,POSTAGE / COURIER / BOX RENTAL,4.83,2012,AP,Accounts payable,00418661,FEDERAL EXPRESS CORP
,OFFICE OF THE MAJORITY LEADER,2012Q2,"RENT, COMMUNICATION, UTILITIES",04-18,CITIBANK P CARD,02/29/12,03/28/12,TELECOMSRV/EQ/TOLL CHARGE,190.62,2012,AP,Accounts payable,00428265,CITIBANK P CARD
,OFFICE OF THE MAJORITY LEADER,2012Q2,"RENT, COMMUNICATION, UTILITIES",04-18,CITIBANK P CARD,02/29/12,03/28/12,UTILITIES,99.00,2012,AP,Accounts payable,00428265,CITIBANK P CARD
,OFFICE OF THE MAJORITY LEADER,2012Q2,"RENT, COMMUNICATION, UTILITIES",05-18,CITIBANK P CARD,03/29/12,04/28/12,TELECOMSRV/EQ/TOLL CHARGE,25.00,2012,AP,Accounts payable,00449702,CITIBANK P CARD
,OFFICE OF THE MAJORITY LEADER,2012Q2,"RENT, COMMUNICATION, UTILITIES",05-18,CITIBANK P CARD,03/29/12,04/28/12,UTILITIES,99.00,2012,AP,Accounts payable,00449702,CITIBANK P CARD
,OFFICE OF THE MAJORITY LEADER,2012Q2,"RENT, COMMUNICATION, UTILITIES",06-20,CITIBANK P CARD,04/29/12,05/28/12,UTILITIES,99.00,2012,AP,Accounts payable,00474159,CITIBANK P CARD
,OFFICE OF THE MAJORITY LEADER,2012Q2,"RENT, COMMUNICATION, UTILITIES",06-29,CITIBANK P CARD,04/29/12,05/28/12,UTILITIES,-99.00,2012,AP,Accounts payable,00486290,CITIBANK P CARD
,OFFICE OF THE MAJORITY LEADER,2012Q2,"RENT, COMMUNICATION, UTILITIES",06-29,CITIBANK P CARD,03/29/12,04/28/12,TELECOMSRV/EQ/TOLL CHARGE,-25.00,2012,AP,Accounts payable,00486322,CITIBANK P CARD
,OFFICE OF THE MAJORITY LEADER,2012Q2,"RENT, COMMUNICATION, UTILITIES",06-29,CITIBANK P CARD,02/29/12,03/28/12,UTILITIES,-99.00,2012,AP,Accounts payable,00486333,CITIBANK P CARD
,OFFICE OF THE MAJORITY LEADER,2012Q2,"RENT, COMMUNICATION, UTILITIES",06-29,CITIBANK P CARD,03/29/12,04/28/12,TELECOMSRV/EQ/TOLL CHARGE,-25.00,2012,AP,Accounts payable,00486519,CITIBANK P CARD
,OFFICE OF THE MAJORITY LEADER,2012Q2,"RENT, COMMUNICATION, UTILITIES",06-29,CITIBANK P CARD,03/29/12,04/28/12,UTILITIES,-99.00,2012,AP,Accounts payable,00486530,CITIBANK P CARD
,OFFICE OF THE MAJORITY LEADER,2012Q2,PRINTING AND REPRODUCTION,04-18,CITIBANK P CARD,02/29/12,03/28/12,ADVERTISEMENTS,29.99,2012,AP,Accounts payable,00428265,CITIBANK P CARD
,OFFICE OF THE MAJORITY LEADER,2012Q2,PRINTING AND REPRODUCTION,04-26,"",04/01/12,04/30/12,PHOTOGRAPHIC (TRANSFER),27.80,2012,GL,General ledger,PIX0018701,""
,OFFICE OF THE MAJORITY LEADER,2012Q2,PRINTING AND REPRODUCTION,05-18,CITIBANK P CARD,03/29/12,04/28/12,PRINTING & REPRODUCTION,49.00,2012,AP,Accounts payable,00449702,CITIBANK P CARD
,OFFICE OF THE MAJORITY LEADER,2012Q2,PRINTING AND REPRODUCTION,05-18,CITIBANK P CARD,03/29/12,04/28/12,ADVERTISEMENTS,47.99,2012,AP,Accounts payable,00449702,CITIBANK P CARD
,OFFICE OF THE MAJORITY LEADER,2012Q2,PRINTING AND REPRODUCTION,05-25,"",05/01/12,05/31/12,PHOTOGRAPHIC (TRANSFER),47.70,2012,GL,General ledger,PIX0019569,""
,OFFICE OF THE MAJORITY LEADER,2012Q2,PRINTING AND REPRODUCTION,06-12,SHARP ELECTRONICS CORP,01/01/12,04/01/12,PRINTING & REPRODUCTION,211.66,2012,AP,Accounts payable,00464743,SHARP ELECTRONICS CORP
,OFFICE OF THE MAJORITY LEADER,2012Q2,PRINTING AND REPRODUCTION,06-20,CITIBANK P CARD,04/29/12,05/28/12,ADVERTISEMENTS,314.81,2012,AP,Accounts payable,00474159,CITIBANK P CARD
,OFFICE OF THE MAJORITY LEADER,2012Q2,PRINTING AND REPRODUCTION,06-29,CITIBANK P CARD,04/29/12,05/28/12,ADVERTISEMENTS,-314.81,2012,AP,Accounts payable,00486276,CITIBANK P CARD
,OFFICE OF THE MAJORITY LEADER,2012Q2,PRINTING AND REPRODUCTION,06-29,CITIBANK P CARD,02/29/12,03/28/12,ADVERTISEMENTS,-29.99,2012,AP,Accounts payable,00486342,CITIBANK P CARD
,OFFICE OF THE MAJORITY LEADER,2012Q2,PRINTING AND REPRODUCTION,06-29,CITIBANK P CARD,03/29/12,04/28/12,ADVERTISEMENTS,-47.99,2012,AP,Accounts payable,00486508,CITIBANK P CARD
,OFFICE OF THE MAJORITY LEADER,2012Q2,PRINTING AND REPRODUCTION,06-29,"",06/01/12,06/30/12,PHOTOGRAPHIC (TRANSFER),21.50,2012,GL,General ledger,PIX0020428,""
,OFFICE OF THE MAJORITY LEADER,2012Q2,OTHER SERVICES,04-18,CITIBANK P CARD,02/29/12,03/28/12,NON-TECHNOLOGY SERVICE CONTR,179.00,2012,AP,Accounts payable,00428265,CITIBANK P CARD
,OFFICE OF THE MAJORITY LEADER,2012Q2,OTHER SERVICES,04-26,FIRESIDE21,03/01/12,03/31/12,"WEB DEV HST,EMAIL & RLTD SERV",585.00,2012,AP,Accounts payable,00432999,FIRESIDE21
,OFFICE OF THE MAJORITY LEADER,2012Q2,OTHER SERVICES,05-18,CITIBANK P CARD,03/29/12,04/28/12,NON-TECHNOLOGY SERVICE CONTR,315.07,2012,AP,Accounts payable,00449702,CITIBANK P CARD
,OFFICE OF THE MAJORITY LEADER,2012Q2,OTHER SERVICES,05-22,FIRESIDE21,04/01/12,04/30/12,"WEB DEV HST,EMAIL & RLTD SERV",585.00,2012,AP,Accounts payable,00452335,FIRESIDE21
,OFFICE OF THE MAJORITY LEADER,2012Q2,OTHER SERVICES,06-20,CITIBANK P CARD,04/29/12,05/28/12,TRAINING,790.00,2012,AP,Accounts payable,00474159,CITIBANK P CARD
,OFFICE OF THE MAJORITY LEADER,2012Q2,OTHER SERVICES,06-29,CITIBANK P CARD,04/29/12,05/28/12,TRAINING,-790.00,2012,AP,Accounts payable,00486306,CITIBANK P CARD
,OFFICE OF THE MAJORITY LEADER,2012Q2,OTHER SERVICES,06-29,CITIBANK P CARD,02/29/12,03/28/12,NON-TECHNOLOGY SERVICE CONTR,-179.00,2012,AP,Accounts payable,00486351,CITIBANK P CARD
,OFFICE OF THE MAJORITY LEADER,2012Q2,OTHER SERVICES,06-29,CITIBANK P CARD,03/29/12,04/28/12,NON-TECHNOLOGY SERVICE CONTR,-315.07,2012,AP,Accounts payable,00486539,CITIBANK P CARD
,OFFICE OF THE MAJORITY LEADER,2012Q2,SUPPLIES AND MATERIALS,04-09,"NATIONAL JOURNAL GROUP, INC",01/18/12,01/17/13,PUBLICATIONS/REFERENCE MAT'L,"-2,299.00",2012,AR,Accounts receivable,AC-05556,"NATIONAL JOURNAL GROUP, INC"
,OFFICE OF THE MAJORITY LEADER,2012Q2,SUPPLIES AND MATERIALS,04-18,CITIBANK P CARD,02/29/12,03/28/12,FOOD & BEVERAGE,"1,080.94",2012,AP,Accounts payable,00428265,CITIBANK P CARD
,OFFICE OF THE MAJORITY LEADER,2012Q2,SUPPLIES AND MATERIALS,04-18,CITIBANK P CARD,02/29/12,03/28/12,HABITATION EXPENSE,259.25,2012,AP,Accounts payable,00428265,CITIBANK P CARD
,OFFICE OF THE MAJORITY LEADER,2012Q2,SUPPLIES AND MATERIALS,04-18,CITIBANK P CARD,02/29/12,03/28/12,PUBLICATIONS/REFERENCE MAT'L,167.15,2012,AP,Accounts payable,00428265,CITIBANK P CARD
,OFFICE OF THE MAJORITY LEADER,2012Q2,SUPPLIES AND MATERIALS,04-18,CITIBANK P CARD,02/29/12,03/28/12,MISC. SUPPLIES & MATERIALS,42.38,2012,AP,Accounts payable,00428265,CITIBANK P CARD
,OFFICE OF THE MAJORITY LEADER,2012Q2,SUPPLIES AND MATERIALS,05-01,DEER PARK,02/27/12,03/26/12,WATER,198.30,2012,AP,Accounts payable,00435799,DEER PARK
,OFFICE OF THE MAJORITY LEADER,2012Q2,SUPPLIES AND MATERIALS,05-01,HIGHLAND ESTATES COFFEE,04/11/12,04/11/12,FOOD & BEVERAGE,300.20,2012,AP,Accounts payable,00435805,HIGHLAND ESTATES COFFEE
,OFFICE OF THE MAJORITY LEADER,2012Q2,SUPPLIES AND MATERIALS,05-18,CITIBANK P CARD,03/29/12,04/28/12,FOOD & BEVERAGE,608.94,2012,AP,Accounts payable,00449702,CITIBANK P CARD
,OFFICE OF THE MAJORITY LEADER,2012Q2,SUPPLIES AND MATERIALS,05-18,CITIBANK P CARD,03/29/12,04/28/12,OFFICE SUPPLIES (OUTSIDE),507.46,2012,AP,Accounts payable,00449702,CITIBANK P CARD
,OFFICE OF THE MAJORITY LEADER,2012Q2,SUPPLIES AND MATERIALS,05-18,CITIBANK P CARD,03/29/12,04/28/12,PUBLICATIONS/REFERENCE MAT'L,189.55,2012,AP,Accounts payable,00449702,CITIBANK P CARD
,OFFICE OF THE MAJORITY LEADER,2012Q2,SUPPLIES AND MATERIALS,05-18,CITIBANK P CARD,03/29/12,04/28/12,MISC. SUPPLIES & MATERIALS,12.71,2012,AP,Accounts payable,00449702,CITIBANK P CARD
,OFFICE OF THE MAJORITY LEADER,2012Q2,SUPPLIES AND MATERIALS,05-31,HIGHLAND ESTATES COFFEE,04/24/12,04/24/12,FOOD & BEVERAGE,332.00,2012,AP,Accounts payable,00457854,HIGHLAND ESTATES COFFEE
,OFFICE OF THE MAJORITY LEADER,2012Q2,SUPPLIES AND MATERIALS,06-13,HIGHLAND ESTATES COFFEE,06/04/12,06/04/12,FOOD & BEVERAGE,591.17,2012,AP,Accounts payable,00465812,HIGHLAND ESTATES COFFEE
,OFFICE OF THE MAJORITY LEADER,2012Q2,SUPPLIES AND MATERIALS,06-13,DEER PARK,04/27/12,05/26/12,FOOD & BEVERAGE,420.97,2012,AP,Accounts payable,00465819,DEER PARK
,OFFICE OF THE MAJORITY LEADER,2012Q2,SUPPLIES AND MATERIALS,06-20,CITIBANK P CARD,04/29/12,05/28/12,WATER,579.85,2012,AP,Accounts payable,00474159,CITIBANK P CARD
,OFFICE OF THE MAJORITY LEADER,2012Q2,SUPPLIES AND MATERIALS,06-20,CITIBANK P CARD,04/29/12,05/28/12,FOOD & BEVERAGE,542.42,2012,AP,Accounts payable,00474159,CITIBANK P CARD
,OFFICE OF THE MAJORITY LEADER,2012Q2,SUPPLIES AND MATERIALS,06-20,CITIBANK P CARD,04/29/12,05/28/12,PUBLICATIONS/REFERENCE MAT'L,325.15,2012,AP,Accounts payable,00474159,CITIBANK P CARD
,OFFICE OF THE MAJORITY LEADER,2012Q2,SUPPLIES AND MATERIALS,06-29,CITIBANK P CARD,04/29/12,05/28/12,PUBLICATIONS/REFERENCE MAT'L,-18.54,2012,AP,Accounts payable,00486260,CITIBANK P CARD
,OFFICE OF THE MAJORITY LEADER,2012Q2,SUPPLIES AND MATERIALS,06-29,CITIBANK P CARD,02/29/12,03/28/12,HABITATION EXPENSE,-259.25,2012,AP,Accounts payable,00486362,CITIBANK P CARD
,OFFICE OF THE MAJORITY LEADER,2012Q2,SUPPLIES AND MATERIALS,06-29,CITIBANK P CARD,02/29/12,03/28/12,PUBLICATIONS/REFERENCE MAT'L,42.38,2012,AP,Accounts payable,00486370,CITIBANK P CARD
,OFFICE OF THE MAJORITY LEADER,2012Q2,SUPPLIES AND MATERIALS,06-29,CITIBANK P CARD,02/29/12,03/28/12,MISC. SUPPLIES & MATERIALS,-42.38,2012,AP,Accounts payable,00486370,CITIBANK P CARD
,OFFICE OF THE MAJORITY LEADER,2012Q2,SUPPLIES AND MATERIALS,06-29,CITIBANK P CARD,03/29/12,04/28/12,FOOD & BEVERAGE,198.30,2012,AP,Accounts payable,00486489,CITIBANK P CARD
,OFFICE OF THE MAJORITY LEADER,2012Q2,SUPPLIES AND MATERIALS,06-29,CITIBANK P CARD,03/29/12,04/28/12,OFFICE SUPPLIES (OUTSIDE),-198.30,2012,AP,Accounts payable,00486489,CITIBANK P CARD
,OFFICE OF THE MAJORITY LEADER,2012Q2,SUPPLIES AND MATERIALS,06-29,CITIBANK P CARD,03/29/12,04/28/12,PUBLICATIONS/REFERENCE MAT'L,18.00,2012,AP,Accounts payable,00486508,CITIBANK P CARD
,OFFICE OF THE MINORITY LEADER,2012Q2,FRANKED MAIL,04-26,UNITED STATES POSTAL SERVICE,03/01/12,03/31/12,FRANKED MAIL,23.15,2012,AP,Accounts payable,00433153,UNITED STATES POSTAL SERVICE
,OFFICE OF THE MINORITY LEADER,2012Q2,FRANKED MAIL,05-17,UNITED STATES POSTAL SERVICE,04/01/12,04/30/12,FRANKED MAIL,75.27,2012,AP,Accounts payable,00447400,UNITED STATES POSTAL SERVICE
,OFFICE OF THE MINORITY LEADER,2012Q2,PERSONNEL COMPENSATION,"","ABOUCHAR, KEITH S",04/01/12,06/30/12,SENIOR POLICY ADVISOR,"32,700.00",2012,"","","","ABOUCHAR, KEITH S"
,OFFICE OF THE MINORITY LEADER,2012Q2,PERSONNEL COMPENSATION,"","BARRY,MARY K",04/01/12,06/30/12,DEPUTY DIRECTOR OF ADVANCE,"18,750.00",2012,"","","","BARRY,MARY K"
,OFFICE OF THE MINORITY LEADER,2012Q2,PERSONNEL COMPENSATION,"","BLOOM, MICHAEL T",04/01/12,06/30/12,DEPUTY POLICY DIRECTOR,"19,340.76",2012,"","","","BLOOM, MICHAEL T"
,OFFICE OF THE MINORITY LEADER,2012Q2,PERSONNEL COMPENSATION,"","BURNES, AUSTIN W",04/01/12,06/30/12,DIR. OF LEGISLATIVE OPERATIONS,"29,700.00",2012,"","","","BURNES, AUSTIN W"
,OFFICE OF THE MINORITY LEADER,2012Q2,PERSONNEL COMPENSATION,"","CAPRON, MARGARET W",04/01/12,06/30/12,SENIOR ADV POLICY & COMM,"31,924.26",2012,"","","","CAPRON, MARGARET W"
,OFFICE OF THE MINORITY LEADER,2012Q2,PERSONNEL COMPENSATION,"","CASHMAN,MARY D",04/01/12,06/30/12,ASST TO THE CHIEF OF STAFF,"18,000.00",2012,"","","","CASHMAN,MARY D"
,OFFICE OF THE MINORITY LEADER,2012Q2,PERSONNEL COMPENSATION,"","CHARVILLE,BRIDGET F",04/01/12,06/30/12,DIRECTOR OF PROTOCOL,"29,466.75",2012,"","","","CHARVILLE,BRIDGET F"
,OFFICE OF THE MINORITY LEADER,2012Q2,PERSONNEL COMPENSATION,"","CHERRY,STEPHANIE",04/01/12,06/30/12,PRESS ADVISOR,"17,962.26",2012,"","","","CHERRY,STEPHANIE"
,OFFICE OF THE MINORITY LEADER,2012Q2,PERSONNEL COMPENSATION,"","COVEY-BRANDT, ALEXIS",04/01/12,06/30/12,FLOOR DIRECTOR,"42,825.00",2012,"","","","COVEY-BRANDT, ALEXIS"
,OFFICE OF THE MINORITY LEADER,2012Q2,PERSONNEL COMPENSATION,"","DAY,TAMIKA K",04/01/12,06/30/12,SR STAFF ASST SYS ADMIN,"12,500.01",2012,"","","","DAY,TAMIKA K"
,OFFICE OF THE MINORITY LEADER,2012Q2,PERSONNEL COMPENSATION,"","DEGRAFF, KENNETH B",04/01/12,06/30/12,SENIOR POLICY ADVISOR,"28,749.99",2012,"","","","DEGRAFF, KENNETH B"
,OFFICE OF THE MINORITY LEADER,2012Q2,PERSONNEL COMPENSATION,"","DEVLIN, PATRICK J",04/01/12,06/30/12,COMMUNICATIONS DIRECTOR,"31,250.01",2012,"","","","DEVLIN, PATRICK J"
,OFFICE OF THE MINORITY LEADER,2012Q2,PERSONNEL COMPENSATION,"","DEWHIRST, DIANE",04/01/12,06/30/12,SENIOR ADVISOR,"29,499.99",2012,"","","","DEWHIRST, DIANE"
,OFFICE OF THE MINORITY LEADER,2012Q2,PERSONNEL COMPENSATION,"","ELLISON,MATTHEW B",04/01/12,06/30/12,RESEARCH ASSISTANT,"7,500.00",2012,"","","","ELLISON,MATTHEW B"
,OFFICE OF THE MINORITY LEADER,2012Q2,PERSONNEL COMPENSATION,"","ELSHAMI,NADEEM",04/01/12,06/30/12,COMM DIR/SENIOR ADVISOR (STAT),"43,125.00",2012,"","","","ELSHAMI,NADEEM"
,OFFICE OF THE MINORITY LEADER,2012Q2,PERSONNEL COMPENSATION,"","FISCHER JR, ROBERT V",04/01/12,06/30/12,ASST FLOOR CHIEF,"33,289.50",2012,"","","","FISCHER JR, ROBERT V"
,OFFICE OF THE MINORITY LEADER,2012Q2,PERSONNEL COMPENSATION,"","GEORGE,EVANGELINE M",04/01/12,06/30/12,PRESS ADVISOR,"13,875.00",2012,"","","","GEORGE,EVANGELINE M"
,OFFICE OF THE MINORITY LEADER,2012Q2,PERSONNEL COMPENSATION,"","GREENER, APRIL L",04/01/12,06/30/12,RESEARCH DIRECTOR,"21,249.99",2012,"","","","GREENER, APRIL L"
,OFFICE OF THE MINORITY LEADER,2012Q2,PERSONNEL COMPENSATION,"","HAMMILL, ANDREW T",04/01/12,06/30/12,PRESS SEC & DEPUTY COMM DIR,"40,968.00",2012,"","","","HAMMILL, ANDREW T"
,OFFICE OF THE MINORITY LEADER,2012Q2,PERSONNEL COMPENSATION,"","HARTZ, JERRY",04/01/12,06/30/12,DIRECTOR OF FLOOR OPERATIONS,"43,125.00",2012,"","","","HARTZ, JERRY"
,OFFICE OF THE MINORITY LEADER,2012Q2,PERSONNEL COMPENSATION,"","HAYNES JR, WILFRED J",04/01/12,06/30/12,IT DIRECTOR,"24,530.49",2012,"","","","HAYNES JR, WILFRED J"
,OFFICE OF THE MINORITY LEADER,2012Q2,PERSONNEL COMPENSATION,"","HUGHES,JOHN C",04/01/12,06/30/12,SENIOR POLICY ADVISOR,"32,199.99",2012,"","","","HUGHES,JOHN C"
,OFFICE OF THE MINORITY LEADER,2012Q2,PERSONNEL COMPENSATION,"","IVESTER, WREN",04/01/12,06/30/12,ASST FLOOR CHIEF,"29,974.50",2012,"","","","IVESTER, WREN"
,OFFICE OF THE MINORITY LEADER,2012Q2,PERSONNEL COMPENSATION,"","JUDGE, KRISTINE A",04/01/12,06/30/12,SENIOR ADVISOR/POLICY COMM,"31,924.26",2012,"","","","JUDGE, KRISTINE A"
,OFFICE OF THE MINORITY LEADER,2012Q2,PERSONNEL COMPENSATION,"","KEITA,KAMILAH Z",04/01/12,06/30/12,DEPUTY INFOMATION TECH. DIRECT,"22,283.01",2012,"","","","KEITA,KAMILAH Z"
,OFFICE OF THE MINORITY LEADER,2012Q2,PERSONNEL COMPENSATION,"","KING,RYAN M",04/01/12,06/30/12,PRESS ASSISTANT,"8,250.00",2012,"","","","KING,RYAN M"
,OFFICE OF THE MINORITY LEADER,2012Q2,PERSONNEL COMPENSATION,"","KING,RYAN M",03/01/12,05/31/12,PRESS ASSISTANT (OVERTIME),"3,052.07",2012,"","","","KING,RYAN M"
,OFFICE OF THE MINORITY LEADER,2012Q2,PERSONNEL COMPENSATION,"","KUNDANIS, GEORGE",04/01/12,06/30/12,DEPUTY CHIEF OF STAFF,"43,125.00",2012,"","","","KUNDANIS, GEORGE"
,OFFICE OF THE MINORITY LEADER,2012Q2,PERSONNEL COMPENSATION,"","LAWRENCE, JOHN A",04/01/12,06/30/12,CHIEF OF STAFF,"43,125.00",2012,"","","","LAWRENCE, JOHN A"
,OFFICE OF THE MINORITY LEADER,2012Q2,PERSONNEL COMPENSATION,"","LIZARRAGA, JAIME E",04/01/12,06/30/12,SR ADV & DIR OF MEMBER SVC,"39,905.49",2012,"","","","LIZARRAGA, JAIME E"
,OFFICE OF THE MINORITY LEADER,2012Q2,PERSONNEL COMPENSATION,"","LONG,MICHAEL G",04/01/12,06/30/12,DEPUTY DIRECTOR OF MEMBER SVCS,"18,750.00",2012,"","","","LONG,MICHAEL G"
,OFFICE OF THE MINORITY LEADER,2012Q2,PERSONNEL COMPENSATION,"","MANGRUM, PEARL J",04/01/12,06/30/12,FINANCIAL ADMINISTRATOR,"12,875.01",2012,"","","","MANGRUM, PEARL J"
,OFFICE OF THE MINORITY LEADER,2012Q2,PERSONNEL COMPENSATION,"","MEDLIN,MELINDA L",04/01/12,06/30/12,DIRECTOR OF SCHEDULING,"35,847.00",2012,"","","","MEDLIN,MELINDA L"
,OFFICE OF THE MINORITY LEADER,2012Q2,PERSONNEL COMPENSATION,"","MELTZER,RICHARD",04/01/12,04/30/12,POLICY ADVISOR,"14,375.00",2012,"","","","MELTZER,RICHARD"
,OFFICE OF THE MINORITY LEADER,2012Q2,PERSONNEL COMPENSATION,"","MELTZER,RICHARD",05/01/12,06/30/12,POLICY DIRECTOR,"28,750.00",2012,"","","","MELTZER,RICHARD"
,OFFICE OF THE MINORITY LEADER,2012Q2,PERSONNEL COMPENSATION,"","MERRITT,TIMOTHY",04/01/12,06/30/12,DEPUTY DIRECTOR OF SCHEDULING,"11,833.33",2012,"","","","MERRITT,TIMOTHY"
,OFFICE OF THE MINORITY LEADER,2012Q2,PERSONNEL COMPENSATION,"","MERRITT,TIMOTHY",06/01/12,06/30/12,DEPUTY DIRECTOR OF SCHEDULING (OTHER COMPENSATION),"5,000.00",2012,"","","","MERRITT,TIMOTHY"
,OFFICE OF THE MINORITY LEADER,2012Q2,PERSONNEL COMPENSATION,"","MERZ, JULIE E",04/01/12,05/31/12,DIR OF MEMBER SERVICES,"8,333.33",2012,"","","","MERZ, JULIE E"
,OFFICE OF THE MINORITY LEADER,2012Q2,PERSONNEL COMPENSATION,"","MILLER,AMY M",04/01/12,06/30/12,SENIOR ADVISOR,"24,999.99",2012,"","","","MILLER,AMY M"
,OFFICE OF THE MINORITY LEADER,2012Q2,PERSONNEL COMPENSATION,"","NEWTON, KARINA L",04/01/12,06/30/12,DIRECTOR OF NEW MEDIA,"22,125.00",2012,"","","","NEWTON, KARINA L"
,OFFICE OF THE MINORITY LEADER,2012Q2,PERSONNEL COMPENSATION,"","NEWTON, KARINA L",04/01/12,06/30/12,DIRECTOR OF NEW MEDIA (OTHER COMPENSATION),"12,000.00",2012,"","","","NEWTON, KARINA L"
,OFFICE OF THE MINORITY LEADER,2012Q2,PERSONNEL COMPENSATION,"","O'NEILL, CATLIN W",04/01/12,06/30/12,CHIEF OF STAFF,"18,750.00",2012,"","","","O'NEILL, CATLIN W"
,OFFICE OF THE MINORITY LEADER,2012Q2,PERSONNEL COMPENSATION,"","PARKER, WYNDEE R",04/01/12,06/30/12,SENIOR POLICY ADVISOR,"43,125.00",2012,"","","","PARKER, WYNDEE R"
,OFFICE OF THE MINORITY LEADER,2012Q2,PERSONNEL COMPENSATION,"","PATTI,VERNA A",04/01/12,06/30/12,DISTRICT SCHEDULER,"3,000.00",2012,"","","","PATTI,VERNA A"
,OFFICE OF THE MINORITY LEADER,2012Q2,PERSONNEL COMPENSATION,"","PEPPER, LORI J",04/01/12,06/30/12,DEPUTY DIR. - FLOOR OPERATIONS,"31,250.01",2012,"","","","PEPPER, LORI J"
,OFFICE OF THE MINORITY LEADER,2012Q2,PERSONNEL COMPENSATION,"","POWELL,JONATHAN M",04/01/12,06/30/12,DEPUTY SPEECHWRITER,"20,000.01",2012,"","","","POWELL,JONATHAN M"
,OFFICE OF THE MINORITY LEADER,2012Q2,PERSONNEL COMPENSATION,"","PRICE, REVA B",04/01/12,05/31/12,OUTREACH DIRECTOR,"21,282.84",2012,"","","","PRICE, REVA B"
,OFFICE OF THE MINORITY LEADER,2012Q2,PERSONNEL COMPENSATION,"","PRICE, REVA B",06/01/12,06/30/12,OUTREACH DIRECTOR & ADVISOR,"10,641.42",2012,"","","","PRICE, REVA B"
,OFFICE OF THE MINORITY LEADER,2012Q2,PERSONNEL COMPENSATION,"","PRIMUS, WENDELL E",04/01/12,06/30/12,SENIOR POLICY ADVISOR,"43,125.00",2012,"","","","PRIMUS, WENDELL E"
,OFFICE OF THE MINORITY LEADER,2012Q2,PERSONNEL COMPENSATION,"","REPKO,MARY F",04/01/12,06/30/12,SENIOR POLICY ADVISOR,"32,949.99",2012,"","","","REPKO,MARY F"
,OFFICE OF THE MINORITY LEADER,2012Q2,PERSONNEL COMPENSATION,"","ROLLAND,STACEY L",04/01/12,06/30/12,POLICY ADVISOR - TAX,"30,000.00",2012,"","","","ROLLAND,STACEY L"
,OFFICE OF THE MINORITY LEADER,2012Q2,PERSONNEL COMPENSATION,"","ROMICK, BRIAN",04/01/12,06/30/12,MEMBER SERVICES DIRECTOR,"35,949.99",2012,"","","","ROMICK, BRIAN"
,OFFICE OF THE MINORITY LEADER,2012Q2,PERSONNEL COMPENSATION,"","SANCHEZ, CARLOS S",04/01/12,06/30/12,PRESS ADVISOR,"20,000.01",2012,"","","","SANCHEZ, CARLOS S"
,OFFICE OF THE MINORITY LEADER,2012Q2,PERSONNEL COMPENSATION,"","SCHMIDT, AARON",04/01/12,06/30/12,POLICY ADVISOR,"22,500.00",2012,"","","","SCHMIDT, AARON"
,OFFICE OF THE MINORITY LEADER,2012Q2,PERSONNEL COMPENSATION,"","SHAKIR,FAIZ R",06/01/12,06/30/12,DIR OF NEW MEDIA & SENIOR ADV,"12,750.00",2012,"","","","SHAKIR,FAIZ R"
,OFFICE OF THE MINORITY LEADER,2012Q2,PERSONNEL COMPENSATION,"","SINGLETARY, BARVETTA",04/01/12,06/30/12,POLICY DIRECTOR,"33,249.99",2012,"","","","SINGLETARY, BARVETTA"
,OFFICE OF THE MINORITY LEADER,2012Q2,PERSONNEL COMPENSATION,"","SKEWES-COX,CHRISTINA J",04/01/12,06/30/12,ADVANCE DIRECTOR,"20,000.01",2012,"","","","SKEWES-COX,CHRISTINA J"
,OFFICE OF THE MINORITY LEADER,2012Q2,PERSONNEL COMPENSATION,"","SMITH,KELSEY L",06/11/12,06/30/12,DEPUTY DIRECTOR OF SCHEDULING,"2,527.78",2012,"","","","SMITH,KELSEY L"
,OFFICE OF THE MINORITY LEADER,2012Q2,PERSONNEL COMPENSATION,"","STIVERS, JONATHAN",04/01/12,06/30/12,SENIOR ADVISOR,"35,000.01",2012,"","","","STIVERS, JONATHAN"
,OFFICE OF THE MINORITY LEADER,2012Q2,PERSONNEL COMPENSATION,"","SULLIVAN, BARRY K",04/01/12,06/30/12,CHIEF FLOOR SERVICE (MIN),"43,125.00",2012,"","","","SULLIVAN, BARRY K"
,OFFICE OF THE MINORITY LEADER,2012Q2,PERSONNEL COMPENSATION,"","SURGEON,BINA G",04/01/12,06/30/12,SPECIAL ASST TO THE LEADER,"17,499.99",2012,"","","","SURGEON,BINA G"
,OFFICE OF THE MINORITY LEADER,2012Q2,PERSONNEL COMPENSATION,"","TECKLENBURG, MICHAEL H",04/01/12,06/30/12,COUNSEL,"32,499.99",2012,"","","","TECKLENBURG, MICHAEL H"
,OFFICE OF THE MINORITY LEADER,2012Q2,PERSONNEL COMPENSATION,"","UENG,STEPHANIE L",04/01/12,06/30/12,OUTREACH ADVISOR,"13,681.50",2012,"","","","UENG,STEPHANIE L"
,OFFICE OF THE MINORITY LEADER,2012Q2,PERSONNEL COMPENSATION,"","VEITCH, ALEXANDRA N",04/01/12,06/30/12,DIRECTOR OF SPEECHWRITING,"28,165.50",2012,"","","","VEITCH, ALEXANDRA N"
,OFFICE OF THE MINORITY LEADER,2012Q2,PERSONNEL COMPENSATION,"","WATKINS, YELBERTON R",04/01/12,06/30/12,CHIEF OF STAFF,"41,250.00",2012,"","","","WATKINS, YELBERTON R"
,OFFICE OF THE MINORITY LEADER,2012Q2,PERSONNEL COMPENSATION,"","WEST,JULIUS L",04/01/12,06/30/12,DISTRICT ASSISTANT,"11,250.00",2012,"","","","WEST,JULIUS L"
,OFFICE OF THE MINORITY LEADER,2012Q2,PERSONNEL COMPENSATION,"","WILEDEN,LYDIA",04/01/12,06/30/12,STAFF ASSISTANT,"8,250.00",2012,"","","","WILEDEN,LYDIA"
,OFFICE OF THE MINORITY LEADER,2012Q2,PERSONNEL COMPENSATION,"","WILEDEN,LYDIA",03/01/12,05/31/12,STAFF ASSISTANT (OVERTIME),"5,651.98",2012,"","","","WILEDEN,LYDIA"
,OFFICE OF THE MINORITY LEADER,2012Q2,PERSONNEL COMPENSATION,"","WOLTERS, KATE",04/01/12,06/30/12,PERSONAL ASSISTANT,"34,646.49",2012,"","","","WOLTERS, KATE"
,OFFICE OF THE MINORITY LEADER,2012Q2,TRAVEL,04-11,"LAWRENCE, JOHN A",03/23/12,03/23/12,TAXI/PARKING/TOLLS,24.00,2012,AP,Accounts payable,00420063,"LAWRENCE, JOHN A"
,OFFICE OF THE MINORITY LEADER,2012Q2,TRAVEL,04-11,CITIBANK GOV CARD SERVICE,03/02/12,03/04/12,TRAVEL SUBSISTENCE,"1,330.76",2012,AP,Accounts payable,00420411,CITIBANK GOV CARD SERVICE
,OFFICE OF THE MINORITY LEADER,2012Q2,TRAVEL,04-11,CITIBANK GOV CARD SERVICE,03/09/12,03/26/12,TRAVEL SUBSISTENCE,"1,914.11",2012,AP,Accounts payable,00420412,CITIBANK GOV CARD SERVICE
,OFFICE OF THE MINORITY LEADER,2012Q2,TRAVEL,04-11,CITIBANK GOV CARD SERVICE,03/05/12,03/19/12,TRAVEL SUBSISTENCE,"2,958.42",2012,AP,Accounts payable,00420414,CITIBANK GOV CARD SERVICE
,OFFICE OF THE MINORITY LEADER,2012Q2,TRAVEL,04-11,CITIBANK GOV CARD SERVICE,03/02/12,03/26/12,TRAVEL SUBSISTENCE,"5,001.46",2012,AP,Accounts payable,00420417,CITIBANK GOV CARD SERVICE
,OFFICE OF THE MINORITY LEADER,2012Q2,TRAVEL,04-12,"SKEWES-COX,CHRISTINA J",02/23/12,03/20/12,TAXI/PARKING/TOLLS,33.00,2012,AP,Accounts payable,00421185,"SKEWES-COX,CHRISTINA J"
,OFFICE OF THE MINORITY LEADER,2012Q2,TRAVEL,04-12,"SKEWES-COX,CHRISTINA J",03/02/12,03/03/12,TAXI/PARKING/TOLLS,34.05,2012,AP,Accounts payable,00421191,"SKEWES-COX,CHRISTINA J"
,OFFICE OF THE MINORITY LEADER,2012Q2,TRAVEL,04-12,"SURGEON,BINA G",02/15/12,03/26/12,TAXI/PARKING/TOLLS,124.75,2012,AP,Accounts payable,00421207,"SURGEON,BINA G"
,OFFICE OF THE MINORITY LEADER,2012Q2,TRAVEL,04-12,"PRICE, REVA B",03/04/12,04/03/12,TAXI/PARKING/TOLLS,77.00,2012,AP,Accounts payable,00421226,"PRICE, REVA B"
,OFFICE OF THE MINORITY LEADER,2012Q2,TRAVEL,04-12,"BARRY, MARY-KATE",03/20/12,03/20/12,TAXI/PARKING/TOLLS,19.00,2012,AP,Accounts payable,00421230,"BARRY, MARY-KATE"
,OFFICE OF THE MINORITY LEADER,2012Q2,TRAVEL,04-12,"BARRY, MARY-KATE",03/19/12,03/19/12,MEALS,3.56,2012,AP,Accounts payable,00421233,"BARRY, MARY-KATE"
,OFFICE OF THE MINORITY LEADER,2012Q2,TRAVEL,04-12,CITIBANK GOV CARD SERVICE,03/02/12,03/19/12,TRAVEL SUBSISTENCE,"1,219.22",2012,AP,Accounts payable,00421487,CITIBANK GOV CARD SERVICE
,OFFICE OF THE MINORITY LEADER,2012Q2,TRAVEL,04-18,"WOLTERS, KATE",03/30/12,04/04/12,TRAVEL SUBSISTENCE,"2,574.19",2012,AP,Accounts payable,00429145,"WOLTERS, KATE"
,OFFICE OF THE MINORITY LEADER,2012Q2,TRAVEL,04-18,"HAMMILL, ANDREW T",03/31/12,04/03/12,TRAVEL SUBSISTENCE,"2,195.19",2012,AP,Accounts payable,00429151,"HAMMILL, ANDREW T"
,OFFICE OF THE MINORITY LEADER,2012Q2,TRAVEL,05-08,"LAWRENCE, JOHN A",04/30/12,04/30/12,TAXI/PARKING/TOLLS,6.00,2012,AP,Accounts payable,00440761,"LAWRENCE, JOHN A"
,OFFICE OF THE MINORITY LEADER,2012Q2,TRAVEL,05-08,"BARRY, MARY-KATE",04/03/12,04/04/12,PRIVATE AUTO MILEAGE,87.11,2012,AP,Accounts payable,00440763,"BARRY, MARY-KATE"
,OFFICE OF THE MINORITY LEADER,2012Q2,TRAVEL,05-08,"BARRY, MARY-KATE",04/20/12,04/20/12,TAXI/PARKING/TOLLS,31.00,2012,AP,Accounts payable,00440764,"BARRY, MARY-KATE"
,OFFICE OF THE MINORITY LEADER,2012Q2,TRAVEL,05-09,CITIBANK GOV CARD SERVICE,04/21/12,04/24/12,TRAVEL SUBSISTENCE,"1,558.10",2012,AP,Accounts payable,00440613,CITIBANK GOV CARD SERVICE
,OFFICE OF THE MINORITY LEADER,2012Q2,TRAVEL,05-13,"SKEWES-COX,CHRISTINA J",04/16/12,04/16/12,TAXI/PARKING/TOLLS,20.00,2012,AP,Accounts payable,00442574,"SKEWES-COX,CHRISTINA J"
,OFFICE OF THE MINORITY LEADER,2012Q2,TRAVEL,05-13,"SKEWES-COX,CHRISTINA J",03/30/12,04/02/12,TRAVEL SUBSISTENCE,54.35,2012,AP,Accounts payable,00442578,"SKEWES-COX,CHRISTINA J"
,OFFICE OF THE MINORITY LEADER,2012Q2,TRAVEL,05-15,CITIBANK GOV CARD SERVICE,03/29/12,05/05/12,COMMERCIAL TRANSPORTATION,"3,955.50",2012,AP,Accounts payable,00444291,CITIBANK GOV CARD SERVICE
,OFFICE OF THE MINORITY LEADER,2012Q2,TRAVEL,05-15,CITIBANK GOV CARD SERVICE,03/29/12,04/03/12,TRAVEL SUBSISTENCE,"2,520.98",2012,AP,Accounts payable,00444293,CITIBANK GOV CARD SERVICE
,OFFICE OF THE MINORITY LEADER,2012Q2,TRAVEL,05-16,CITIBANK GOV CARD SERVICE,04/11/12,04/13/12,TRAVEL SUBSISTENCE,809.47,2012,AP,Accounts payable,00445178,CITIBANK GOV CARD SERVICE
,OFFICE OF THE MINORITY LEADER,2012Q2,TRAVEL,05-16,"WOLTERS, KATE",04/27/12,05/03/12,TRAVEL SUBSISTENCE,"2,205.42",2012,AP,Accounts payable,00445321,"WOLTERS, KATE"
,OFFICE OF THE MINORITY LEADER,2012Q2,TRAVEL,05-16,CITIBANK GOV CARD SERVICE,04/22/12,04/23/12,LODGING,214.42,2012,AP,Accounts payable,00447498,CITIBANK GOV CARD SERVICE
,OFFICE OF THE MINORITY LEADER,2012Q2,TRAVEL,05-23,"SANCHEZ, CARLOS S",04/11/12,04/12/12,TRAVEL SUBSISTENCE,65.89,2012,AP,Accounts payable,00453782,"SANCHEZ, CARLOS S"
,OFFICE OF THE MINORITY LEADER,2012Q2,TRAVEL,05-24,"BARRY, MARY-KATE",05/15/12,05/15/12,TAXI/PARKING/TOLLS,29.00,2012,AP,Accounts payable,00455092,"BARRY, MARY-KATE"
,OFFICE OF THE MINORITY LEADER,2012Q2,TRAVEL,05-25,"LAWRENCE, JOHN A",05/16/12,05/16/12,TAXI/PARKING/TOLLS,9.67,2012,AP,Accounts payable,00455618,"LAWRENCE, JOHN A"
,OFFICE OF THE MINORITY LEADER,2012Q2,TRAVEL,06-06,"BLOOM, MICHAEL",05/19/12,05/19/12,TAXI/PARKING/TOLLS,33.00,2012,AP,Accounts payable,00460948,"BLOOM, MICHAEL"
,OFFICE OF THE MINORITY LEADER,2012Q2,TRAVEL,06-06,"WOLTERS, KATE",05/21/12,05/24/12,TRAVEL SUBSISTENCE,"1,461.17",2012,AP,Accounts payable,00460953,"WOLTERS, KATE"
,OFFICE OF THE MINORITY LEADER,2012Q2,TRAVEL,06-07,"LAWRENCE, JOHN A",05/21/12,05/21/12,TAXI/PARKING/TOLLS,30.00,2012,AP,Accounts payable,00462208,"LAWRENCE, JOHN A"
,OFFICE OF THE MINORITY LEADER,2012Q2,TRAVEL,06-12,"SKEWES-COX,CHRISTINA J",05/21/12,05/21/12,MEALS,8.03,2012,AP,Accounts payable,00464529,"SKEWES-COX,CHRISTINA J"
,OFFICE OF THE MINORITY LEADER,2012Q2,TRAVEL,06-12,"SKEWES-COX,CHRISTINA J",05/09/12,05/09/12,TAXI/PARKING/TOLLS,16.25,2012,AP,Accounts payable,00464532,"SKEWES-COX,CHRISTINA J"
,OFFICE OF THE MINORITY LEADER,2012Q2,TRAVEL,06-12,"BARRY, MARY-KATE",05/17/12,05/17/12,TAXI/PARKING/TOLLS,30.00,2012,AP,Accounts payable,00464534,"BARRY, MARY-KATE"
,OFFICE OF THE MINORITY LEADER,2012Q2,TRAVEL,06-12,CITIBANK GOV CARD SERVICE,04/23/12,04/23/12,MEALS,7.29,2012,AP,Accounts payable,00464879,CITIBANK GOV CARD SERVICE
,OFFICE OF THE MINORITY LEADER,2012Q2,TRAVEL,06-12,CITIBANK GOV CARD SERVICE,05/18/12,05/24/12,TRAVEL SUBSISTENCE,"2,046.48",2012,AP,Accounts payable,00464899,CITIBANK GOV CARD SERVICE
,OFFICE OF THE MINORITY LEADER,2012Q2,TRAVEL,06-12,CITIBANK GOV CARD SERVICE,05/03/12,05/05/12,TRAVEL SUBSISTENCE,726.79,2012,AP,Accounts payable,00464909,CITIBANK GOV CARD SERVICE
,OFFICE OF THE MINORITY LEADER,2012Q2,TRAVEL,06-14,CITIBANK GOV CARD SERVICE,04/26/12,05/29/12,COMMERCIAL TRANSPORTATION,"3,233.00",2012,AP,Accounts payable,00466236,CITIBANK GOV CARD SERVICE
,OFFICE OF THE MINORITY LEADER,2012Q2,TRAVEL,06-20,"STIVERS, JONATHAN",06/05/12,06/05/12,TRAVEL SUBSISTENCE,168.51,2012,AP,Accounts payable,00473270,"STIVERS, JONATHAN"
,OFFICE OF THE MINORITY LEADER,2012Q2,TRAVEL,06-20,"BARRY, MARY-KATE",06/05/12,06/05/12,TAXI/PARKING/TOLLS,30.00,2012,AP,Accounts payable,00473277,"BARRY, MARY-KATE"
,OFFICE OF THE MINORITY LEADER,2012Q2,TRAVEL,06-25,"SURGEON,BINA G",03/23/12,06/07/12,TAXI/PARKING/TOLLS,169.09,2012,AP,Accounts payable,00476092,"SURGEON,BINA G"
,OFFICE OF THE MINORITY LEADER,2012Q2,TRAVEL,06-25,"HAMMILL, ANDREW T",06/14/12,06/15/12,TRAVEL SUBSISTENCE,996.55,2012,AP,Accounts payable,00476132,"HAMMILL, ANDREW T"
,OFFICE OF THE MINORITY LEADER,2012Q2,TRAVEL,06-27,"WOLTERS, KATE",06/10/12,06/16/12,TRAVEL SUBSISTENCE,"4,034.87",2012,AP,Accounts payable,00477342,"WOLTERS, KATE"
,OFFICE OF THE MINORITY LEADER,2012Q2,TRAVEL,06-27,"BARRY, MARY-KATE",06/08/12,06/08/12,PRIVATE AUTO MILEAGE,43.62,2012,AP,Accounts payable,00477347,"BARRY, MARY-KATE"
,OFFICE OF THE MINORITY LEADER,2012Q2,"RENT, COMMUNICATION, UTILITIES",04-02,FEDERAL EXPRESS,02/17/12,02/21/12,POSTAGE / COURIER / BOX RENTAL,46.22,2012,AP,Accounts payable,00414656,FEDERAL EXPRESS
,OFFICE OF THE MINORITY LEADER,2012Q2,"RENT, COMMUNICATION, UTILITIES",04-02,FEDERAL EXPRESS,02/21/12,02/21/12,POSTAGE / COURIER / BOX RENTAL,12.71,2012,AP,Accounts payable,00414664,FEDERAL EXPRESS
,OFFICE OF THE MINORITY LEADER,2012Q2,"RENT, COMMUNICATION, UTILITIES",04-18,CITIBANK P CARD,02/29/12,03/28/12,RECORDING (OUTSIDE),45.38,2012,AP,Accounts payable,00428265,CITIBANK P CARD
,OFFICE OF THE MINORITY LEADER,2012Q2,"RENT, COMMUNICATION, UTILITIES",04-26,FEDEX,03/21/12,03/21/12,POSTAGE / COURIER / BOX RENTAL,13.77,2012,AP,Accounts payable,00433608,FEDEX
,OFFICE OF THE MINORITY LEADER,2012Q2,"RENT, COMMUNICATION, UTILITIES",04-26,FEDEX,03/20/12,03/21/12,POSTAGE / COURIER / BOX RENTAL,31.17,2012,AP,Accounts payable,00433613,FEDEX
,OFFICE OF THE MINORITY LEADER,2012Q2,"RENT, COMMUNICATION, UTILITIES",04-26,FEDEX,03/22/12,03/28/12,POSTAGE / COURIER / BOX RENTAL,73.31,2012,AP,Accounts payable,00433617,FEDEX
,OFFICE OF THE MINORITY LEADER,2012Q2,"RENT, COMMUNICATION, UTILITIES",05-04,FEDEX,04/02/12,04/04/12,POSTAGE / COURIER / BOX RENTAL,10.11,2012,AP,Accounts payable,00439075,FEDEX
,OFFICE OF THE MINORITY LEADER,2012Q2,"RENT, COMMUNICATION, UTILITIES",05-13,FEDEX,04/16/12,04/16/12,POSTAGE / COURIER / BOX RENTAL,6.19,2012,AP,Accounts payable,00442580,FEDEX
,OFFICE OF THE MINORITY LEADER,2012Q2,"RENT, COMMUNICATION, UTILITIES",05-18,CITIBANK P CARD,03/29/12,04/28/12,RECORDING (OUTSIDE),150.32,2012,AP,Accounts payable,00449702,CITIBANK P CARD
,OFFICE OF THE MINORITY LEADER,2012Q2,"RENT, COMMUNICATION, UTILITIES",06-13,FEDEX,04/11/12,04/11/12,POSTAGE / COURIER / BOX RENTAL,6.19,2012,AP,Accounts payable,00466049,FEDEX
,OFFICE OF THE MINORITY LEADER,2012Q2,"RENT, COMMUNICATION, UTILITIES",06-13,"FALLON,BRIDGET C",03/22/12,03/22/12,POSTAGE / COURIER / BOX RENTAL,19.95,2012,AP,Accounts payable,00466068,"FALLON,BRIDGET C"
,OFFICE OF THE MINORITY LEADER,2012Q2,"RENT, COMMUNICATION, UTILITIES",06-20,FEDEX,05/11/12,05/11/12,POSTAGE / COURIER / BOX RENTAL,4.85,2012,AP,Accounts payable,00473327,FEDEX
,OFFICE OF THE MINORITY LEADER,2012Q2,"RENT, COMMUNICATION, UTILITIES",06-20,FEDEX,05/18/12,05/18/12,POSTAGE / COURIER / BOX RENTAL,116.37,2012,AP,Accounts payable,00473331,FEDEX
,OFFICE OF THE MINORITY LEADER,2012Q2,"RENT, COMMUNICATION, UTILITIES",06-20,FEDEX,05/21/12,05/24/12,POSTAGE / COURIER / BOX RENTAL,43.07,2012,AP,Accounts payable,00473335,FEDEX
,OFFICE OF THE MINORITY LEADER,2012Q2,"RENT, COMMUNICATION, UTILITIES",06-20,CITIBANK P CARD,04/29/12,05/28/12,RECORDING (OUTSIDE),45.38,2012,AP,Accounts payable,00474159,CITIBANK P CARD
,OFFICE OF THE MINORITY LEADER,2012Q2,"RENT, COMMUNICATION, UTILITIES",06-21,FEDEX,05/22/12,05/22/12,POSTAGE / COURIER / BOX RENTAL,8.67,2012,AP,Accounts payable,00473339,FEDEX
,OFFICE OF THE MINORITY LEADER,2012Q2,"RENT, COMMUNICATION, UTILITIES",06-27,FEDEX,06/04/12,06/04/12,POSTAGE / COURIER / BOX RENTAL,15.14,2012,AP,Accounts payable,00477386,FEDEX
,OFFICE OF THE MINORITY LEADER,2012Q2,PRINTING AND REPRODUCTION,04-12,"SKEWES-COX,CHRISTINA J",03/17/12,03/17/12,PRINTING & REPRODUCTION,6.87,2012,AP,Accounts payable,00421198,"SKEWES-COX,CHRISTINA J"
,OFFICE OF THE MINORITY LEADER,2012Q2,PRINTING AND REPRODUCTION,04-12,"SURGEON,BINA G",02/22/12,03/11/12,PRINTING & REPRODUCTION,67.51,2012,AP,Accounts payable,00421222,"SURGEON,BINA G"
,OFFICE OF THE MINORITY LEADER,2012Q2,PRINTING AND REPRODUCTION,04-12,"DAVID L. ANDRUKITUS, INC",03/28/12,03/28/12,PRINTING & REPRODUCTION,357.50,2012,AP,Accounts payable,00421246,"DAVID L. ANDRUKITUS, INC"
,OFFICE OF THE MINORITY LEADER,2012Q2,PRINTING AND REPRODUCTION,04-26,"",04/01/12,04/30/12,PHOTOGRAPHIC (TRANSFER),964.30,2012,GL,General ledger,PIX0018701,""
,OFFICE OF THE MINORITY LEADER,2012Q2,PRINTING AND REPRODUCTION,05-08,"BARRY, MARY-KATE",04/22/12,04/22/12,PRINTING & REPRODUCTION,35.75,2012,AP,Accounts payable,00440767,"BARRY, MARY-KATE"
,OFFICE OF THE MINORITY LEADER,2012Q2,PRINTING AND REPRODUCTION,05-10,DOYLE PRINTING & OFFSET CO,05/02/12,05/02/12,PRINTING & REPRODUCTION,640.00,2012,AP,Accounts payable,00441548,DOYLE PRINTING & OFFSET CO
,OFFICE OF THE MINORITY LEADER,2012Q2,PRINTING AND REPRODUCTION,05-25,"",05/01/12,05/31/12,PHOTOGRAPHIC (TRANSFER),193.40,2012,GL,General ledger,PIX0019569,""
,OFFICE OF THE MINORITY LEADER,2012Q2,PRINTING AND REPRODUCTION,06-25,"SURGEON,BINA G",06/04/12,06/05/12,PRINTING & REPRODUCTION,257.02,2012,AP,Accounts payable,00476107,"SURGEON,BINA G"
,OFFICE OF THE MINORITY LEADER,2012Q2,PRINTING AND REPRODUCTION,06-28,SARA KERENS,06/04/12,06/04/12,PRINTING & REPRODUCTION,200.00,2012,AP,Accounts payable,00478673,SARA KERENS
,OFFICE OF THE MINORITY LEADER,2012Q2,PRINTING AND REPRODUCTION,06-29,"",06/01/12,06/30/12,PHOTOGRAPHIC (TRANSFER),402.96,2012,GL,General ledger,PIX0020428,""
,OFFICE OF THE MINORITY LEADER,2012Q2,OTHER SERVICES,04-12,"NEAL R. GROSS & CO, INC",04/04/12,04/04/12,STENOGRAPHIC REPORTING,"1,500.00",2012,AP,Accounts payable,00421202,"NEAL R. GROSS & CO, INC"
,OFFICE OF THE MINORITY LEADER,2012Q2,OTHER SERVICES,04-17,BERNARD RAIMO,03/01/12,03/31/12,CONSULTANT CONTRACT SERVICE,"7,628.00",2012,AP,Accounts payable,00424714,BERNARD RAIMO
,OFFICE OF THE MINORITY LEADER,2012Q2,OTHER SERVICES,04-26,BLACKBAUD,04/06/12,05/05/12,"WEB DEV HST,EMAIL & RLTD SERV","3,092.25",2012,AP,Accounts payable,00433621,BLACKBAUD
,OFFICE OF THE MINORITY LEADER,2012Q2,OTHER SERVICES,05-07,BERNARD RAIMO,04/01/12,04/30/12,CONSULTANT CONTRACT SERVICE,"7,628.00",2012,AP,Accounts payable,00440001,BERNARD RAIMO
,OFFICE OF THE MINORITY LEADER,2012Q2,OTHER SERVICES,06-06,BERNARD RAIMO,05/01/12,05/31/12,CONSULTANT CONTRACT SERVICE,"7,628.00",2012,AP,Accounts payable,00460955,BERNARD RAIMO
,OFFICE OF THE MINORITY LEADER,2012Q2,OTHER SERVICES,06-07,"NEAL R. GROSS & CO, INC",05/31/12,05/31/12,STENOGRAPHIC REPORTING,"1,500.00",2012,AP,Accounts payable,00462220,"NEAL R. GROSS & CO, INC"
,OFFICE OF THE MINORITY LEADER,2012Q2,OTHER SERVICES,06-20,"NEAL R. GROSS & CO, INC",06/08/12,06/08/12,STENOGRAPHIC REPORTING,250.00,2012,AP,Accounts payable,00473350,"NEAL R. GROSS & CO, INC"
,OFFICE OF THE MINORITY LEADER,2012Q2,SUPPLIES AND MATERIALS,04-02,HELEN OLIVIA,03/05/12,03/05/12,HABITATION EXPENSE,350.70,2012,AP,Accounts payable,00414677,HELEN OLIVIA
,OFFICE OF THE MINORITY LEADER,2012Q2,SUPPLIES AND MATERIALS,04-05,HAGUE QUALITY WATER OF MD INC,03/01/12,03/31/12,WATER,378.00,2012,AP,Accounts payable,00414670,HAGUE QUALITY WATER OF MD INC
,OFFICE OF THE MINORITY LEADER,2012Q2,SUPPLIES AND MATERIALS,04-11,HELEN OLIVIA,03/26/12,03/26/12,HABITATION EXPENSE,261.45,2012,AP,Accounts payable,00420065,HELEN OLIVIA
,OFFICE OF THE MINORITY LEADER,2012Q2,SUPPLIES AND MATERIALS,04-11,BURRELLESLUCE,03/01/12,03/31/12,PUBLICATIONS/REFERENCE MAT'L,361.82,2012,AP,Accounts payable,00420068,BURRELLESLUCE
,OFFICE OF THE MINORITY LEADER,2012Q2,SUPPLIES AND MATERIALS,04-12,"SURGEON,BINA G",02/22/12,02/22/12,PUBLICATIONS/REFERENCE MAT'L,5.30,2012,AP,Accounts payable,00421212,"SURGEON,BINA G"
,OFFICE OF THE MINORITY LEADER,2012Q2,SUPPLIES AND MATERIALS,04-12,"SURGEON,BINA G",02/29/12,03/06/12,FOOD & BEVERAGE,81.28,2012,AP,Accounts payable,00421216,"SURGEON,BINA G"
,OFFICE OF THE MINORITY LEADER,2012Q2,SUPPLIES AND MATERIALS,04-12,CAPITOLHOST,03/07/12,03/07/12,FOOD & BEVERAGE,49.50,2012,AP,Accounts payable,00421240,CAPITOLHOST
,OFFICE OF THE MINORITY LEADER,2012Q2,SUPPLIES AND MATERIALS,04-12,CAPITOLHOST,03/07/12,03/07/12,FOOD & BEVERAGE,90.00,2012,AP,Accounts payable,00421245,CAPITOLHOST
,OFFICE OF THE MINORITY LEADER,2012Q2,SUPPLIES AND MATERIALS,04-18,CITIBANK P CARD,02/29/12,03/28/12,FOOD & BEVERAGE,777.03,2012,AP,Accounts payable,00428265,CITIBANK P CARD
,OFFICE OF THE MINORITY LEADER,2012Q2,SUPPLIES AND MATERIALS,04-18,CITIBANK P CARD,02/29/12,03/28/12,PUBLICATIONS/REFERENCE MAT'L,219.93,2012,AP,Accounts payable,00428265,CITIBANK P CARD
,OFFICE OF THE MINORITY LEADER,2012Q2,SUPPLIES AND MATERIALS,04-23,CAPITOLHOST,03/21/12,03/21/12,FOOD & BEVERAGE,49.50,2012,AP,Accounts payable,00431093,CAPITOLHOST
,OFFICE OF THE MINORITY LEADER,2012Q2,SUPPLIES AND MATERIALS,04-23,CAPITOLHOST,03/28/12,03/28/12,FOOD & BEVERAGE,49.50,2012,AP,Accounts payable,00431094,CAPITOLHOST
,OFFICE OF THE MINORITY LEADER,2012Q2,SUPPLIES AND MATERIALS,04-23,HAGUE QUALITY WATER OF MD INC,04/01/12,04/30/12,WATER,378.00,2012,AP,Accounts payable,00431098,HAGUE QUALITY WATER OF MD INC
,OFFICE OF THE MINORITY LEADER,2012Q2,SUPPLIES AND MATERIALS,04-23,CRYSTAL SPRINGS,02/23/12,03/15/12,FOOD & BEVERAGE,711.06,2012,AP,Accounts payable,00431099,CRYSTAL SPRINGS
,OFFICE OF THE MINORITY LEADER,2012Q2,SUPPLIES AND MATERIALS,04-25,OCCASIONS CATERERS,03/21/12,03/21/12,FOOD & BEVERAGE,"10,727.00",2012,AP,Accounts payable,00431662,OCCASIONS CATERERS
,OFFICE OF THE MINORITY LEADER,2012Q2,SUPPLIES AND MATERIALS,05-04,"JUDGE, KRISTINE",03/20/12,03/19/13,PUBLICATIONS/REFERENCE MAT'L,83.74,2012,AP,Accounts payable,00439066,"JUDGE, KRISTINE"
,OFFICE OF THE MINORITY LEADER,2012Q2,SUPPLIES AND MATERIALS,05-04,FEDEX,04/04/12,04/04/12,OFFICE SUPPLIES (OUTSIDE),3.17,2012,AP,Accounts payable,00439071,FEDEX
,OFFICE OF THE MINORITY LEADER,2012Q2,SUPPLIES AND MATERIALS,05-04,HELEN OLIVIA,04/16/12,04/16/12,HABITATION EXPENSE,249.00,2012,AP,Accounts payable,00439082,HELEN OLIVIA
,OFFICE OF THE MINORITY LEADER,2012Q2,SUPPLIES AND MATERIALS,05-04,HELEN OLIVIA,04/24/12,04/24/12,HABITATION EXPENSE,249.00,2012,AP,Accounts payable,00439086,HELEN OLIVIA
,OFFICE OF THE MINORITY LEADER,2012Q2,SUPPLIES AND MATERIALS,05-08,BURRELLESLUCE,04/01/12,04/30/12,PUBLICATIONS/REFERENCE MAT'L,380.15,2012,AP,Accounts payable,00440768,BURRELLESLUCE
,OFFICE OF THE MINORITY LEADER,2012Q2,SUPPLIES AND MATERIALS,05-08,CAPITOLHOST,04/18/12,04/18/12,FOOD & BEVERAGE,49.50,2012,AP,Accounts payable,00440775,CAPITOLHOST
,OFFICE OF THE MINORITY LEADER,2012Q2,SUPPLIES AND MATERIALS,05-13,CRYSTAL SPRINGS,04/01/12,04/30/12,FOOD & BEVERAGE,782.39,2012,AP,Accounts payable,00442589,CRYSTAL SPRINGS
,OFFICE OF THE MINORITY LEADER,2012Q2,SUPPLIES AND MATERIALS,05-13,NATIONAL NEWS,07/01/12,09/30/12,PUBLICATIONS/REFERENCE MAT'L,418.95,2012,AP,Accounts payable,00442594,NATIONAL NEWS
,OFFICE OF THE MINORITY LEADER,2012Q2,SUPPLIES AND MATERIALS,05-13,"LEADERSHIP DIRECTORIES, INC",03/01/12,05/08/12,PUBLICATIONS/REFERENCE MAT'L,"1,007.00",2012,AP,Accounts payable,00442597,"LEADERSHIP DIRECTORIES, INC"
,OFFICE OF THE MINORITY LEADER,2012Q2,SUPPLIES AND MATERIALS,05-16,CAPITOLHOST,04/25/12,04/25/12,FOOD & BEVERAGE,33.00,2012,AP,Accounts payable,00445328,CAPITOLHOST
,OFFICE OF THE MINORITY LEADER,2012Q2,SUPPLIES AND MATERIALS,05-18,CITIBANK P CARD,03/29/12,04/28/12,FOOD & BEVERAGE,590.86,2012,AP,Accounts payable,00449702,CITIBANK P CARD
,OFFICE OF THE MINORITY LEADER,2012Q2,SUPPLIES AND MATERIALS,05-23,HAGUE QUALITY WATER OF MD INC,05/15/12,05/15/12,WATER,378.00,2012,AP,Accounts payable,00453792,HAGUE QUALITY WATER OF MD INC
,OFFICE OF THE MINORITY LEADER,2012Q2,SUPPLIES AND MATERIALS,05-24,"CISION US, INC",04/05/12,04/04/13,PUBLICATIONS/REFERENCE MAT'L,"6,295.00",2012,AP,Accounts payable,00455086,"CISION US, INC"
,OFFICE OF THE MINORITY LEADER,2012Q2,SUPPLIES AND MATERIALS,06-06,TV EYES INC,04/01/12,03/31/13,PUBLICATIONS/REFERENCE MAT'L,"1,200.00",2012,AP,Accounts payable,00460985,TV EYES INC
,OFFICE OF THE MINORITY LEADER,2012Q2,SUPPLIES AND MATERIALS,06-06,CAPITOLHOST,05/14/12,05/14/12,FOOD & BEVERAGE,33.00,2012,AP,Accounts payable,00460998,CAPITOLHOST
,OFFICE OF THE MINORITY LEADER,2012Q2,SUPPLIES AND MATERIALS,06-06,PANERA BREAD COMPANY,01/27/12,01/27/12,FOOD & BEVERAGE,103.37,2012,AP,Accounts payable,00461042,PANERA BREAD COMPANY
,OFFICE OF THE MINORITY LEADER,2012Q2,SUPPLIES AND MATERIALS,06-06,PANERA BREAD COMPANY,02/01/12,02/01/12,FOOD & BEVERAGE,145.89,2012,AP,Accounts payable,00461049,PANERA BREAD COMPANY
,OFFICE OF THE MINORITY LEADER,2012Q2,SUPPLIES AND MATERIALS,06-06,PANERA BREAD COMPANY,02/03/12,02/03/12,FOOD & BEVERAGE,95.34,2012,AP,Accounts payable,00461053,PANERA BREAD COMPANY
,OFFICE OF THE MINORITY LEADER,2012Q2,SUPPLIES AND MATERIALS,06-06,PANERA BREAD COMPANY,02/08/12,02/08/12,FOOD & BEVERAGE,142.92,2012,AP,Accounts payable,00461056,PANERA BREAD COMPANY
,OFFICE OF THE MINORITY LEADER,2012Q2,SUPPLIES AND MATERIALS,06-06,PANERA BREAD COMPANY,02/08/12,02/08/12,FOOD & BEVERAGE,196.82,2012,AP,Accounts payable,00461060,PANERA BREAD COMPANY
,OFFICE OF THE MINORITY LEADER,2012Q2,SUPPLIES AND MATERIALS,06-07,CRYSTAL SPRINGS,05/01/12,05/31/12,WATER,27.56,2012,AP,Accounts payable,00462213,CRYSTAL SPRINGS
,OFFICE OF THE MINORITY LEADER,2012Q2,SUPPLIES AND MATERIALS,06-08,"SOUTHWEST DISTRIBUTION, INC",07/01/12,09/30/12,PUBLICATIONS/REFERENCE MAT'L,"3,763.60",2012,AP,Accounts payable,00460988,"SOUTHWEST DISTRIBUTION, INC"
,OFFICE OF THE MINORITY LEADER,2012Q2,SUPPLIES AND MATERIALS,06-08,PANERA BREAD COMPANY,02/10/12,02/10/12,FOOD & BEVERAGE,95.34,2012,AP,Accounts payable,00461692,PANERA BREAD COMPANY
,OFFICE OF THE MINORITY LEADER,2012Q2,SUPPLIES AND MATERIALS,06-08,PANERA BREAD COMPANY,02/15/12,02/15/12,FOOD & BEVERAGE,145.86,2012,AP,Accounts payable,00461696,PANERA BREAD COMPANY
,OFFICE OF THE MINORITY LEADER,2012Q2,SUPPLIES AND MATERIALS,06-08,PANERA BREAD COMPANY,02/15/12,02/15/12,FOOD & BEVERAGE,594.74,2012,AP,Accounts payable,00461698,PANERA BREAD COMPANY
,OFFICE OF THE MINORITY LEADER,2012Q2,SUPPLIES AND MATERIALS,06-08,PANERA BREAD COMPANY,02/16/12,02/16/12,FOOD & BEVERAGE,176.82,2012,AP,Accounts payable,00461700,PANERA BREAD COMPANY
,OFFICE OF THE MINORITY LEADER,2012Q2,SUPPLIES AND MATERIALS,06-08,PANERA BREAD COMPANY,02/17/12,02/17/12,FOOD & BEVERAGE,217.20,2012,AP,Accounts payable,00461705,PANERA BREAD COMPANY
,OFFICE OF THE MINORITY LEADER,2012Q2,SUPPLIES AND MATERIALS,06-08,PANERA BREAD COMPANY,02/24/12,02/24/12,FOOD & BEVERAGE,95.34,2012,AP,Accounts payable,00461710,PANERA BREAD COMPANY
,OFFICE OF THE MINORITY LEADER,2012Q2,SUPPLIES AND MATERIALS,06-08,PANERA BREAD COMPANY,02/28/12,02/28/12,FOOD & BEVERAGE,253.82,2012,AP,Accounts payable,00461715,PANERA BREAD COMPANY
,OFFICE OF THE MINORITY LEADER,2012Q2,SUPPLIES AND MATERIALS,06-08,PANERA BREAD COMPANY,02/29/12,02/29/12,FOOD & BEVERAGE,142.92,2012,AP,Accounts payable,00461719,PANERA BREAD COMPANY
,OFFICE OF THE MINORITY LEADER,2012Q2,SUPPLIES AND MATERIALS,06-08,PANERA BREAD COMPANY,03/02/12,03/02/12,FOOD & BEVERAGE,95.34,2012,AP,Accounts payable,00461723,PANERA BREAD COMPANY
,OFFICE OF THE MINORITY LEADER,2012Q2,SUPPLIES AND MATERIALS,06-08,PANERA BREAD COMPANY,03/07/12,03/07/12,FOOD & BEVERAGE,194.88,2012,AP,Accounts payable,00461726,PANERA BREAD COMPANY
,OFFICE OF THE MINORITY LEADER,2012Q2,SUPPLIES AND MATERIALS,06-08,PANERA BREAD COMPANY,01/18/12,01/18/12,FOOD & BEVERAGE,145.89,2012,AP,Accounts payable,00462435,PANERA BREAD COMPANY
,OFFICE OF THE MINORITY LEADER,2012Q2,SUPPLIES AND MATERIALS,06-08,PANERA BREAD COMPANY,01/20/12,01/20/12,FOOD & BEVERAGE,95.34,2012,AP,Accounts payable,00462444,PANERA BREAD COMPANY
,OFFICE OF THE MINORITY LEADER,2012Q2,SUPPLIES AND MATERIALS,06-13,BURRELLESLUCE,05/01/12,05/31/12,PUBLICATIONS/REFERENCE MAT'L,425.59,2012,AP,Accounts payable,00465961,BURRELLESLUCE
,OFFICE OF THE MINORITY LEADER,2012Q2,SUPPLIES AND MATERIALS,06-13,HAGUE QUALITY WATER OF MD INC,05/01/12,05/31/12,WATER,378.00,2012,AP,Accounts payable,00466061,HAGUE QUALITY WATER OF MD INC
,OFFICE OF THE MINORITY LEADER,2012Q2,SUPPLIES AND MATERIALS,06-13,HAGUE QUALITY WATER OF MD INC,05/15/12,05/15/12,WATER,-378.00,2012,AP,Accounts payable,00466061,HAGUE QUALITY WATER OF MD INC
,OFFICE OF THE MINORITY LEADER,2012Q2,SUPPLIES AND MATERIALS,06-20,HELEN OLIVIA,05/07/12,05/07/12,HABITATION EXPENSE,249.00,2012,AP,Accounts payable,00473284,HELEN OLIVIA
,OFFICE OF THE MINORITY LEADER,2012Q2,SUPPLIES AND MATERIALS,06-20,HELEN OLIVIA,05/14/12,05/14/12,HABITATION EXPENSE,249.00,2012,AP,Accounts payable,00473293,HELEN OLIVIA
,OFFICE OF THE MINORITY LEADER,2012Q2,SUPPLIES AND MATERIALS,06-20,HELEN OLIVIA,05/30/12,05/30/12,HABITATION EXPENSE,249.00,2012,AP,Accounts payable,00473297,HELEN OLIVIA
,OFFICE OF THE MINORITY LEADER,2012Q2,SUPPLIES AND MATERIALS,06-20,HELEN OLIVIA,06/05/12,06/05/12,HABITATION EXPENSE,249.00,2012,AP,Accounts payable,00473305,HELEN OLIVIA
,OFFICE OF THE MINORITY LEADER,2012Q2,SUPPLIES AND MATERIALS,06-20,CONGRESS AT YOUR FINGERTIPS,06/05/12,06/05/12,PUBLICATIONS/REFERENCE MAT'L,517.00,2012,AP,Accounts payable,00473323,CONGRESS AT YOUR FINGERTIPS
,OFFICE OF THE MINORITY LEADER,2012Q2,SUPPLIES AND MATERIALS,06-20,CITIBANK P CARD,04/29/12,05/28/12,FOOD & BEVERAGE,238.78,2012,AP,Accounts payable,00474159,CITIBANK P CARD
,OFFICE OF THE MINORITY LEADER,2012Q2,SUPPLIES AND MATERIALS,06-25,"HAMMILL, ANDREW T",03/06/12,06/09/12,PUBLICATIONS/REFERENCE MAT'L,77.74,2012,AP,Accounts payable,00476135,"HAMMILL, ANDREW T"
,OFFICE OF THE MINORITY LEADER,2012Q2,SUPPLIES AND MATERIALS,06-26,CAPITOLHOST,05/17/12,05/17/12,FOOD & BEVERAGE,150.00,2012,AP,Accounts payable,00473308,CAPITOLHOST
,OFFICE OF THE MINORITY LEADER,2012Q2,SUPPLIES AND MATERIALS,06-27,"BARRY, MARY-KATE",06/07/12,06/07/12,FOOD & BEVERAGE,13.00,2012,AP,Accounts payable,00477345,"BARRY, MARY-KATE"
,OFFICE OF THE MINORITY LEADER,2012Q2,SUPPLIES AND MATERIALS,06-27,HELEN OLIVIA,06/19/12,06/19/12,HABITATION EXPENSE,249.00,2012,AP,Accounts payable,00477383,HELEN OLIVIA
,OFFICE OF THE MINORITY LEADER,2012Q2,SUPPLIES AND MATERIALS,06-28,OCCASIONS CATERERS,05/18/12,05/18/12,FOOD & BEVERAGE,755.00,2012,AP,Accounts payable,00478671,OCCASIONS CATERERS
,OFFICE OF THE MINORITY LEADER,2012Q2,SUPPLIES AND MATERIALS,06-28,HAGUE QUALITY WATER OF MD INC,06/01/12,06/30/12,WATER,378.00,2012,AP,Accounts payable,00478677,HAGUE QUALITY WATER OF MD INC
,OFFICE OF THE MAJORITY WHIP,2012Q2,PERSONNEL COMPENSATION,"","BARNES,FREDERIC W",04/01/12,06/30/12,FLOOR ASSISTANT,"11,500.00",2012,"","","","BARNES,FREDERIC W"
,OFFICE OF THE MAJORITY WHIP,2012Q2,PERSONNEL COMPENSATION,"","BERRY,TIMOTHY J",04/01/12,06/30/12,CHIEF OF STAFF,"43,125.00",2012,"","","","BERRY,TIMOTHY J"
,OFFICE OF THE MAJORITY WHIP,2012Q2,PERSONNEL COMPENSATION,"","BUCHANAN,NATALIE L",04/01/12,06/30/12,DIR OF MEMBER SERVICES,"21,000.00",2012,"","","","BUCHANAN,NATALIE L"
,OFFICE OF THE MAJORITY WHIP,2012Q2,PERSONNEL COMPENSATION,"","CAREY,BRITTANY M",04/01/12,06/30/12,STAFF ASSISTANT,"9,750.00",2012,"","","","CAREY,BRITTANY M"
,OFFICE OF THE MAJORITY WHIP,2012Q2,PERSONNEL COMPENSATION,"","DIXON, KELLY A",04/01/12,06/30/12,DEPUTY DIRECTOR OF FLOOR OPERA,"23,500.00",2012,"","","","DIXON, KELLY A"
,OFFICE OF THE MAJORITY WHIP,2012Q2,PERSONNEL COMPENSATION,"","ELLIOTT,ERICA L",04/01/12,04/30/12,PRESS SECRETARY,"8,500.00",2012,"","","","ELLIOTT,ERICA L"
,OFFICE OF THE MAJORITY WHIP,2012Q2,PERSONNEL COMPENSATION,"","ELLIOTT,ERICA L",05/01/12,06/30/12,DIRECTOR OF COMMUNICATIONS,"22,000.00",2012,"","","","ELLIOTT,ERICA L"
,OFFICE OF THE MAJORITY WHIP,2012Q2,PERSONNEL COMPENSATION,"","HENEHAN, EMILY A",04/01/12,06/30/12,POLICY ADVISOR,"23,500.00",2012,"","","","HENEHAN, EMILY A"
,OFFICE OF THE MAJORITY WHIP,2012Q2,PERSONNEL COMPENSATION,"","HOWARD,BENJAMIN R",04/01/12,06/30/12,FLOOR ASSISTANT,"11,500.00",2012,"","","","HOWARD,BENJAMIN R"
,OFFICE OF THE MAJORITY WHIP,2012Q2,PERSONNEL COMPENSATION,"","LOFRANCO, JUSTIN V",05/10/12,06/30/12,DIGITAL DIRECTOR,"10,775.00",2012,"","","","LOFRANCO, JUSTIN V"
,OFFICE OF THE MAJORITY WHIP,2012Q2,PERSONNEL COMPENSATION,"","LONG,MICHAEL P",04/01/12,05/31/12,PRESS AIDE,"6,000.00",2012,"","","","LONG,MICHAEL P"
,OFFICE OF THE MAJORITY WHIP,2012Q2,PERSONNEL COMPENSATION,"","LONG,MICHAEL P",06/01/12,06/30/12,DEPUTY PRESS SECRETARY,"4,500.00",2012,"","","","LONG,MICHAEL P"
,OFFICE OF THE MAJORITY WHIP,2012Q2,PERSONNEL COMPENSATION,"","MCCLELLAND, WESLEY R",04/01/12,06/30/12,POLICY ADVISOR,"23,500.00",2012,"","","","MCCLELLAND, WESLEY R"
,OFFICE OF THE MAJORITY WHIP,2012Q2,PERSONNEL COMPENSATION,"","METTLER,ASHLEY",04/01/12,06/30/12,SENIOR STAFF ASSISTANT,"10,000.00",2012,"","","","METTLER,ASHLEY"
,OFFICE OF THE MAJORITY WHIP,2012Q2,PERSONNEL COMPENSATION,"","MIN, JAMES B",04/01/12,06/30/12,DEPUTY CHIEF OF STAFF,"33,000.00",2012,"","","","MIN, JAMES B"
,OFFICE OF THE MAJORITY WHIP,2012Q2,PERSONNEL COMPENSATION,"","MOORE,STEVEN E",04/01/12,06/30/12,CHIEF OF STAFF TO THE DEP WHIP,"15,000.00",2012,"","","","MOORE,STEVEN E"
,OFFICE OF THE MAJORITY WHIP,2012Q2,PERSONNEL COMPENSATION,"","PATAKI,TIMOTHY A",04/01/12,04/04/12,STAFF ASSISTANT,333.33,2012,"","","","PATAKI,TIMOTHY A"
,OFFICE OF THE MAJORITY WHIP,2012Q2,PERSONNEL COMPENSATION,"","PATAKI,TIMOTHY A",04/05/12,06/30/12,SPECIAL ASST TO CHIEF DEPUTY W,"8,166.67",2012,"","","","PATAKI,TIMOTHY A"
,OFFICE OF THE MAJORITY WHIP,2012Q2,PERSONNEL COMPENSATION,"","PINKOS,STEPHEN M",04/01/12,06/30/12,POLICY DIR AND GENERAL COUNSEL,"38,500.00",2012,"","","","PINKOS,STEPHEN M"
,OFFICE OF THE MAJORITY WHIP,2012Q2,PERSONNEL COMPENSATION,"","POMPEI,SARAH",04/01/12,04/30/12,DIRECTOR OF COMMUNICATIONS,"11,250.00",2012,"","","","POMPEI,SARAH"
,OFFICE OF THE MAJORITY WHIP,2012Q2,PERSONNEL COMPENSATION,"","POMPEI,SARAH",04/01/12,04/30/12,DIRECTOR OF COMMUNICATIONS (OTHER COMPENSATION),"1,500.00",2012,"","","","POMPEI,SARAH"
,OFFICE OF THE MAJORITY WHIP,2012Q2,PERSONNEL COMPENSATION,"","POMPEI,SARAH",04/01/12,04/30/12,DIRECTOR OF COMMUNICATIONS (OTHER COMPENSATION),"1,000.00",2012,"","","","POMPEI,SARAH"
,OFFICE OF THE MAJORITY WHIP,2012Q2,PERSONNEL COMPENSATION,"","PRATAPAS,LAUREN M",04/01/12,04/30/12,DIRECTOR OF NEW MEDIA,"4,500.00",2012,"","","","PRATAPAS,LAUREN M"
,OFFICE OF THE MAJORITY WHIP,2012Q2,PERSONNEL COMPENSATION,"","PRATAPAS,LAUREN M",04/01/12,04/30/12,DIRECTOR OF NEW MEDIA (OTHER COMPENSATION),"1,650.00",2012,"","","","PRATAPAS,LAUREN M"
,OFFICE OF THE MAJORITY WHIP,2012Q2,PERSONNEL COMPENSATION,"","SPARKS, MATTHEW E",03/01/12,05/31/12,INTERN,"4,500.00",2012,"","","","SPARKS, MATTHEW E"
,OFFICE OF THE MAJORITY WHIP,2012Q2,PERSONNEL COMPENSATION,"","SPARKS, MATTHEW E",06/01/12,06/30/12,PRESS AIDE,"1,500.00",2012,"","","","SPARKS, MATTHEW E"
,OFFICE OF THE MAJORITY WHIP,2012Q2,PERSONNEL COMPENSATION,"","STIPICEVIC, JOHN A",04/01/12,06/30/12,DIRECTOR OF FLOOR OPERATIONS,"32,000.00",2012,"","","","STIPICEVIC, JOHN A"
,OFFICE OF THE MAJORITY WHIP,2012Q2,PERSONNEL COMPENSATION,"","THOMPSON,DEAN J",04/01/12,04/04/12,SR ADV FR WHIP OP/CHF DEP WHIP,333.33,2012,"","","","THOMPSON,DEAN J"
,OFFICE OF THE MAJORITY WHIP,2012Q2,PERSONNEL COMPENSATION,"","THOMSON, KRISTIN",04/01/12,06/30/12,SHARED EMPLOYEE,"16,000.00",2012,"","","","THOMSON, KRISTIN"
,OFFICE OF THE MAJORITY WHIP,2012Q2,PERSONNEL COMPENSATION,"","WORTH,BRIAN A",04/01/12,06/30/12,DIRECTOR OF COALITIONS,"34,750.00",2012,"","","","WORTH,BRIAN A"
,OFFICE OF THE MAJORITY WHIP,2012Q2,"RENT, COMMUNICATION, UTILITIES",04-06,FEDERAL EXPRESS CORP,03/22/12,03/22/12,POSTAGE / COURIER / BOX RENTAL,4.23,2012,AP,Accounts payable,00418661,FEDERAL EXPRESS CORP
,OFFICE OF THE MAJORITY WHIP,2012Q2,PRINTING AND REPRODUCTION,05-25,"",05/01/12,05/31/12,PHOTOGRAPHIC (TRANSFER),6.40,2012,GL,General ledger,PIX0019569,""
,OFFICE OF THE MAJORITY WHIP,2012Q2,PRINTING AND REPRODUCTION,06-29,"",06/01/12,06/30/12,PHOTOGRAPHIC (TRANSFER),25.60,2012,GL,General ledger,PIX0020428,""
,OFFICE OF THE MAJORITY WHIP,2012Q2,OTHER SERVICES,05-15,CRAFT MEDIA DIGITAL,05/01/12,05/31/12,"WEB DEV HST,EMAIL & RLTD SERV","3,000.00",2012,AP,Accounts payable,00439530,CRAFT MEDIA DIGITAL
,OFFICE OF THE MAJORITY WHIP,2012Q2,OTHER SERVICES,06-20,CITIBANK P CARD,04/29/12,05/28/12,TRAINING,547.00,2012,AP,Accounts payable,00474159,CITIBANK P CARD
,OFFICE OF THE MAJORITY WHIP,2012Q2,SUPPLIES AND MATERIALS,04-03,DEER PARK,01/27/12,02/26/12,WATER,333.56,2012,AP,Accounts payable,00416391,DEER PARK
,OFFICE OF THE MAJORITY WHIP,2012Q2,SUPPLIES AND MATERIALS,04-17,DEER PARK,02/27/12,03/26/12,WATER,283.96,2012,AP,Accounts payable,00425064,DEER PARK
,OFFICE OF THE MAJORITY WHIP,2012Q2,SUPPLIES AND MATERIALS,04-18,CITIBANK P CARD,02/29/12,03/28/12,FOOD & BEVERAGE,"10,557.63",2012,AP,Accounts payable,00428265,CITIBANK P CARD
,OFFICE OF THE MAJORITY WHIP,2012Q2,SUPPLIES AND MATERIALS,04-18,CITIBANK P CARD,02/29/12,03/28/12,PUBLICATIONS/REFERENCE MAT'L,101.89,2012,AP,Accounts payable,00428265,CITIBANK P CARD
,OFFICE OF THE MAJORITY WHIP,2012Q2,SUPPLIES AND MATERIALS,04-30,"POMPEI, SARAH",03/29/12,03/29/12,FOOD & BEVERAGE,17.63,2012,AP,Accounts payable,00434968,"POMPEI, SARAH"
,OFFICE OF THE MAJORITY WHIP,2012Q2,SUPPLIES AND MATERIALS,04-30,"POMPEI, SARAH",04/19/12,04/19/12,FOOD & BEVERAGE,17.63,2012,AP,Accounts payable,00434974,"POMPEI, SARAH"
,OFFICE OF THE MAJORITY WHIP,2012Q2,SUPPLIES AND MATERIALS,04-30,"MIN, JAMES B",04/23/12,04/23/12,FOOD & BEVERAGE,389.57,2012,AP,Accounts payable,00434978,"MIN, JAMES B"
,OFFICE OF THE MAJORITY WHIP,2012Q2,SUPPLIES AND MATERIALS,05-18,DEER PARK,03/27/12,04/26/12,WATER,181.07,2012,AP,Accounts payable,00448194,DEER PARK
,OFFICE OF THE MAJORITY WHIP,2012Q2,SUPPLIES AND MATERIALS,05-18,CITIBANK P CARD,03/29/12,04/28/12,FOOD & BEVERAGE,"9,546.95",2012,AP,Accounts payable,00449702,CITIBANK P CARD
,OFFICE OF THE MAJORITY WHIP,2012Q2,SUPPLIES AND MATERIALS,05-18,CITIBANK P CARD,03/29/12,04/28/12,PUBLICATIONS/REFERENCE MAT'L,37.10,2012,AP,Accounts payable,00449702,CITIBANK P CARD
,OFFICE OF THE MAJORITY WHIP,2012Q2,SUPPLIES AND MATERIALS,06-07,"CAREY, BRITTANY M",06/04/12,06/04/12,FOOD & BEVERAGE,359.88,2012,AP,Accounts payable,00461879,"CAREY, BRITTANY M"
,OFFICE OF THE MAJORITY WHIP,2012Q2,SUPPLIES AND MATERIALS,06-20,DEER PARK,04/27/12,05/26/12,WATER,457.99,2012,AP,Accounts payable,00474048,DEER PARK
,OFFICE OF THE MAJORITY WHIP,2012Q2,SUPPLIES AND MATERIALS,06-20,CITIBANK P CARD,04/29/12,05/28/12,FOOD & BEVERAGE,"12,387.84",2012,AP,Accounts payable,00474159,CITIBANK P CARD
,OFFICE OF THE MAJORITY WHIP,2012Q2,SUPPLIES AND MATERIALS,06-20,CITIBANK P CARD,04/29/12,05/28/12,PUBLICATIONS/REFERENCE MAT'L,37.10,2012,AP,Accounts payable,00474159,CITIBANK P CARD
,OFFICE OF THE MINORITY WHIP,2012Q2,PERSONNEL COMPENSATION,"","ABOUCHAR, KEITH S",04/01/12,06/30/12,SENIOR POLICY ADVISOR,549.99,2012,"","","","ABOUCHAR, KEITH S"
,OFFICE OF THE MINORITY WHIP,2012Q2,PERSONNEL COMPENSATION,"","AVILES,DANIELLE R",04/01/12,06/30/12,EXECUTIVE ASST OFFICE MANAGER,"11,000.01",2012,"","","","AVILES,DANIELLE R"
,OFFICE OF THE MINORITY WHIP,2012Q2,PERSONNEL COMPENSATION,"","AVILES,DANIELLE R",03/01/12,03/31/12,STAFF ASSISTANT (OVERTIME),"1,221.62",2012,"","","","AVILES,DANIELLE R"
,OFFICE OF THE MINORITY WHIP,2012Q2,PERSONNEL COMPENSATION,"","BEACH,MAUREEN M",04/01/12,05/01/12,MD PRESS SEC/DEP PRESS SEC,"3,358.33",2012,"","","","BEACH,MAUREEN M"
,OFFICE OF THE MINORITY WHIP,2012Q2,PERSONNEL COMPENSATION,"","BEACH,MAUREEN M",05/01/12,05/01/12,MD PRESS SEC/DEP PRESS SEC (OTHER COMPENSATION),325.00,2012,"","","","BEACH,MAUREEN M"
,OFFICE OF THE MINORITY WHIP,2012Q2,PERSONNEL COMPENSATION,"","BOHANAN JR, JOHN L",05/01/12,06/30/12,CONSTITUENT LIAISON,"1,000.00",2012,"","","","BOHANAN JR, JOHN L"
,OFFICE OF THE MINORITY WHIP,2012Q2,PERSONNEL COMPENSATION,"","BURNES, AUSTIN W",04/01/12,06/30/12,DIR. OF LEGISLATIVE OPERATIONS,300.00,2012,"","","","BURNES, AUSTIN W"
,OFFICE OF THE MINORITY WHIP,2012Q2,PERSONNEL COMPENSATION,"","COBIA, LINDSEY G",04/01/12,06/30/12,STAFF ASSISTANT,"4,791.66",2012,"","","","COBIA, LINDSEY G"
,OFFICE OF THE MINORITY WHIP,2012Q2,PERSONNEL COMPENSATION,"","COBIA, LINDSEY G",05/01/12,05/31/12,STAFF ASSISTANT (OVERTIME),946.50,2012,"","","","COBIA, LINDSEY G"
,OFFICE OF THE MINORITY WHIP,2012Q2,PERSONNEL COMPENSATION,"","COLLINS, MICHAEL E",04/01/12,06/30/12,CHIEF DEPUTY WHIP,"10,625.01",2012,"","","","COLLINS, MICHAEL E"
,OFFICE OF THE MINORITY WHIP,2012Q2,PERSONNEL COMPENSATION,"","COVEY-BRANDT, ALEXIS",04/01/12,06/30/12,CHIEF OF STAFF,300.00,2012,"","","","COVEY-BRANDT, ALEXIS"
,OFFICE OF THE MINORITY WHIP,2012Q2,PERSONNEL COMPENSATION,"","DEBOSIER, CHRISTOPHER M",04/01/12,06/30/12,DIR OF MEM SERVICES & OUTREACH,"21,875.01",2012,"","","","DEBOSIER, CHRISTOPHER M"
,OFFICE OF THE MINORITY WHIP,2012Q2,PERSONNEL COMPENSATION,"","EISENBERG,MICHAEL",04/01/12,06/30/12,WHIP COORDINATOR,"15,000.00",2012,"","","","EISENBERG,MICHAEL"
,OFFICE OF THE MINORITY WHIP,2012Q2,PERSONNEL COMPENSATION,"","FRY,COURTNEY",04/01/12,06/30/12,MEMBER SRVS AND OUTREACH COORD,"17,499.99",2012,"","","","FRY,COURTNEY"
,OFFICE OF THE MINORITY WHIP,2012Q2,PERSONNEL COMPENSATION,"","GENSEMER,ELLIOT J",04/01/12,06/30/12,STAFF ASSISTANT,"6,499.99",2012,"","","","GENSEMER,ELLIOT J"
,OFFICE OF THE MINORITY WHIP,2012Q2,PERSONNEL COMPENSATION,"","GENSEMER,ELLIOT J",03/01/12,05/31/12,STAFF ASSISTANT (OVERTIME),"4,155.60",2012,"","","","GENSEMER,ELLIOT J"
,OFFICE OF THE MINORITY WHIP,2012Q2,PERSONNEL COMPENSATION,"","GHOSH,APRATIM",04/01/12,06/30/12,SPECIAL ASSISTANT,"9,999.99",2012,"","","","GHOSH,APRATIM"
,OFFICE OF THE MINORITY WHIP,2012Q2,PERSONNEL COMPENSATION,"","GOFF,SHUWANZA R",04/01/12,06/30/12,DEPUTY DIR LEG OPERATIONS,"17,499.99",2012,"","","","GOFF,SHUWANZA R"
,OFFICE OF THE MINORITY WHIP,2012Q2,PERSONNEL COMPENSATION,"","GRANT,KATHRYN L",04/01/12,06/30/12,COMMUNICATIONS DIRECTOR,"27,500.01",2012,"","","","GRANT,KATHRYN L"
,OFFICE OF THE MINORITY WHIP,2012Q2,PERSONNEL COMPENSATION,"","HUGHES,JOHN C",04/01/12,06/30/12,SENIOR POLICY ADVISOR,300.00,2012,"","","","HUGHES,JOHN C"
,OFFICE OF THE MINORITY WHIP,2012Q2,PERSONNEL COMPENSATION,"","LEUSCHEN, JAMES P",04/01/12,06/30/12,SENIOR POLICY ADVISOR,"28,749.99",2012,"","","","LEUSCHEN, JAMES P"
,OFFICE OF THE MINORITY WHIP,2012Q2,PERSONNEL COMPENSATION,"","MEDLEY, ANNA E",04/01/12,06/30/12,DIR OF SCHEDLNG & SPEC EVENTS,"17,499.99",2012,"","","","MEDLEY, ANNA E"
,OFFICE OF THE MINORITY WHIP,2012Q2,PERSONNEL COMPENSATION,"","MOORE, MIKAEL",04/01/12,06/30/12,CHIEF DEPUTY WHIP,"9,999.99",2012,"","","","MOORE, MIKAEL"
,OFFICE OF THE MINORITY WHIP,2012Q2,PERSONNEL COMPENSATION,"","MURRAY, ELIZABETH M",04/01/12,06/30/12,SENIOR POLICY ADVISOR,"33,249.99",2012,"","","","MURRAY, ELIZABETH M"
,OFFICE OF THE MINORITY WHIP,2012Q2,PERSONNEL COMPENSATION,"","OCAMPO,MARIA L",04/01/12,05/15/12,MEM SER AND OUTREACH COORDIN,"8,500.00",2012,"","","","OCAMPO,MARIA L"
,OFFICE OF THE MINORITY WHIP,2012Q2,PERSONNEL COMPENSATION,"","OCAMPO,MARIA L",05/01/12,05/15/12,MEM SER AND OUTREACH COORDIN (OTHER COMPENSATION),755.56,2012,"","","","OCAMPO,MARIA L"
,OFFICE OF THE MINORITY WHIP,2012Q2,PERSONNEL COMPENSATION,"","OTT,AMANDA M",05/21/12,06/30/12,MIN STAFF CONS/SPECIAL PROJ (P,"4,444.44",2012,"","","","OTT,AMANDA M"
,OFFICE OF THE MINORITY WHIP,2012Q2,PERSONNEL COMPENSATION,"","REILLY,DANIEL W",04/01/12,06/30/12,PRESS SECRETARY,"2,499.99",2012,"","","","REILLY,DANIEL W"
,OFFICE OF THE MINORITY WHIP,2012Q2,PERSONNEL COMPENSATION,"","REPKO,MARY F",04/01/12,06/30/12,SENIOR POLICY ADVISOR,300.00,2012,"","","","REPKO,MARY F"
,OFFICE OF THE MINORITY WHIP,2012Q2,PERSONNEL COMPENSATION,"","ROMICK, BRIAN",04/01/12,06/30/12,WHIP DIR AND SENIOR ADVISOR,300.00,2012,"","","","ROMICK, BRIAN"
,OFFICE OF THE MINORITY WHIP,2012Q2,PERSONNEL COMPENSATION,"","SAEZ,MARIEL S",04/01/12,05/20/12,PRESS AND RESEARCH ASSISTANT,"6,250.00",2012,"","","","SAEZ,MARIEL S"
,OFFICE OF THE MINORITY WHIP,2012Q2,PERSONNEL COMPENSATION,"","SAEZ,MARIEL S",05/21/12,06/30/12,DEPUTY PRESS SECRETARY,"4,333.33",2012,"","","","SAEZ,MARIEL S"
,OFFICE OF THE MINORITY WHIP,2012Q2,PERSONNEL COMPENSATION,"","SHOTT,DANIEL",04/01/12,06/30/12,FLOOR ASSISTANT,"12,500.01",2012,"","","","SHOTT,DANIEL"
,OFFICE OF THE MINORITY WHIP,2012Q2,PERSONNEL COMPENSATION,"","SIXKILLER, MARIAH S",04/01/12,06/30/12,SENIOR POLICY ADVISOR,"14,499.99",2012,"","","","SIXKILLER, MARIAH S"
,OFFICE OF THE MINORITY WHIP,2012Q2,PERSONNEL COMPENSATION,"","WEISSMANN, ADAM",04/01/12,06/30/12,SPEECHWRITER,"13,749.99",2012,"","","","WEISSMANN, ADAM"
,OFFICE OF THE MINORITY WHIP,2012Q2,TRAVEL,05-18,"AVILES,DANIELLE R",05/10/12,05/10/12,TAXI/PARKING/TOLLS,20.00,2012,AP,Accounts payable,00449195,"AVILES,DANIELLE R"
,OFFICE OF THE MINORITY WHIP,2012Q2,TRAVEL,05-18,"FRY,COURTNEY",05/10/12,05/10/12,TAXI/PARKING/TOLLS,13.00,2012,AP,Accounts payable,00449197,"FRY,COURTNEY"
,OFFICE OF THE MINORITY WHIP,2012Q2,TRAVEL,05-18,"AVILES,DANIELLE R",01/24/12,01/24/12,TAXI/PARKING/TOLLS,13.00,2012,AP,Accounts payable,00449200,"AVILES,DANIELLE R"
,OFFICE OF THE MINORITY WHIP,2012Q2,TRAVEL,05-18,"AVILES,DANIELLE R",01/26/12,01/26/12,TAXI/PARKING/TOLLS,36.00,2012,AP,Accounts payable,00449202,"AVILES,DANIELLE R"
,OFFICE OF THE MINORITY WHIP,2012Q2,TRAVEL,05-18,"AVILES,DANIELLE R",04/25/12,04/25/12,TAXI/PARKING/TOLLS,17.00,2012,AP,Accounts payable,00449204,"AVILES,DANIELLE R"
,OFFICE OF THE MINORITY WHIP,2012Q2,TRAVEL,05-18,"AVILES,DANIELLE R",04/26/12,04/26/12,TAXI/PARKING/TOLLS,17.00,2012,AP,Accounts payable,00449214,"AVILES,DANIELLE R"
,OFFICE OF THE MINORITY WHIP,2012Q2,TRAVEL,05-18,"GHOSH,APRATIM",05/07/12,05/07/12,TAXI/PARKING/TOLLS,12.00,2012,AP,Accounts payable,00449216,"GHOSH,APRATIM"
,OFFICE OF THE MINORITY WHIP,2012Q2,TRAVEL,05-18,"AVILES,DANIELLE R",05/08/12,05/08/12,TAXI/PARKING/TOLLS,20.00,2012,AP,Accounts payable,00449219,"AVILES,DANIELLE R"
,OFFICE OF THE MINORITY WHIP,2012Q2,TRAVEL,05-18,"GENSEMER, ELLIOT J",05/08/12,05/08/12,TAXI/PARKING/TOLLS,15.00,2012,AP,Accounts payable,00449220,"GENSEMER, ELLIOT J"
,OFFICE OF THE MINORITY WHIP,2012Q2,TRAVEL,05-18,"GENSEMER, ELLIOT J",05/09/12,05/09/12,TAXI/PARKING/TOLLS,15.00,2012,AP,Accounts payable,00449221,"GENSEMER, ELLIOT J"
,OFFICE OF THE MINORITY WHIP,2012Q2,TRAVEL,05-18,"AVILES,DANIELLE R",05/09/12,05/09/12,TAXI/PARKING/TOLLS,20.00,2012,AP,Accounts payable,00449222,"AVILES,DANIELLE R"
,OFFICE OF THE MINORITY WHIP,2012Q2,TRAVEL,05-21,"GHOSH,APRATIM",05/10/12,05/10/12,TAXI/PARKING/TOLLS,10.75,2012,AP,Accounts payable,00449196,"GHOSH,APRATIM"
,OFFICE OF THE MINORITY WHIP,2012Q2,TRAVEL,05-21,"GHOSH,APRATIM",05/10/12,05/10/12,TAXI/PARKING/TOLLS,10.00,2012,AP,Accounts payable,00449198,"GHOSH,APRATIM"
,OFFICE OF THE MINORITY WHIP,2012Q2,TRAVEL,05-22,"AVILES,DANIELLE R",05/17/12,05/17/12,TAXI/PARKING/TOLLS,18.00,2012,AP,Accounts payable,00453166,"AVILES,DANIELLE R"
,OFFICE OF THE MINORITY WHIP,2012Q2,TRAVEL,05-22,"GENSEMER, ELLIOT J",05/18/12,05/18/12,TAXI/PARKING/TOLLS,16.00,2012,AP,Accounts payable,00453172,"GENSEMER, ELLIOT J"
,OFFICE OF THE MINORITY WHIP,2012Q2,TRAVEL,06-08,"GHOSH,APRATIM",05/11/12,05/11/12,TAXI/PARKING/TOLLS,10.00,2012,AP,Accounts payable,00462912,"GHOSH,APRATIM"
,OFFICE OF THE MINORITY WHIP,2012Q2,TRAVEL,06-08,"GHOSH,APRATIM",05/15/12,05/15/12,TAXI/PARKING/TOLLS,10.00,2012,AP,Accounts payable,00462914,"GHOSH,APRATIM"
,OFFICE OF THE MINORITY WHIP,2012Q2,TRAVEL,06-08,"GHOSH,APRATIM",05/16/12,05/16/12,TAXI/PARKING/TOLLS,12.00,2012,AP,Accounts payable,00462917,"GHOSH,APRATIM"
,OFFICE OF THE MINORITY WHIP,2012Q2,TRAVEL,06-08,"GHOSH,APRATIM",05/17/12,05/17/12,TAXI/PARKING/TOLLS,10.00,2012,AP,Accounts payable,00462921,"GHOSH,APRATIM"
,OFFICE OF THE MINORITY WHIP,2012Q2,TRAVEL,06-08,"GENSEMER, ELLIOT J",05/30/12,05/30/12,TAXI/PARKING/TOLLS,15.00,2012,AP,Accounts payable,00462924,"GENSEMER, ELLIOT J"
,OFFICE OF THE MINORITY WHIP,2012Q2,TRAVEL,06-25,"GENSEMER, ELLIOT J",06/06/12,06/06/12,TAXI/PARKING/TOLLS,20.00,2012,AP,Accounts payable,00476139,"GENSEMER, ELLIOT J"
,OFFICE OF THE MINORITY WHIP,2012Q2,TRAVEL,06-25,"AVILES,DANIELLE R",06/06/12,06/06/12,TAXI/PARKING/TOLLS,23.00,2012,AP,Accounts payable,00476140,"AVILES,DANIELLE R"
,OFFICE OF THE MINORITY WHIP,2012Q2,TRAVEL,06-25,"AVILES,DANIELLE R",06/07/12,06/07/12,TAXI/PARKING/TOLLS,17.00,2012,AP,Accounts payable,00476147,"AVILES,DANIELLE R"
,OFFICE OF THE MINORITY WHIP,2012Q2,TRAVEL,06-25,"AVILES,DANIELLE R",06/07/12,06/07/12,TAXI/PARKING/TOLLS,15.00,2012,AP,Accounts payable,00476150,"AVILES,DANIELLE R"
,OFFICE OF THE MINORITY WHIP,2012Q2,TRAVEL,06-25,"GENSEMER, ELLIOT J",06/08/12,06/08/12,TAXI/PARKING/TOLLS,19.00,2012,AP,Accounts payable,00476153,"GENSEMER, ELLIOT J"
,OFFICE OF THE MINORITY WHIP,2012Q2,TRAVEL,06-25,"SHOTT,DANIEL",06/08/12,06/08/12,TAXI/PARKING/TOLLS,14.80,2012,AP,Accounts payable,00476157,"SHOTT,DANIEL"
,OFFICE OF THE MINORITY WHIP,2012Q2,"RENT, COMMUNICATION, UTILITIES",04-18,CITIBANK P CARD,02/29/12,03/28/12,TELECOMSRV/EQ/TOLL CHARGE,345.00,2012,AP,Accounts payable,00428265,CITIBANK P CARD
,OFFICE OF THE MINORITY WHIP,2012Q2,"RENT, COMMUNICATION, UTILITIES",05-31,"DWYER, STEPHEN",05/15/12,05/15/12,POSTAGE / COURIER / BOX RENTAL,5.15,2012,AP,Accounts payable,00458150,"DWYER, STEPHEN"
,OFFICE OF THE MINORITY WHIP,2012Q2,PRINTING AND REPRODUCTION,05-25,"",05/01/12,05/31/12,PHOTOGRAPHIC (TRANSFER),6.40,2012,GL,General ledger,PIX0019569,""
,OFFICE OF THE MINORITY WHIP,2012Q2,OTHER SERVICES,04-18,CITIBANK P CARD,02/29/12,03/28/12,NON-TECHNOLOGY SERVICE CONTR,49.00,2012,AP,Accounts payable,00428265,CITIBANK P CARD
,OFFICE OF THE MINORITY WHIP,2012Q2,OTHER SERVICES,05-18,CITIBANK P CARD,03/29/12,04/28/12,NON-TECHNOLOGY SERVICE CONTR,63.97,2012,AP,Accounts payable,00449702,CITIBANK P CARD
,OFFICE OF THE MINORITY WHIP,2012Q2,OTHER SERVICES,05-18,CITIBANK P CARD,03/29/12,04/28/12,LAUNDRY SERVICES,305.58,2012,AP,Accounts payable,00449702,CITIBANK P CARD
,OFFICE OF THE MINORITY WHIP,2012Q2,OTHER SERVICES,06-20,CITIBANK P CARD,04/29/12,05/28/12,LAUNDRY SERVICES,445.62,2012,AP,Accounts payable,00474159,CITIBANK P CARD
,OFFICE OF THE MINORITY WHIP,2012Q2,SUPPLIES AND MATERIALS,04-18,CITIBANK P CARD,02/29/12,03/28/12,FOOD & BEVERAGE,"4,385.13",2012,AP,Accounts payable,00428265,CITIBANK P CARD
,OFFICE OF THE MINORITY WHIP,2012Q2,SUPPLIES AND MATERIALS,04-18,CITIBANK P CARD,02/29/12,03/28/12,HABITATION EXPENSE,78.50,2012,AP,Accounts payable,00428265,CITIBANK P CARD
,OFFICE OF THE MINORITY WHIP,2012Q2,SUPPLIES AND MATERIALS,04-18,CITIBANK P CARD,02/29/12,03/28/12,PUBLICATIONS/REFERENCE MAT'L,37.10,2012,AP,Accounts payable,00428265,CITIBANK P CARD
,OFFICE OF THE MINORITY WHIP,2012Q2,SUPPLIES AND MATERIALS,05-18,"GHOSH,APRATIM",04/26/12,04/26/12,PUBLICATIONS/REFERENCE MAT'L,29.73,2012,AP,Accounts payable,00449212,"GHOSH,APRATIM"
,OFFICE OF THE MINORITY WHIP,2012Q2,SUPPLIES AND MATERIALS,05-18,CITIBANK P CARD,03/29/12,04/28/12,FOOD & BEVERAGE,"3,166.64",2012,AP,Accounts payable,00449702,CITIBANK P CARD
,OFFICE OF THE MINORITY WHIP,2012Q2,SUPPLIES AND MATERIALS,05-18,CITIBANK P CARD,03/29/12,04/28/12,PUBLICATIONS/REFERENCE MAT'L,37.10,2012,AP,Accounts payable,00449702,CITIBANK P CARD
,OFFICE OF THE MINORITY WHIP,2012Q2,SUPPLIES AND MATERIALS,05-22,CAPITOLHOST,04/26/12,04/26/12,FOOD & BEVERAGE,28.20,2012,AP,Accounts payable,00453158,CAPITOLHOST
,OFFICE OF THE MINORITY WHIP,2012Q2,SUPPLIES AND MATERIALS,05-22,PANERA BREAD COMPANY,04/27/12,04/27/12,FOOD & BEVERAGE,136.81,2012,AP,Accounts payable,00453161,PANERA BREAD COMPANY
,OFFICE OF THE MINORITY WHIP,2012Q2,SUPPLIES AND MATERIALS,05-22,CAPITOL HOST,04/27/12,04/27/12,FOOD & BEVERAGE,42.30,2012,AP,Accounts payable,00453163,CAPITOL HOST
,OFFICE OF THE MINORITY WHIP,2012Q2,SUPPLIES AND MATERIALS,05-22,PANERA BREAD COMPANY,04/17/12,04/17/12,FOOD & BEVERAGE,52.47,2012,AP,Accounts payable,00453177,PANERA BREAD COMPANY
,OFFICE OF THE MINORITY WHIP,2012Q2,SUPPLIES AND MATERIALS,05-22,CAPITOLHOST,04/18/12,04/18/12,FOOD & BEVERAGE,89.99,2012,AP,Accounts payable,00453183,CAPITOLHOST
,OFFICE OF THE MINORITY WHIP,2012Q2,SUPPLIES AND MATERIALS,05-22,CAPITOLHOST,04/19/12,04/19/12,FOOD & BEVERAGE,28.20,2012,AP,Accounts payable,00453186,CAPITOLHOST
,OFFICE OF THE MINORITY WHIP,2012Q2,SUPPLIES AND MATERIALS,05-22,CAPITOLHOST,04/20/12,04/20/12,FOOD & BEVERAGE,42.30,2012,AP,Accounts payable,00453190,CAPITOLHOST
,OFFICE OF THE MINORITY WHIP,2012Q2,SUPPLIES AND MATERIALS,05-22,PANERA BREAD COMPANY,04/20/12,04/20/12,FOOD & BEVERAGE,84.34,2012,AP,Accounts payable,00453195,PANERA BREAD COMPANY
,OFFICE OF THE MINORITY WHIP,2012Q2,SUPPLIES AND MATERIALS,06-08,PANERA BREAD COMPANY,05/08/12,05/08/12,FOOD & BEVERAGE,80.45,2012,AP,Accounts payable,00462892,PANERA BREAD COMPANY
,OFFICE OF THE MINORITY WHIP,2012Q2,SUPPLIES AND MATERIALS,06-08,PANERA BREAD COMPANY,05/09/12,05/09/12,FOOD & BEVERAGE,205.88,2012,AP,Accounts payable,00462897,PANERA BREAD COMPANY
,OFFICE OF THE MINORITY WHIP,2012Q2,SUPPLIES AND MATERIALS,06-08,CAPITOLHOST,05/09/12,05/09/12,FOOD & BEVERAGE,89.99,2012,AP,Accounts payable,00462901,CAPITOLHOST
,OFFICE OF THE MINORITY WHIP,2012Q2,SUPPLIES AND MATERIALS,06-08,CAPITOLHOST,05/10/12,05/10/12,FOOD & BEVERAGE,28.20,2012,AP,Accounts payable,00462905,CAPITOLHOST
,OFFICE OF THE MINORITY WHIP,2012Q2,SUPPLIES AND MATERIALS,06-08,CAPITOLHOST,05/11/12,05/11/12,FOOD & BEVERAGE,42.30,2012,AP,Accounts payable,00462908,CAPITOLHOST
,OFFICE OF THE MINORITY WHIP,2012Q2,SUPPLIES AND MATERIALS,06-19,CAPITOLHOST,05/31/12,05/31/12,FOOD & BEVERAGE,28.20,2012,AP,Accounts payable,00473535,CAPITOLHOST
,OFFICE OF THE MINORITY WHIP,2012Q2,SUPPLIES AND MATERIALS,06-19,PANERA BREAD COMPANY,05/31/12,05/31/12,FOOD & BEVERAGE,80.45,2012,AP,Accounts payable,00473536,PANERA BREAD COMPANY
,OFFICE OF THE MINORITY WHIP,2012Q2,SUPPLIES AND MATERIALS,06-19,PANERA BREAD COMPANY,05/11/12,05/11/12,FOOD & BEVERAGE,99.34,2012,AP,Accounts payable,00473538,PANERA BREAD COMPANY
,OFFICE OF THE MINORITY WHIP,2012Q2,SUPPLIES AND MATERIALS,06-19,PANERA BREAD COMPANY,05/16/12,05/16/12,FOOD & BEVERAGE,205.88,2012,AP,Accounts payable,00473540,PANERA BREAD COMPANY
,OFFICE OF THE MINORITY WHIP,2012Q2,SUPPLIES AND MATERIALS,06-19,CAPITOLHOST,05/17/12,05/17/12,FOOD & BEVERAGE,27.20,2012,AP,Accounts payable,00473542,CAPITOLHOST
,OFFICE OF THE MINORITY WHIP,2012Q2,SUPPLIES AND MATERIALS,06-19,CAPITOLHOST,05/18/12,05/18/12,FOOD & BEVERAGE,42.30,2012,AP,Accounts payable,00473546,CAPITOLHOST
,OFFICE OF THE MINORITY WHIP,2012Q2,SUPPLIES AND MATERIALS,06-19,PANERA BREAD COMPANY,05/18/12,05/18/12,FOOD & BEVERAGE,99.34,2012,AP,Accounts payable,00473549,PANERA BREAD COMPANY
,OFFICE OF THE MINORITY WHIP,2012Q2,SUPPLIES AND MATERIALS,06-20,CITIBANK P CARD,04/29/12,05/28/12,FOOD & BEVERAGE,"4,333.23",2012,AP,Accounts payable,00474159,CITIBANK P CARD
,OFFICE OF THE MINORITY WHIP,2012Q2,SUPPLIES AND MATERIALS,06-20,CITIBANK P CARD,04/29/12,05/28/12,OFFICE SUPPLIES (OUTSIDE),995.00,2012,AP,Accounts payable,00474159,CITIBANK P CARD
,OFFICE OF THE MINORITY WHIP,2012Q2,SUPPLIES AND MATERIALS,06-20,CITIBANK P CARD,04/29/12,05/28/12,PUBLICATIONS/REFERENCE MAT'L,723.56,2012,AP,Accounts payable,00474159,CITIBANK P CARD
,DEMOCRATIC CAUCUS,2012Q2,FRANKED MAIL,04-26,UNITED STATES POSTAL SERVICE,03/01/12,03/31/12,FRANKED MAIL,1.80,2012,AP,Accounts payable,00433153,UNITED STATES POSTAL SERVICE
,DEMOCRATIC CAUCUS,2012Q2,FRANKED MAIL,06-22,UNITED STATES POSTAL SERVICE,05/01/12,05/31/12,FRANKED MAIL,1.35,2012,AP,Accounts payable,00475713,UNITED STATES POSTAL SERVICE
,DEMOCRATIC CAUCUS,2012Q2,PERSONNEL COMPENSATION,"","ANDRES,DON CHRIS M",06/01/12,06/30/12,STAFF ASSISTANT,"2,583.33",2012,"","","","ANDRES,DON CHRIS M"
,DEMOCRATIC CAUCUS,2012Q2,PERSONNEL COMPENSATION,"","BANJAC,SRDAN",04/01/12,06/30/12,ASSISTANT TO THE CHAIRMAN,"14,750.01",2012,"","","","BANJAC,SRDAN"
,DEMOCRATIC CAUCUS,2012Q2,PERSONNEL COMPENSATION,"","BRACHMAN, ELLIS A",04/01/12,06/30/12,COMMUNICATIONS DIRECTOR,"27,000.00",2012,"","","","BRACHMAN, ELLIS A"
,DEMOCRATIC CAUCUS,2012Q2,PERSONNEL COMPENSATION,"","CASCA,MICHAEL A",04/01/12,06/30/12,PRESS ASSISTANT,"7,500.00",2012,"","","","CASCA,MICHAEL A"
,DEMOCRATIC CAUCUS,2012Q2,PERSONNEL COMPENSATION,"","CASCA,MICHAEL A",06/01/12,06/30/12,PRESS ASSISTANT (OTHER COMPENSATION),750.00,2012,"","","","CASCA,MICHAEL A"
,DEMOCRATIC CAUCUS,2012Q2,PERSONNEL COMPENSATION,"","DAGADAKIS,STAMATIOS",04/01/12,04/30/12,SHARED EMPLOYEE,"4,791.67",2012,"","","","DAGADAKIS,STAMATIOS"
,DEMOCRATIC CAUCUS,2012Q2,PERSONNEL COMPENSATION,"","DAGADAKIS,STAMATIOS",05/01/12,06/30/12,DEPUTY EXEC DIRECTOR,"15,000.00",2012,"","","","DAGADAKIS,STAMATIOS"
,DEMOCRATIC CAUCUS,2012Q2,PERSONNEL COMPENSATION,"","DE PUY,GERALDINE M",04/01/12,06/30/12,CORRESPONDENCE ASSISTANT,"10,958.34",2012,"","","","DE PUY,GERALDINE M"
,DEMOCRATIC CAUCUS,2012Q2,PERSONNEL COMPENSATION,"","DELANEY, ERIC L",04/01/12,05/07/12,MEMBER OUTREACH ASST-VICE CHR,"4,522.23",2012,"","","","DELANEY, ERIC L"
,DEMOCRATIC CAUCUS,2012Q2,PERSONNEL COMPENSATION,"","DELANEY, ERIC L",05/08/12,06/30/12,SR MBR OUTREACH ASST,"7,361.11",2012,"","","","DELANEY, ERIC L"
,DEMOCRATIC CAUCUS,2012Q2,PERSONNEL COMPENSATION,"","ESPARZA DIGGS,IRMA Y",04/02/12,06/30/12,EXECUTIVE DIRECTOR,"37,527.78",2012,"","","","ESPARZA DIGGS,IRMA Y"
,DEMOCRATIC CAUCUS,2012Q2,PERSONNEL COMPENSATION,"","FRAZIER, MATTHEW",04/02/12,06/30/12,MEDIA FELLOW,"5,933.33",2012,"","","","FRAZIER, MATTHEW"
,DEMOCRATIC CAUCUS,2012Q2,PERSONNEL COMPENSATION,"","GLEESON,JAMES M",04/01/12,06/30/12,PRESS SEC FOR THE VICE CHAIR,"13,225.49",2012,"","","","GLEESON,JAMES M"
,DEMOCRATIC CAUCUS,2012Q2,PERSONNEL COMPENSATION,"","GONZALES, MELONDY S",04/01/12,06/30/12,DIR OF MBR OUTREACH-VICE CHAIR,"14,950.00",2012,"","","","GONZALES, MELONDY S"
,DEMOCRATIC CAUCUS,2012Q2,PERSONNEL COMPENSATION,"","GRADY,KATHERINE K",04/01/12,06/30/12,POLICY & OUTREACH COORDINATOR,"11,083.33",2012,"","","","GRADY,KATHERINE K"
,DEMOCRATIC CAUCUS,2012Q2,PERSONNEL COMPENSATION,"","JAWORSKI, KIMBERLY H",04/01/12,06/30/12,EVENTS AND PROJECTS COORDINATO,"14,166.67",2012,"","","","JAWORSKI, KIMBERLY H"
,DEMOCRATIC CAUCUS,2012Q2,PERSONNEL COMPENSATION,"","KISSINGER,JUSTIN A",04/01/12,06/30/12,COUNSEL,"23,333.34",2012,"","","","KISSINGER,JUSTIN A"
,DEMOCRATIC CAUCUS,2012Q2,PERSONNEL COMPENSATION,"","LAWSON, ANITA S",04/01/12,06/30/12,FINANCIAL ADMINISTRATOR,"6,249.99",2012,"","","","LAWSON, ANITA S"
,DEMOCRATIC CAUCUS,2012Q2,PERSONNEL COMPENSATION,"","LEE,SYLVIA",04/01/12,06/30/12,STAFF ASSISTANT,"5,083.33",2012,"","","","LEE,SYLVIA"
,DEMOCRATIC CAUCUS,2012Q2,PERSONNEL COMPENSATION,"","MCCLUSKIE,SEAN E",04/01/12,06/30/12,STAFF DIR FOR THE VICE CHAIR,"28,924.00",2012,"","","","MCCLUSKIE,SEAN E"
,DEMOCRATIC CAUCUS,2012Q2,PERSONNEL COMPENSATION,"","MCMAHON,KYLE A",04/01/12,06/30/12,PRESS ASSISTANT,"8,750.01",2012,"","","","MCMAHON,KYLE A"
,DEMOCRATIC CAUCUS,2012Q2,PERSONNEL COMPENSATION,"","PEREZ-SANCHEZ,NOEL",06/01/12,06/30/12,MEMBER OUTREACH ASSISTANT,"3,333.33",2012,"","","","PEREZ-SANCHEZ,NOEL"
,DEMOCRATIC CAUCUS,2012Q2,PERSONNEL COMPENSATION,"","PERONACE,ANTONIO",04/01/12,06/30/12,CREATIVE DIRECTOR,"20,000.01",2012,"","","","PERONACE,ANTONIO"
,DEMOCRATIC CAUCUS,2012Q2,PERSONNEL COMPENSATION,"","PLATT,ANDREW J",04/01/12,06/30/12,RESEARCH & TECHNOLOGY ASST,"7,875.01",2012,"","","","PLATT,ANDREW J"
,DEMOCRATIC CAUCUS,2012Q2,PERSONNEL COMPENSATION,"","RESENDENZ,MARVENE R",04/01/12,06/30/12,EXECUTIVE ASSISTANT/SCHEDULER,"15,833.34",2012,"","","","RESENDENZ,MARVENE R"
,DEMOCRATIC CAUCUS,2012Q2,PERSONNEL COMPENSATION,"","RODRIGUEZ-OLVERA,LORENZO A",04/01/12,05/04/12,MEMBER OUTREACH ASST-VICE CHR,"3,730.56",2012,"","","","RODRIGUEZ-OLVERA,LORENZO A"
,DEMOCRATIC CAUCUS,2012Q2,PERSONNEL COMPENSATION,"","RODRIGUEZ-OLVERA,LORENZO A",05/01/12,05/04/12,MEMBER OUTREACH ASST-VICE CHR (OTHER COMPENSATION),"1,426.39",2012,"","","","RODRIGUEZ-OLVERA,LORENZO A"
,DEMOCRATIC CAUCUS,2012Q2,PERSONNEL COMPENSATION,"","RUBINO,SHELLEY M",04/01/12,04/02/12,ADVISOR TO THE CHAIRMAN,951.67,2012,"","","","RUBINO,SHELLEY M"
,DEMOCRATIC CAUCUS,2012Q2,PERSONNEL COMPENSATION,"","RUBINO,SHELLEY M",04/01/12,04/02/12,ADVISOR TO THE CHAIRMAN (OTHER COMPENSATION),"13,323.33",2012,"","","","RUBINO,SHELLEY M"
,DEMOCRATIC CAUCUS,2012Q2,PERSONNEL COMPENSATION,"","RUDD,DIANA",04/01/12,06/30/12,STAFF ASSISTANT,"7,999.99",2012,"","","","RUDD,DIANA"
,DEMOCRATIC CAUCUS,2012Q2,PERSONNEL COMPENSATION,"","SITCOVSKY,DAVID",05/01/12,06/30/12,SHARED EMPLOYEE,"1,666.66",2012,"","","","SITCOVSKY,DAVID"
,DEMOCRATIC CAUCUS,2012Q2,PERSONNEL COMPENSATION,"","SLATER,LEE",04/01/12,04/30/12,SHARED EMPLOYEE,"9,000.00",2012,"","","","SLATER,LEE"
,DEMOCRATIC CAUCUS,2012Q2,PERSONNEL COMPENSATION,"","SLATER,LEE",05/01/12,06/30/12,CHIEF OF STAFF,"20,000.00",2012,"","","","SLATER,LEE"
,DEMOCRATIC CAUCUS,2012Q2,PRINTING AND REPRODUCTION,05-25,"",05/01/12,05/31/12,PHOTOGRAPHIC (TRANSFER),72.40,2012,GL,General ledger,PIX0019569,""
,DEMOCRATIC CAUCUS,2012Q2,OTHER SERVICES,05-18,CITIBANK P CARD,03/29/12,04/28/12,LAUNDRY SERVICES,190.80,2012,AP,Accounts payable,00449702,CITIBANK P CARD
,DEMOCRATIC CAUCUS,2012Q2,OTHER SERVICES,06-20,CITIBANK P CARD,04/29/12,05/28/12,LAUNDRY SERVICES,234.26,2012,AP,Accounts payable,00474159,CITIBANK P CARD
,DEMOCRATIC CAUCUS,2012Q2,SUPPLIES AND MATERIALS,04-18,BOISE CASCADE,03/31/12,03/31/12,OFFICE SUPPLIES (OUTSIDE),50.16,2012,AP,Accounts payable,00418971,BOISE CASCADE
,DEMOCRATIC CAUCUS,2012Q2,SUPPLIES AND MATERIALS,04-26,"RUDD, DIANA",03/26/12,03/26/12,FOOD & BEVERAGE,142.55,2012,AP,Accounts payable,00433653,"RUDD, DIANA"
,DEMOCRATIC CAUCUS,2012Q2,SUPPLIES AND MATERIALS,04-26,"RUBINO,SHELLEY M",03/28/12,03/28/12,FOOD & BEVERAGE,531.08,2012,AP,Accounts payable,00433658,"RUBINO,SHELLEY M"
,DEMOCRATIC CAUCUS,2012Q2,SUPPLIES AND MATERIALS,04-26,"BANJAC,SRDAN",03/27/12,03/27/12,FOOD & BEVERAGE,8.25,2012,AP,Accounts payable,00433661,"BANJAC,SRDAN"
,DEMOCRATIC CAUCUS,2012Q2,SUPPLIES AND MATERIALS,04-26,CAPITOL VALET,03/21/12,03/21/12,HABITATION EXPENSE,84.80,2012,AP,Accounts payable,00433664,CAPITOL VALET
,DEMOCRATIC CAUCUS,2012Q2,SUPPLIES AND MATERIALS,05-08,"RUBINO,SHELLEY M",02/12/12,02/12/12,FOOD & BEVERAGE,527.90,2012,AP,Accounts payable,00440756,"RUBINO,SHELLEY M"
,DEMOCRATIC CAUCUS,2012Q2,SUPPLIES AND MATERIALS,05-18,CITIBANK P CARD,03/29/12,04/28/12,FOOD & BEVERAGE,300.49,2012,AP,Accounts payable,00449702,CITIBANK P CARD
,DEMOCRATIC CAUCUS,2012Q2,SUPPLIES AND MATERIALS,06-13,"RESENDEZ, MARVENE R",04/24/12,04/24/12,HABITATION EXPENSE,26.24,2012,AP,Accounts payable,00466012,"RESENDEZ, MARVENE R"
,DEMOCRATIC CAUCUS,2012Q2,SUPPLIES AND MATERIALS,06-13,"BRACHMAN, ELLIS A",04/24/12,04/24/12,FOOD & BEVERAGE,65.98,2012,AP,Accounts payable,00466034,"BRACHMAN, ELLIS A"
,DEMOCRATIC CAUCUS,2012Q2,SUPPLIES AND MATERIALS,06-20,CITIBANK P CARD,04/29/12,05/28/12,FOOD & BEVERAGE,350.50,2012,AP,Accounts payable,00474159,CITIBANK P CARD
,DEMOCRATIC CAUCUS,2012Q2,SUPPLIES AND MATERIALS,06-20,CITIBANK P CARD,04/29/12,05/28/12,OFFICE SUPPLIES (OUTSIDE),"1,505.75",2012,AP,Accounts payable,00474159,CITIBANK P CARD
,REPUBLICAN CONFERENCE,2012Q2,PERSONNEL COMPENSATION,"","BAKER,GREGORY S",05/19/12,06/30/12,REGIONAL REPRESENTATIVE,"3,500.00",2012,"","","","BAKER,GREGORY S"
,REPUBLICAN CONFERENCE,2012Q2,PERSONNEL COMPENSATION,"","BEDARD,EDWARD A",05/19/12,06/30/12,STAFF ASSISTANT,"3,500.00",2012,"","","","BEDARD,EDWARD A"
,REPUBLICAN CONFERENCE,2012Q2,PERSONNEL COMPENSATION,"","BROWN, CHELSEA E",04/01/12,06/30/12,DIR OPS/DEP DIR MBR SERV&EVENT,"21,249.99",2012,"","","","BROWN, CHELSEA E"
,REPUBLICAN CONFERENCE,2012Q2,PERSONNEL COMPENSATION,"","BUCHANAN, MICHAEL D",04/01/12,06/30/12,CHIEF OF STAFF (STATUTORY),"43,125.00",2012,"","","","BUCHANAN, MICHAEL D"
,REPUBLICAN CONFERENCE,2012Q2,PERSONNEL COMPENSATION,"","COLLIGAN,DYLAN H",04/01/12,06/30/12,STAFF ASSISTANT,"8,250.00",2012,"","","","COLLIGAN,DYLAN H"
,REPUBLICAN CONFERENCE,2012Q2,PERSONNEL COMPENSATION,"","HESTER,THOMAS M",04/01/12,04/15/12,STAFF ASSISTANT,"1,083.33",2012,"","","","HESTER,THOMAS M"
,REPUBLICAN CONFERENCE,2012Q2,PERSONNEL COMPENSATION,"","HILER,JONATHAN D",04/01/12,06/30/12,POLICY ADVISOR,"13,250.01",2012,"","","","HILER,JONATHAN D"
,REPUBLICAN CONFERENCE,2012Q2,PERSONNEL COMPENSATION,"","KLINGLER,HANS J",04/01/12,06/30/12,DEPUTY CHIEF OF STAFF,"38,124.99",2012,"","","","KLINGLER,HANS J"
,REPUBLICAN CONFERENCE,2012Q2,PERSONNEL COMPENSATION,"","KOENIG,ANDREW D",04/01/12,06/30/12,DEPUTY POLICY DIRECTOR,"18,750.00",2012,"","","","KOENIG,ANDREW D"
,REPUBLICAN CONFERENCE,2012Q2,PERSONNEL COMPENSATION,"","MAKIN, SARAH E",04/01/12,06/30/12,"SR POL ADV, DIR OF COALITIONS","16,749.99",2012,"","","","MAKIN, SARAH E"
,REPUBLICAN CONFERENCE,2012Q2,PERSONNEL COMPENSATION,"","MEEKS,DARIS",04/01/12,06/30/12,POLICY DIRECTOR,"24,999.99",2012,"","","","MEEKS,DARIS"
,REPUBLICAN CONFERENCE,2012Q2,PERSONNEL COMPENSATION,"","PATRU, KATHRYN M",04/01/12,06/30/12,DIR OF MEMBER SERVICES,"35,000.01",2012,"","","","PATRU, KATHRYN M"
,REPUBLICAN CONFERENCE,2012Q2,PERSONNEL COMPENSATION,"","PINEGAR,PHILLIP",04/01/12,06/30/12,STAFF ASSISTANT,"7,500.00",2012,"","","","PINEGAR,PHILLIP"
,REPUBLICAN CONFERENCE,2012Q2,PERSONNEL COMPENSATION,"","POPP, DAVID M",04/01/12,06/30/12,DEPUTY COMMUNICATIONS DIRECTOR,"16,250.01",2012,"","","","POPP, DAVID M"
,REPUBLICAN CONFERENCE,2012Q2,PERSONNEL COMPENSATION,"","QUALTERE,THOMAS A",04/01/12,06/30/12,SPEECHWRITER,"10,500.00",2012,"","","","QUALTERE,THOMAS A"
,REPUBLICAN CONFERENCE,2012Q2,PERSONNEL COMPENSATION,"","RABBITT,CAROLINE",04/01/12,06/30/12,DEPUTY PRESS SECRETARY,"10,500.00",2012,"","","","RABBITT,CAROLINE"
,REPUBLICAN CONFERENCE,2012Q2,PERSONNEL COMPENSATION,"","ROSENFELD,DAVID M",04/01/12,06/30/12,SENIOR HEALTH COUNSEL,"11,833.33",2012,"","","","ROSENFELD,DAVID M"
,REPUBLICAN CONFERENCE,2012Q2,PERSONNEL COMPENSATION,"","SUTTON,CLAY",04/01/12,06/30/12,PRESS ASSISTANT,"7,744.44",2012,"","","","SUTTON,CLAY"
,REPUBLICAN CONFERENCE,2012Q2,PERSONNEL COMPENSATION,"","TOMBERLIN, MICHAEL",04/01/12,04/06/12,SENIOR ADVISOR,300.00,2012,"","","","TOMBERLIN, MICHAEL"
,REPUBLICAN CONFERENCE,2012Q2,TRAVEL,05-04,"MAKIN, SARAH E",03/21/12,03/21/12,TAXI/PARKING/TOLLS,30.00,2012,AP,Accounts payable,00438937,"MAKIN, SARAH E"
,REPUBLICAN CONFERENCE,2012Q2,TRAVEL,05-04,"MAKIN, SARAH E",03/28/12,03/28/12,TAXI/PARKING/TOLLS,11.00,2012,AP,Accounts payable,00438938,"MAKIN, SARAH E"
,REPUBLICAN CONFERENCE,2012Q2,TRAVEL,05-04,"MAKIN, SARAH E",03/29/12,03/29/12,TAXI/PARKING/TOLLS,17.00,2012,AP,Accounts payable,00438939,"MAKIN, SARAH E"
,REPUBLICAN CONFERENCE,2012Q2,TRAVEL,05-04,"MAKIN, SARAH E",04/04/12,04/04/12,TAXI/PARKING/TOLLS,12.00,2012,AP,Accounts payable,00438940,"MAKIN, SARAH E"
,REPUBLICAN CONFERENCE,2012Q2,TRAVEL,05-04,"MAKIN, SARAH E",04/18/12,04/18/12,TAXI/PARKING/TOLLS,24.00,2012,AP,Accounts payable,00438941,"MAKIN, SARAH E"
,REPUBLICAN CONFERENCE,2012Q2,"RENT, COMMUNICATION, UTILITIES",05-04,KUSA GANNETT CO INC,03/21/12,03/21/12,RECORDING (OUTSIDE),250.00,2012,AP,Accounts payable,00438105,KUSA GANNETT CO INC
,REPUBLICAN CONFERENCE,2012Q2,"RENT, COMMUNICATION, UTILITIES",05-04,WEST COAST MEDIA,04/13/12,04/13/12,RECORDING (OUTSIDE),"2,125.00",2012,AP,Accounts payable,00438107,WEST COAST MEDIA
,REPUBLICAN CONFERENCE,2012Q2,PRINTING AND REPRODUCTION,06-20,CITIBANK P CARD,04/29/12,05/28/12,PRINTING & REPRODUCTION,"1,547.77",2012,AP,Accounts payable,00474159,CITIBANK P CARD
,REPUBLICAN CONFERENCE,2012Q2,PRINTING AND REPRODUCTION,06-25,SHARP ELECTRONICS CORP,01/01/12,04/01/12,PRINTING & REPRODUCTION,"2,253.00",2012,AP,Accounts payable,00476070,SHARP ELECTRONICS CORP
,REPUBLICAN CONFERENCE,2012Q2,OTHER SERVICES,04-18,CITIBANK P CARD,02/29/12,03/28/12,NON-TECHNOLOGY SERVICE CONTR,5.95,2012,AP,Accounts payable,00428265,CITIBANK P CARD
,REPUBLICAN CONFERENCE,2012Q2,OTHER SERVICES,05-18,CITIBANK P CARD,03/29/12,04/28/12,NON-TECHNOLOGY SERVICE CONTR,130.95,2012,AP,Accounts payable,00449702,CITIBANK P CARD
,REPUBLICAN CONFERENCE,2012Q2,SUPPLIES AND MATERIALS,04-16,"KENDRICK, ALEXANDRA",02/16/12,02/16/12,FOOD & BEVERAGE,19.07,2012,AP,Accounts payable,00422219,"KENDRICK, ALEXANDRA"
,REPUBLICAN CONFERENCE,2012Q2,SUPPLIES AND MATERIALS,04-16,"CRAWFORD, CHRISTOPHER K",02/15/12,02/15/12,FOOD & BEVERAGE,29.68,2012,AP,Accounts payable,00422222,"CRAWFORD, CHRISTOPHER K"
,REPUBLICAN CONFERENCE,2012Q2,SUPPLIES AND MATERIALS,04-16,"CRAWFORD, CHRISTOPHER K",02/09/12,02/09/12,FOOD & BEVERAGE,17.64,2012,AP,Accounts payable,00422224,"CRAWFORD, CHRISTOPHER K"
,REPUBLICAN CONFERENCE,2012Q2,SUPPLIES AND MATERIALS,04-16,"CRAWFORD, CHRISTOPHER K",02/08/12,02/08/12,FOOD & BEVERAGE,36.40,2012,AP,Accounts payable,00422225,"CRAWFORD, CHRISTOPHER K"
,REPUBLICAN CONFERENCE,2012Q2,SUPPLIES AND MATERIALS,04-16,CAPITOLHOST,03/07/12,03/07/12,FOOD & BEVERAGE,740.00,2012,AP,Accounts payable,00422226,CAPITOLHOST
,REPUBLICAN CONFERENCE,2012Q2,SUPPLIES AND MATERIALS,04-16,"CRAWFORD, CHRISTOPHER K",03/29/12,03/29/12,FOOD & BEVERAGE,15.90,2012,AP,Accounts payable,00422227,"CRAWFORD, CHRISTOPHER K"
,REPUBLICAN CONFERENCE,2012Q2,SUPPLIES AND MATERIALS,04-16,"CRAWFORD, CHRISTOPHER K",03/28/12,03/28/12,FOOD & BEVERAGE,28.85,2012,AP,Accounts payable,00422229,"CRAWFORD, CHRISTOPHER K"
,REPUBLICAN CONFERENCE,2012Q2,SUPPLIES AND MATERIALS,04-16,"CRAWFORD, CHRISTOPHER K",03/21/12,03/21/12,FOOD & BEVERAGE,53.64,2012,AP,Accounts payable,00422231,"CRAWFORD, CHRISTOPHER K"
,REPUBLICAN CONFERENCE,2012Q2,SUPPLIES AND MATERIALS,04-16,"CRAWFORD, CHRISTOPHER K",03/08/12,03/08/12,FOOD & BEVERAGE,15.89,2012,AP,Accounts payable,00422233,"CRAWFORD, CHRISTOPHER K"
,REPUBLICAN CONFERENCE,2012Q2,SUPPLIES AND MATERIALS,04-16,"CRAWFORD, CHRISTOPHER K",03/07/12,03/07/12,FOOD & BEVERAGE,24.28,2012,AP,Accounts payable,00422236,"CRAWFORD, CHRISTOPHER K"
,REPUBLICAN CONFERENCE,2012Q2,SUPPLIES AND MATERIALS,04-16,"BALDWIN, MONYA",03/01/12,03/01/12,FOOD & BEVERAGE,34.41,2012,AP,Accounts payable,00422238,"BALDWIN, MONYA"
,REPUBLICAN CONFERENCE,2012Q2,SUPPLIES AND MATERIALS,04-16,"KENDRICK, ALEXANDRA",03/01/12,03/01/12,FOOD & BEVERAGE,23.23,2012,AP,Accounts payable,00422240,"KENDRICK, ALEXANDRA"
,REPUBLICAN CONFERENCE,2012Q2,SUPPLIES AND MATERIALS,04-18,CITIBANK P CARD,02/29/12,03/28/12,FOOD & BEVERAGE,"2,053.70",2012,AP,Accounts payable,00428265,CITIBANK P CARD
,REPUBLICAN CONFERENCE,2012Q2,SUPPLIES AND MATERIALS,05-04,CAPITOLHOST,03/20/12,03/20/12,FOOD & BEVERAGE,740.00,2012,AP,Accounts payable,00437679,CAPITOLHOST
,REPUBLICAN CONFERENCE,2012Q2,SUPPLIES AND MATERIALS,05-04,CAPITOLHOST,03/27/12,03/27/12,FOOD & BEVERAGE,740.00,2012,AP,Accounts payable,00437683,CAPITOLHOST
,REPUBLICAN CONFERENCE,2012Q2,SUPPLIES AND MATERIALS,05-18,CITIBANK P CARD,03/29/12,04/28/12,FOOD & BEVERAGE,"1,191.63",2012,AP,Accounts payable,00449702,CITIBANK P CARD
,REPUBLICAN CONFERENCE,2012Q2,SUPPLIES AND MATERIALS,05-18,CITIBANK P CARD,03/29/12,04/28/12,PUBLICATIONS/REFERENCE MAT'L,32.73,2012,AP,Accounts payable,00449702,CITIBANK P CARD
,REPUBLICAN CONFERENCE,2012Q2,SUPPLIES AND MATERIALS,06-14,"BROWN, CHELSEA E",06/04/12,06/04/12,FOOD & BEVERAGE,264.86,2012,AP,Accounts payable,00465791,"BROWN, CHELSEA E"
,REPUBLICAN CONFERENCE,2012Q2,SUPPLIES AND MATERIALS,06-14,"BROWN, CHELSEA E",06/04/12,06/04/12,FOOD & BEVERAGE,917.69,2012,AP,Accounts payable,00465796,"BROWN, CHELSEA E"
,REPUBLICAN CONFERENCE,2012Q2,SUPPLIES AND MATERIALS,06-14,"BROWN, CHELSEA E",06/01/12,06/01/12,FOOD & BEVERAGE,14.58,2012,AP,Accounts payable,00465801,"BROWN, CHELSEA E"
,REPUBLICAN CONFERENCE,2012Q2,SUPPLIES AND MATERIALS,06-14,"BROWN, CHELSEA E",05/17/12,05/17/12,FOOD & BEVERAGE,4.72,2012,AP,Accounts payable,00465804,"BROWN, CHELSEA E"
,REPUBLICAN CONFERENCE,2012Q2,SUPPLIES AND MATERIALS,06-14,"BROWN, CHELSEA E",05/10/12,05/10/12,FOOD & BEVERAGE,6.30,2012,AP,Accounts payable,00465807,"BROWN, CHELSEA E"
,REPUBLICAN CONFERENCE,2012Q2,SUPPLIES AND MATERIALS,06-14,"SHADOW TV, INC",07/01/12,09/30/12,PUBLICATIONS/REFERENCE MAT'L,"1,500.00",2012,AP,Accounts payable,00466006,"SHADOW TV, INC"
,REPUBLICAN CONFERENCE,2012Q2,SUPPLIES AND MATERIALS,06-20,CAPITOLHOST,05/08/12,05/08/12,FOOD & BEVERAGE,740.00,2012,AP,Accounts payable,00473369,CAPITOLHOST
,REPUBLICAN CONFERENCE,2012Q2,SUPPLIES AND MATERIALS,06-20,CITIBANK P CARD,04/29/12,05/28/12,FOOD & BEVERAGE,"1,100.20",2012,AP,Accounts payable,00474159,CITIBANK P CARD
,REPUBLICAN CONFERENCE,2012Q2,SUPPLIES AND MATERIALS,06-20,"KENDRICK, ALEXANDRA",05/17/12,05/17/12,FOOD & BEVERAGE,12.72,2012,AP,Accounts payable,00474565,"KENDRICK, ALEXANDRA"
,REPUBLICAN CONFERENCE,2012Q2,SUPPLIES AND MATERIALS,06-20,"KENDRICK, ALEXANDRA",05/10/12,05/10/12,FOOD & BEVERAGE,12.67,2012,AP,Accounts payable,00474568,"KENDRICK, ALEXANDRA"
,REPUBLICAN CONFERENCE,2012Q2,SUPPLIES AND MATERIALS,06-20,"KENDRICK, ALEXANDRA",04/18/12,04/18/12,FOOD & BEVERAGE,49.50,2012,AP,Accounts payable,00474569,"KENDRICK, ALEXANDRA"
,REPUBLICAN CONFERENCE,2012Q2,SUPPLIES AND MATERIALS,06-20,"KENDRICK, ALEXANDRA",04/26/12,04/26/12,FOOD & BEVERAGE,15.89,2012,AP,Accounts payable,00474571,"KENDRICK, ALEXANDRA"
,REPUBLICAN CONFERENCE,2012Q2,SUPPLIES AND MATERIALS,06-20,"KENDRICK, ALEXANDRA",03/22/12,03/22/12,FOOD & BEVERAGE,19.07,2012,AP,Accounts payable,00474574,"KENDRICK, ALEXANDRA"
,OFFICE OF THE SPEAKER,2012Q2,TRAVEL,04-18,"ROGERS, GEORGE",04/11/12,04/14/12,LODGING,560.10,FISCAL YEAR 2012,AP,Accounts payable,00428349,"ROGERS, GEORGE"
,OFFICE OF THE SPEAKER,2012Q2,TRAVEL,04-18,"ROGERS, GEORGE",04/11/12,04/11/12,COMMERCIAL TRANSPORTATION,422.00,FISCAL YEAR 2012,AP,Accounts payable,00428355,"ROGERS, GEORGE"
,OFFICE OF THE SPEAKER,2012Q2,TRAVEL,04-18,"ROGERS, GEORGE",04/14/12,04/14/12,MEALS,21.23,FISCAL YEAR 2012,AP,Accounts payable,00428655,"ROGERS, GEORGE"
,OFFICE OF THE SPEAKER,2012Q2,TRAVEL,04-25,"ROGERS, GEORGE",04/11/12,04/11/12,COMMERCIAL TRANSPORTATION,-422.00,FISCAL YEAR 2012,AP,Accounts payable,00433091,"ROGERS, GEORGE"
,OFFICE OF THE SPEAKER,2012Q2,TRAVEL,04-25,"ROGERS, GEORGE",04/11/12,04/14/12,LODGING,-560.10,FISCAL YEAR 2012,AP,Accounts payable,00433105,"ROGERS, GEORGE"
,OFFICE OF THE SPEAKER,2012Q2,TRAVEL,04-25,"ROGERS, GEORGE",04/14/12,04/14/12,MEALS,-21.23,FISCAL YEAR 2012,AP,Accounts payable,00433119,"ROGERS, GEORGE"
,OFFICE OF THE SPEAKER,2012Q2,"RENT, COMMUNICATION, UTILITIES",04-02,FEDEX,12/30/11,12/30/11,POSTAGE / COURIER / BOX RENTAL,14.43,FISCAL YEAR 2012,AP,Accounts payable,00414900,FEDEX
,OFFICE OF THE SPEAKER,2012Q2,"RENT, COMMUNICATION, UTILITIES",04-03,FEDERAL EXPRESS CORP,03/27/12,03/27/12,POSTAGE / COURIER / BOX RENTAL,18.59,FISCAL YEAR 2012,AP,Accounts payable,00416467,FEDERAL EXPRESS CORP
,OFFICE OF THE SPEAKER,2012Q2,"RENT, COMMUNICATION, UTILITIES",04-06,FEDERAL EXPRESS CORP,03/22/12,03/22/12,POSTAGE / COURIER / BOX RENTAL,9.68,FISCAL YEAR 2012,AP,Accounts payable,00418661,FEDERAL EXPRESS CORP
,OFFICE OF THE SPEAKER,2012Q2,"RENT, COMMUNICATION, UTILITIES",04-06,FEDERAL EXPRESS CORP,04/02/12,04/02/12,POSTAGE / COURIER / BOX RENTAL,8.22,FISCAL YEAR 2012,AP,Accounts payable,00418661,FEDERAL EXPRESS CORP
,OFFICE OF THE SPEAKER,2012Q2,"RENT, COMMUNICATION, UTILITIES",04-06,FEDERAL EXPRESS CORP,04/03/12,04/03/12,POSTAGE / COURIER / BOX RENTAL,6.19,FISCAL YEAR 2012,AP,Accounts payable,00418661,FEDERAL EXPRESS CORP
,OFFICE OF THE SPEAKER,2012Q2,"RENT, COMMUNICATION, UTILITIES",04-13,FEDERAL EXPRESS CORP,04/10/12,04/10/12,POSTAGE / COURIER / BOX RENTAL,6.00,FISCAL YEAR 2012,AP,Accounts payable,00422428,FEDERAL EXPRESS CORP
,OFFICE OF THE SPEAKER,2012Q2,"RENT, COMMUNICATION, UTILITIES",04-25,FEDERAL EXPRESS CORP,04/13/12,04/13/12,POSTAGE / COURIER / BOX RENTAL,14.43,FISCAL YEAR 2012,AP,Accounts payable,00432557,FEDERAL EXPRESS CORP
,OFFICE OF THE SPEAKER,2012Q2,"RENT, COMMUNICATION, UTILITIES",04-25,FEDERAL EXPRESS CORP,04/17/12,04/17/12,POSTAGE / COURIER / BOX RENTAL,4.83,FISCAL YEAR 2012,AP,Accounts payable,00432557,FEDERAL EXPRESS CORP
,OFFICE OF THE SPEAKER,2012Q2,"RENT, COMMUNICATION, UTILITIES",04-30,FEDERAL EXPRESS CORP,04/19/12,04/19/12,POSTAGE / COURIER / BOX RENTAL,16.92,FISCAL YEAR 2012,AP,Accounts payable,00435937,FEDERAL EXPRESS CORP
,OFFICE OF THE SPEAKER,2012Q2,"RENT, COMMUNICATION, UTILITIES",05-04,FEDERAL EXPRESS CORP,04/26/12,04/26/12,POSTAGE / COURIER / BOX RENTAL,10.83,FISCAL YEAR 2012,AP,Accounts payable,00439401,FEDERAL EXPRESS CORP
,OFFICE OF THE SPEAKER,2012Q2,"RENT, COMMUNICATION, UTILITIES",05-04,FEDERAL EXPRESS CORP,04/30/12,04/30/12,POSTAGE / COURIER / BOX RENTAL,13.28,FISCAL YEAR 2012,AP,Accounts payable,00439401,FEDERAL EXPRESS CORP
,OFFICE OF THE SPEAKER,2012Q2,"RENT, COMMUNICATION, UTILITIES",05-16,FEDERAL EXPRESS CORP,05/02/12,05/02/12,POSTAGE / COURIER / BOX RENTAL,5.62,FISCAL YEAR 2012,AP,Accounts payable,00444942,FEDERAL EXPRESS CORP
,OFFICE OF THE SPEAKER,2012Q2,"RENT, COMMUNICATION, UTILITIES",05-16,FEDERAL EXPRESS CORP,05/04/12,05/04/12,POSTAGE / COURIER / BOX RENTAL,14.23,FISCAL YEAR 2012,AP,Accounts payable,00444942,FEDERAL EXPRESS CORP
,OFFICE OF THE SPEAKER,2012Q2,"RENT, COMMUNICATION, UTILITIES",05-21,FEDERAL EXPRESS CORP,05/09/12,05/09/12,POSTAGE / COURIER / BOX RENTAL,4.38,FISCAL YEAR 2012,AP,Accounts payable,00452870,FEDERAL EXPRESS CORP
,OFFICE OF THE SPEAKER,2012Q2,"RENT, COMMUNICATION, UTILITIES",05-21,FEDERAL EXPRESS CORP,05/10/12,05/10/12,POSTAGE / COURIER / BOX RENTAL,4.69,FISCAL YEAR 2012,AP,Accounts payable,00452870,FEDERAL EXPRESS CORP
,OFFICE OF THE SPEAKER,2012Q2,"RENT, COMMUNICATION, UTILITIES",05-29,FEDERAL EXPRESS CORP,05/14/12,05/14/12,POSTAGE / COURIER / BOX RENTAL,4.51,FISCAL YEAR 2012,AP,Accounts payable,00456827,FEDERAL EXPRESS CORP
,OFFICE OF THE SPEAKER,2012Q2,"RENT, COMMUNICATION, UTILITIES",05-29,FEDERAL EXPRESS CORP,05/16/12,05/16/12,POSTAGE / COURIER / BOX RENTAL,5.71,FISCAL YEAR 2012,AP,Accounts payable,00456827,FEDERAL EXPRESS CORP
,OFFICE OF THE SPEAKER,2012Q2,"RENT, COMMUNICATION, UTILITIES",05-29,FEDERAL EXPRESS CORP,05/22/12,05/22/12,POSTAGE / COURIER / BOX RENTAL,5.64,FISCAL YEAR 2012,AP,Accounts payable,00456827,FEDERAL EXPRESS CORP
,OFFICE OF THE SPEAKER,2012Q2,"RENT, COMMUNICATION, UTILITIES",06-05,FEDERAL EXPRESS CORP,05/23/12,05/23/12,POSTAGE / COURIER / BOX RENTAL,6.84,FISCAL YEAR 2012,AP,Accounts payable,00459980,FEDERAL EXPRESS CORP
,OFFICE OF THE SPEAKER,2012Q2,"RENT, COMMUNICATION, UTILITIES",06-05,FEDERAL EXPRESS CORP,05/25/12,05/25/12,POSTAGE / COURIER / BOX RENTAL,16.03,FISCAL YEAR 2012,AP,Accounts payable,00459980,FEDERAL EXPRESS CORP
,OFFICE OF THE SPEAKER,2012Q2,"RENT, COMMUNICATION, UTILITIES",06-08,FEDERAL EXPRESS CORP,06/04/12,06/04/12,POSTAGE / COURIER / BOX RENTAL,6.25,FISCAL YEAR 2012,AP,Accounts payable,00463265,FEDERAL EXPRESS CORP
,OFFICE OF THE SPEAKER,2012Q2,"RENT, COMMUNICATION, UTILITIES",06-14,FEDERAL EXPRESS CORP,12/30/11,12/30/11,POSTAGE / COURIER / BOX RENTAL,-14.43,FISCAL YEAR 2012,AR,Accounts receivable,AC-05862,FEDERAL EXPRESS CORP
,OFFICE OF THE SPEAKER,2012Q2,"RENT, COMMUNICATION, UTILITIES",06-25,FEDERAL EXPRESS CORP,06/13/12,06/13/12,POSTAGE / COURIER / BOX RENTAL,6.70,FISCAL YEAR 2012,AP,Accounts payable,00476487,FEDERAL EXPRESS CORP
,OFFICE OF THE SPEAKER,2012Q2,"RENT, COMMUNICATION, UTILITIES",06-25,FEDERAL EXPRESS CORP,06/14/12,06/14/12,POSTAGE / COURIER / BOX RENTAL,5.71,FISCAL YEAR 2012,AP,Accounts payable,00476487,FEDERAL EXPRESS CORP
,OFFICE OF THE SPEAKER,2012Q2,"RENT, COMMUNICATION, UTILITIES",06-25,FEDERAL EXPRESS CORP,06/15/12,06/15/12,POSTAGE / COURIER / BOX RENTAL,14.47,FISCAL YEAR 2012,AP,Accounts payable,00476487,FEDERAL EXPRESS CORP
,OFFICE OF THE SPEAKER,2012Q2,OTHER SERVICES,04-02,GLOBAL KNOWLEDGE,11/07/11,11/07/11,TRAINING,"2,198.76",FISCAL YEAR 2012,AP,Accounts payable,00414872,GLOBAL KNOWLEDGE
,OFFICE OF THE SPEAKER,2012Q2,OTHER SERVICES,04-02,GLOBAL KNOWLEDGE,11/14/11,11/14/11,TRAINING,"1,831.65",FISCAL YEAR 2012,AP,Accounts payable,00414877,GLOBAL KNOWLEDGE
,OFFICE OF THE SPEAKER,2012Q2,SUPPLIES AND MATERIALS,04-02,"",03/16/12,03/16/12,FRAMING (TRANSFER),50.00,FISCAL YEAR 2012,GL,General ledger,FRM0018480,""
,OFFICE OF THE MINORITY LEADER,2012Q2,SUPPLIES AND MATERIALS,06-08,PANERA BREAD COMPANY,12/07/11,12/07/11,FOOD & BEVERAGE,92.94,FISCAL YEAR 2012,AP,Accounts payable,00461731,PANERA BREAD COMPANY
,OFFICE OF THE MINORITY LEADER,2012Q2,SUPPLIES AND MATERIALS,06-08,PANERA BREAD COMPANY,12/07/11,12/07/11,FOOD & BEVERAGE,244.39,FISCAL YEAR 2012,AP,Accounts payable,00461734,PANERA BREAD COMPANY
,OFFICE OF THE MINORITY LEADER,2012Q2,SUPPLIES AND MATERIALS,06-08,PANERA BREAD COMPANY,12/09/11,12/09/11,FOOD & BEVERAGE,110.34,FISCAL YEAR 2012,AP,Accounts payable,00461737,PANERA BREAD COMPANY
,OFFICE OF THE MINORITY LEADER,2012Q2,SUPPLIES AND MATERIALS,06-08,PANERA BREAD COMPANY,12/13/11,12/13/11,FOOD & BEVERAGE,66.96,FISCAL YEAR 2012,AP,Accounts payable,00461739,PANERA BREAD COMPANY
,OFFICE OF THE MINORITY LEADER,2012Q2,SUPPLIES AND MATERIALS,06-08,PANERA BREAD COMPANY,12/15/11,12/15/11,FOOD & BEVERAGE,66.96,FISCAL YEAR 2012,AP,Accounts payable,00461743,PANERA BREAD COMPANY
,OFFICE OF THE MINORITY LEADER,2012Q2,SUPPLIES AND MATERIALS,06-08,PANERA BREAD COMPANY,12/16/11,12/16/11,FOOD & BEVERAGE,95.34,FISCAL YEAR 2012,AP,Accounts payable,00462415,PANERA BREAD COMPANY
,OFFICE OF THE MINORITY LEADER,2012Q2,SUPPLIES AND MATERIALS,06-08,PANERA BREAD COMPANY,12/16/11,12/16/11,FOOD & BEVERAGE,147.92,FISCAL YEAR 2012,AP,Accounts payable,00462421,PANERA BREAD COMPANY
,OFFICE OF THE MINORITY LEADER,2012Q2,SUPPLIES AND MATERIALS,06-08,PANERA BREAD COMPANY,12/21/11,12/21/11,FOOD & BEVERAGE,116.46,FISCAL YEAR 2012,AP,Accounts payable,00462428,PANERA BREAD COMPANY
,OFFICE OF THE MAJORITY WHIP,2012Q2,PERSONNEL COMPENSATION,"","GRIMALDI, DAVID F",12/01/10,12/31/10,SPECIAL ASSISTANT,"-3,416.64",FISCAL YEAR 2011,"","","","GRIMALDI, DAVID F"
,DEMOCRATIC CAUCUS,2012Q2,SUPPLIES AND MATERIALS,04-30,DEER PARK,03/31/12,03/31/12,WATER,104.91,FISCAL YEAR 2012,AP,Accounts payable,00435876,DEER PARK
,DEMOCRATIC CAUCUS,2012Q2,SUPPLIES AND MATERIALS,05-29,DEER PARK,04/30/12,04/30/12,WATER,11.98,FISCAL YEAR 2012,AP,Accounts payable,00456812,DEER PARK
,DEMOCRATIC CAUCUS,2012Q2,SUPPLIES AND MATERIALS,06-26,DEER PARK,05/31/12,05/31/12,WATER,175.84,FISCAL YEAR 2012,AP,Accounts payable,00477354,DEER PARK
,REPUBLICAN CONFERENCE,2012Q2,SUPPLIES AND MATERIALS,04-02,"",03/22/12,03/22/12,FRAMING (TRANSFER),200.00,FISCAL YEAR 2012,GL,General ledger,FRM0018480,""
,REPUBLICAN CONFERENCE,2012Q2,SUPPLIES AND MATERIALS,04-30,DEER PARK,03/31/12,03/31/12,WATER,312.70,FISCAL YEAR 2012,AP,Accounts payable,00435876,DEER PARK
,REPUBLICAN CONFERENCE,2012Q2,SUPPLIES AND MATERIALS,05-29,DEER PARK,04/30/12,04/30/12,WATER,215.76,FISCAL YEAR 2012,AP,Accounts payable,00456812,DEER PARK
,REPUBLICAN CONFERENCE,2012Q2,SUPPLIES AND MATERIALS,06-26,DEER PARK,05/31/12,05/31/12,WATER,215.76,FISCAL YEAR 2012,AP,Accounts payable,00477354,DEER PARK
,REPUBLICAN CONFERENCE,2012Q2,SUPPLIES AND MATERIALS,05-25,CHANTILLY DONUTS,03/15/11,03/15/11,FOOD & BEVERAGE,-159.40,FISCAL YEAR 2011,AR,Accounts receivable,AC-04532,CHANTILLY DONUTS
,REPUBLICAN CONFERENCE,2012Q2,SUPPLIES AND MATERIALS,05-25,CHANTILLY DONUTS,03/15/11,03/15/11,FOOD & BEVERAGE,159.40,FISCAL YEAR 2011,AR,Accounts receivable,AC-04532,CHANTILLY DONUTS
,CHIEF ADMIN OFCR OF THE HOUSE,2012Q2,PERSONNEL COMPENSATION,"","ABBOTT, JESSICA A",04/01/12,06/30/12,FINANCIAL ANALYST,"30,960.24",FISCAL YEAR 2012,"","","","ABBOTT, JESSICA A"
,CHIEF ADMIN OFCR OF THE HOUSE,2012Q2,PERSONNEL COMPENSATION,"","ABEL, TIMOTHY",04/01/12,06/30/12,SR TECHNICAL SUPPORT REP (A),"23,444.76",FISCAL YEAR 2012,"","","","ABEL, TIMOTHY"
,CHIEF ADMIN OFCR OF THE HOUSE,2012Q2,PERSONNEL COMPENSATION,"","ACUESTA,JULY J",04/01/12,06/30/12,SENIOR SYSTEMS ENGINEER,"26,422.74",FISCAL YEAR 2012,"","","","ACUESTA,JULY J"
,CHIEF ADMIN OFCR OF THE HOUSE,2012Q2,PERSONNEL COMPENSATION,"","ADDISON, TRACY",04/01/12,06/30/12,LOGISTICS & DIST SPEC (A),"11,274.00",FISCAL YEAR 2012,"","","","ADDISON, TRACY"
,CHIEF ADMIN OFCR OF THE HOUSE,2012Q2,PERSONNEL COMPENSATION,"","ADELAKUN, DEEN A",04/01/12,06/30/12,SR TECH SOLUTIONS ENGINEER,"21,663.00",FISCAL YEAR 2012,"","","","ADELAKUN, DEEN A"
,CHIEF ADMIN OFCR OF THE HOUSE,2012Q2,PERSONNEL COMPENSATION,"","AGEE, MATTHEW P",04/01/12,06/30/12,RESOURCE MANAGER,"29,853.99",FISCAL YEAR 2012,"","","","AGEE, MATTHEW P"
,CHIEF ADMIN OFCR OF THE HOUSE,2012Q2,PERSONNEL COMPENSATION,"","AGEE, TINA M",04/01/12,06/30/12,DIRECTOR PHOTOGRAPHY,"26,422.74",FISCAL YEAR 2012,"","","","AGEE, TINA M"
,CHIEF ADMIN OFCR OF THE HOUSE,2012Q2,PERSONNEL COMPENSATION,"","AGNEW, ROSE M",04/01/12,06/30/12,PAYROLL & BENEFITS GENERALIST,"17,937.75",FISCAL YEAR 2012,"","","","AGNEW, ROSE M"
,CHIEF ADMIN OFCR OF THE HOUSE,2012Q2,PERSONNEL COMPENSATION,"","AKINSEGUN, PATRICIA A",04/01/12,06/30/12,TELEPHONE SYSTEMS CONSULTANT,"21,663.00",FISCAL YEAR 2012,"","","","AKINSEGUN, PATRICIA A"
,CHIEF ADMIN OFCR OF THE HOUSE,2012Q2,PERSONNEL COMPENSATION,"","ALEXANDER, GORDON",04/01/12,06/30/12,TECH SOLUTIONS ENGINEER,"17,735.76",FISCAL YEAR 2012,"","","","ALEXANDER, GORDON"
,CHIEF ADMIN OFCR OF THE HOUSE,2012Q2,PERSONNEL COMPENSATION,"","ALEXANDER, SHARYN B",04/01/12,06/30/12,SPECIAL ASSISTANT,"26,384.49",FISCAL YEAR 2012,"","","","ALEXANDER, SHARYN B"
,CHIEF ADMIN OFCR OF THE HOUSE,2012Q2,PERSONNEL COMPENSATION,"","ALLARD,KENNETH V",04/01/12,06/30/12,ADA AIDE,"6,839.67",FISCAL YEAR 2012,"","","","ALLARD,KENNETH V"
,CHIEF ADMIN OFCR OF THE HOUSE,2012Q2,PERSONNEL COMPENSATION,"","ALLARD,KENNETH V",03/01/12,05/31/12,ADA AIDE (OVERTIME),"5,073.82",FISCAL YEAR 2012,"","","","ALLARD,KENNETH V"
,CHIEF ADMIN OFCR OF THE HOUSE,2012Q2,PERSONNEL COMPENSATION,"","ALLISON, KEVIN M",04/01/12,06/30/12,LOGISTICS & DIST SPEC (A),"13,503.51",FISCAL YEAR 2012,"","","","ALLISON, KEVIN M"
,CHIEF ADMIN OFCR OF THE HOUSE,2012Q2,PERSONNEL COMPENSATION,"","ALLISON, KEVIN M",03/01/12,03/31/12,LOGISTICS & DIST SPEC (A) (OVERTIME),207.74,FISCAL YEAR 2012,"","","","ALLISON, KEVIN M"
,CHIEF ADMIN OFCR OF THE HOUSE,2012Q2,PERSONNEL COMPENSATION,"","ALSTON,MARK A",04/01/12,06/30/12,TECH SOLUTIONS ENGINEER,"16,957.26",FISCAL YEAR 2012,"","","","ALSTON,MARK A"
,CHIEF ADMIN OFCR OF THE HOUSE,2012Q2,PERSONNEL COMPENSATION,"","ALVEY, LISA M",04/01/12,06/30/12,FINANCIAL COUNSELOR,"20,286.24",FISCAL YEAR 2012,"","","","ALVEY, LISA M"
,CHIEF ADMIN OFCR OF THE HOUSE,2012Q2,PERSONNEL COMPENSATION,"","ANDERSEN, FREDERIC E",04/01/12,06/30/12,2ND ASST SUPERINTENDENT,"22,107.00",FISCAL YEAR 2012,"","","","ANDERSEN, FREDERIC E"
,CHIEF ADMIN OFCR OF THE HOUSE,2012Q2,PERSONNEL COMPENSATION,"","ANDERSON, DONTRELL",03/26/12,06/30/12,FINANCIAL COUNSELOR,"16,257.41",FISCAL YEAR 2012,"","","","ANDERSON, DONTRELL"
,CHIEF ADMIN OFCR OF THE HOUSE,2012Q2,PERSONNEL COMPENSATION,"","ANDREWS-MOBLEY, RACHELLE G",04/01/12,06/30/12,PRINCIPAL TECHNICAL TRAINER,"24,150.51",FISCAL YEAR 2012,"","","","ANDREWS-MOBLEY, RACHELLE G"
,CHIEF ADMIN OFCR OF THE HOUSE,2012Q2,PERSONNEL COMPENSATION,"","ARMAS, KENTON A",04/01/12,06/30/12,JOURNEYMAN TEXTILE SPEC,"18,903.24",FISCAL YEAR 2012,"","","","ARMAS, KENTON A"
,CHIEF ADMIN OFCR OF THE HOUSE,2012Q2,PERSONNEL COMPENSATION,"","ARMSTRONG,JANCIERA C",04/01/12,06/30/12,STAFF ACCOUNTANT,"22,551.00",FISCAL YEAR 2012,"","","","ARMSTRONG,JANCIERA C"
,CHIEF ADMIN OFCR OF THE HOUSE,2012Q2,PERSONNEL COMPENSATION,"","ARTHUR, CAMILLA S",04/01/12,06/30/12,ASSISTANT CAO,"38,589.75",FISCAL YEAR 2012,"","","","ARTHUR, CAMILLA S"
,CHIEF ADMIN OFCR OF THE HOUSE,2012Q2,PERSONNEL COMPENSATION,"","ATCHISON, DARRYL A",04/01/12,06/30/12,DEPUTY CHIEF ENGINEER,"30,405.24",FISCAL YEAR 2012,"","","","ATCHISON, DARRYL A"
,CHIEF ADMIN OFCR OF THE HOUSE,2012Q2,PERSONNEL COMPENSATION,"","AWAN, OMAR",04/01/12,06/30/12,SR BUSINESS PROCESS APPL SPEC,"35,160.75",FISCAL YEAR 2012,"","","","AWAN, OMAR"
,CHIEF ADMIN OFCR OF THE HOUSE,2012Q2,PERSONNEL COMPENSATION,"","BABCOCK, TIMOTHY W",04/01/12,06/30/12,JOURNEYMAN TEXTILE SPEC,"14,470.50",FISCAL YEAR 2012,"","","","BABCOCK, TIMOTHY W"
,CHIEF ADMIN OFCR OF THE HOUSE,2012Q2,PERSONNEL COMPENSATION,"","BAER, PETER L",04/01/12,06/30/12,BUSINESS PROC APPLIC SPEC,"32,010.99",FISCAL YEAR 2012,"","","","BAER, PETER L"
,CHIEF ADMIN OFCR OF THE HOUSE,2012Q2,PERSONNEL COMPENSATION,"","BAHAM,TODD",04/01/12,06/30/12,BROADCAST PRODUCTION TECHNICIA,"18,589.17",FISCAL YEAR 2012,"","","","BAHAM,TODD"
,CHIEF ADMIN OFCR OF THE HOUSE,2012Q2,PERSONNEL COMPENSATION,"","BAHAM,TODD",03/01/12,05/31/12,BROADCAST PRODUCTION TECHNICIA (OVERTIME),"1,148.56",FISCAL YEAR 2012,"","","","BAHAM,TODD"
,CHIEF ADMIN OFCR OF THE HOUSE,2012Q2,PERSONNEL COMPENSATION,"","BAILEY, DAVID E",04/01/12,06/30/12,SR TECHNICAL SUPPORT REP (A),"23,888.25",FISCAL YEAR 2012,"","","","BAILEY, DAVID E"
,CHIEF ADMIN OFCR OF THE HOUSE,2012Q2,PERSONNEL COMPENSATION,"","BAKER, DARRELL F",04/01/12,06/30/12,SENIOR NETWORK TECHNICIAN,"24,150.51",FISCAL YEAR 2012,"","","","BAKER, DARRELL F"
,CHIEF ADMIN OFCR OF THE HOUSE,2012Q2,PERSONNEL COMPENSATION,"","BANFIELD,KELLI C",04/01/12,06/30/12,BROADCAST ENGINEER/PROD SPEC,"20,323.74",FISCAL YEAR 2012,"","","","BANFIELD,KELLI C"
,CHIEF ADMIN OFCR OF THE HOUSE,2012Q2,PERSONNEL COMPENSATION,"","BANFIELD,KELLI C",03/01/12,04/30/12,BROADCAST ENGINEER/PROD SPEC. (OVERTIME),820.75,FISCAL YEAR 2012,"","","","BANFIELD,KELLI C"
,CHIEF ADMIN OFCR OF THE HOUSE,2012Q2,PERSONNEL COMPENSATION,"","BANKS,BIANCA N",04/01/12,06/30/12,RETAIL INVENTORY SPECIALIST,"16,439.24",FISCAL YEAR 2012,"","","","BANKS,BIANCA N"
,CHIEF ADMIN OFCR OF THE HOUSE,2012Q2,PERSONNEL COMPENSATION,"","BARBEE, GLENN",04/01/12,06/30/12,NETWORK TECHNICIAN,"21,663.00",FISCAL YEAR 2012,"","","","BARBEE, GLENN"
,CHIEF ADMIN OFCR OF THE HOUSE,2012Q2,PERSONNEL COMPENSATION,"","BARBEE,DONELL G",04/01/12,06/30/12,RETAIL INVENTORY SPECIALIST,"9,801.00",FISCAL YEAR 2012,"","","","BARBEE,DONELL G"
,CHIEF ADMIN OFCR OF THE HOUSE,2012Q2,PERSONNEL COMPENSATION,"","BARBEE,DONELL G",03/01/12,05/31/12,RETAIL INVENTORY SPECIALIST (OVERTIME),37.69,FISCAL YEAR 2012,"","","","BARBEE,DONELL G"
,CHIEF ADMIN OFCR OF THE HOUSE,2012Q2,PERSONNEL COMPENSATION,"","BARBOUR, JUNE M",04/01/12,06/30/12,BROADCAST PRODUCTION TECHNICIA,"18,589.17",FISCAL YEAR 2012,"","","","BARBOUR, JUNE M"
,CHIEF ADMIN OFCR OF THE HOUSE,2012Q2,PERSONNEL COMPENSATION,"","BARBOUR, JUNE M",03/01/12,05/31/12,BROADCAST PRODUCTION TECHNICIA (OVERTIME),"1,205.93",FISCAL YEAR 2012,"","","","BARBOUR, JUNE M"
,CHIEF ADMIN OFCR OF THE HOUSE,2012Q2,PERSONNEL COMPENSATION,"","BARCINIAK, DANA L",04/01/12,06/30/12,SENIOR PHOTOGRAPHER,"21,069.99",FISCAL YEAR 2012,"","","","BARCINIAK, DANA L"
,CHIEF ADMIN OFCR OF THE HOUSE,2012Q2,PERSONNEL COMPENSATION,"","BAREFOOT,JEFFREY",04/01/12,05/31/12,PRODUCTION/ENGINEER SPEC (TEMP,"10,451.43",FISCAL YEAR 2012,"","","","BAREFOOT,JEFFREY"
,CHIEF ADMIN OFCR OF THE HOUSE,2012Q2,PERSONNEL COMPENSATION,"","BARNABAE, MONICA M",04/01/12,06/30/12,DIRECTOR-HOUSE CHILD CARE CNTR,"25,912.74",FISCAL YEAR 2012,"","","","BARNABAE, MONICA M"
,CHIEF ADMIN OFCR OF THE HOUSE,2012Q2,PERSONNEL COMPENSATION,"","BARRETT, ROBERT R",04/01/12,06/30/12,"MANAGER, SUPPORT SYSTEMS","33,938.25",FISCAL YEAR 2012,"","","","BARRETT, ROBERT R"
,CHIEF ADMIN OFCR OF THE HOUSE,2012Q2,PERSONNEL COMPENSATION,"","BARTHOLOMEW, DEBORAH",04/01/12,04/15/12,SR PAYROLL & BENS GENERALIST,"7,453.50",FISCAL YEAR 2012,"","","","BARTHOLOMEW, DEBORAH"
,CHIEF ADMIN OFCR OF THE HOUSE,2012Q2,PERSONNEL COMPENSATION,"","BARTHOLOMEW, DEBORAH",05/01/12,06/30/12,ADMIN-FINANCE & PAYROLL,"14,907.00",FISCAL YEAR 2012,"","","","BARTHOLOMEW, DEBORAH"
,CHIEF ADMIN OFCR OF THE HOUSE,2012Q2,PERSONNEL COMPENSATION,"","BASILIO, TYRONE A",04/01/12,06/30/12,TECHNICAL SUPPORT REP,"19,110.75",FISCAL YEAR 2012,"","","","BASILIO, TYRONE A"
,CHIEF ADMIN OFCR OF THE HOUSE,2012Q2,PERSONNEL COMPENSATION,"","BATES, DEBORAH A",04/01/12,05/31/12,PRODUCTION/ENGINEER SPEC (TEMP,"7,637.57",FISCAL YEAR 2012,"","","","BATES, DEBORAH A"
,CHIEF ADMIN OFCR OF THE HOUSE,2012Q2,PERSONNEL COMPENSATION,"","BAULEY, PATRICK J",04/01/12,06/30/12,TECHNICAL DIRECTOR (A),"28,454.01",FISCAL YEAR 2012,"","","","BAULEY, PATRICK J"
,CHIEF ADMIN OFCR OF THE HOUSE,2012Q2,PERSONNEL COMPENSATION,"","BAULEY, PATRICK J",03/01/12,05/31/12,TECHNICAL DIRECTOR (A) (OVERTIME),"1,231.17",FISCAL YEAR 2012,"","","","BAULEY, PATRICK J"
,CHIEF ADMIN OFCR OF THE HOUSE,2012Q2,PERSONNEL COMPENSATION,"","BAXTER,KRISTIE N",03/01/12,05/31/12,PHOTOGRAPHER/LAB TECH (TEMP),"14,471.20",FISCAL YEAR 2012,"","","","BAXTER,KRISTIE N"
,CHIEF ADMIN OFCR OF THE HOUSE,2012Q2,PERSONNEL COMPENSATION,"","BEAN, SAUNDRA D",04/01/12,06/30/12,CUSTOMER SOLUTIONS REP,"16,505.25",FISCAL YEAR 2012,"","","","BEAN, SAUNDRA D"
,CHIEF ADMIN OFCR OF THE HOUSE,2012Q2,PERSONNEL COMPENSATION,"","BEAUBIAN, TRACI R",04/01/12,06/30/12,CHIEF FINANCIAL OFFICER,"42,102.75",FISCAL YEAR 2012,"","","","BEAUBIAN, TRACI R"
,CHIEF ADMIN OFCR OF THE HOUSE,2012Q2,PERSONNEL COMPENSATION,"","BEAUDOIN, GORDON",04/01/12,06/30/12,VOICE & VIDEO BRANCH MGR (A),"35,775.51",FISCAL YEAR 2012,"","","","BEAUDOIN, GORDON"
,CHIEF ADMIN OFCR OF THE HOUSE,2012Q2,PERSONNEL COMPENSATION,"","BEIDEL, BERNARD E",04/01/12,06/30/12,"DIR, OFFICE OF EMPLOYEE ASSIST","42,102.75",FISCAL YEAR 2012,"","","","BEIDEL, BERNARD E"
,CHIEF ADMIN OFCR OF THE HOUSE,2012Q2,PERSONNEL COMPENSATION,"","BENAVIDEZ, OSCAR",04/01/12,06/30/12,LOGISTICS & DIST SPEC (A),"12,029.49",FISCAL YEAR 2012,"","","","BENAVIDEZ, OSCAR"
,CHIEF ADMIN OFCR OF THE HOUSE,2012Q2,PERSONNEL COMPENSATION,"","BENN, PHILLIP F",04/01/12,06/30/12,ELECTRONICS TECHNICIAN (A),"22,551.00",FISCAL YEAR 2012,"","","","BENN, PHILLIP F"
,CHIEF ADMIN OFCR OF THE HOUSE,2012Q2,PERSONNEL COMPENSATION,"","BENN, PHILLIP F",03/01/12,03/31/12,ELECTRONICS TECHNICIAN (A) (OVERTIME),130.10,FISCAL YEAR 2012,"","","","BENN, PHILLIP F"
,CHIEF ADMIN OFCR OF THE HOUSE,2012Q2,PERSONNEL COMPENSATION,"","BENNETT, GERALD E",04/01/12,06/30/12,CHIEF LOGISTICS OFFICER,"42,102.75",FISCAL YEAR 2012,"","","","BENNETT, GERALD E"
,CHIEF ADMIN OFCR OF THE HOUSE,2012Q2,PERSONNEL COMPENSATION,"","BERGER, DONALD W",04/01/12,06/30/12,BROADCAST PRODUCTION TECHNICIA,"20,323.74",FISCAL YEAR 2012,"","","","BERGER, DONALD W"
,CHIEF ADMIN OFCR OF THE HOUSE,2012Q2,PERSONNEL COMPENSATION,"","BERGER, DONALD W",05/01/12,05/31/12,BROADCAST PRODUCTION TECHNICIA (OVERTIME),322.44,FISCAL YEAR 2012,"","","","BERGER, DONALD W"
,CHIEF ADMIN OFCR OF THE HOUSE,2012Q2,PERSONNEL COMPENSATION,"","BERISKO,PHILIP J",04/16/12,06/30/12,FINANCIAL COUNSELOR (A),"18,866.05",FISCAL YEAR 2012,"","","","BERISKO,PHILIP J"
,CHIEF ADMIN OFCR OF THE HOUSE,2012Q2,PERSONNEL COMPENSATION,"","BEST, CHARLENE",04/01/12,06/30/12,MANAGER,"22,809.00",FISCAL YEAR 2012,"","","","BEST, CHARLENE"
,CHIEF ADMIN OFCR OF THE HOUSE,2012Q2,PERSONNEL COMPENSATION,"","BETHEA,LASHON L",04/01/12,06/30/12,TECHNICAL TRAINER,"24,595.50",FISCAL YEAR 2012,"","","","BETHEA,LASHON L"
,CHIEF ADMIN OFCR OF THE HOUSE,2012Q2,PERSONNEL COMPENSATION,"","BILLARD, MICHAEL A",04/01/12,06/30/12,COMMUNICATIONS SPEC,"24,595.50",FISCAL YEAR 2012,"","","","BILLARD, MICHAEL A"
,CHIEF ADMIN OFCR OF THE HOUSE,2012Q2,PERSONNEL COMPENSATION,"","BILLUPS, BRIAN E",04/01/12,06/30/12,NETWORK TECHNICIAN (A),"19,110.75",FISCAL YEAR 2012,"","","","BILLUPS, BRIAN E"
,CHIEF ADMIN OFCR OF THE HOUSE,2012Q2,PERSONNEL COMPENSATION,"","BLACK,CAROL",04/01/12,04/01/12,ADMINISTRATIVE COUNSEL,442.16,FISCAL YEAR 2012,"","","","BLACK,CAROL"
,CHIEF ADMIN OFCR OF THE HOUSE,2012Q2,PERSONNEL COMPENSATION,"","BLACK,CAROL",04/01/12,04/01/12,ADMINISTRATIVE COUNSEL (OTHER COMPENSATION),"7,958.85",FISCAL YEAR 2012,"","","","BLACK,CAROL"
,CHIEF ADMIN OFCR OF THE HOUSE,2012Q2,PERSONNEL COMPENSATION,"","BLAKNEY, HAROLD",04/01/12,06/30/12,SENIOR SYSTEMS ENGINEER,"36,389.01",FISCAL YEAR 2012,"","","","BLAKNEY, HAROLD"
,CHIEF ADMIN OFCR OF THE HOUSE,2012Q2,PERSONNEL COMPENSATION,"","BOGAN, DAVID S",04/01/12,06/30/12,"SUPERVISOR, RETAIL INVENTORY","19,110.75",FISCAL YEAR 2012,"","","","BOGAN, DAVID S"
,CHIEF ADMIN OFCR OF THE HOUSE,2012Q2,PERSONNEL COMPENSATION,"","BOGER, KELLY M",04/01/12,06/30/12,ACCOUNT MANAGEMENT COUNSELOR,"19,502.49",FISCAL YEAR 2012,"","","","BOGER, KELLY M"
,CHIEF ADMIN OFCR OF THE HOUSE,2012Q2,PERSONNEL COMPENSATION,"","BOOKER, CARLOS",04/01/12,06/30/12,SALES SPECIALIST,"9,801.00",FISCAL YEAR 2012,"","","","BOOKER, CARLOS"
,CHIEF ADMIN OFCR OF THE HOUSE,2012Q2,PERSONNEL COMPENSATION,"","BOOKER, CARLOS",03/01/12,05/31/12,SALES SPECIALIST (OVERTIME),56.54,FISCAL YEAR 2012,"","","","BOOKER, CARLOS"
,CHIEF ADMIN OFCR OF THE HOUSE,2012Q2,PERSONNEL COMPENSATION,"","BOONE, RUSSELL",04/01/12,06/30/12,TECHNICAL SUPPORT REP,"21,069.99",FISCAL YEAR 2012,"","","","BOONE, RUSSELL"
,CHIEF ADMIN OFCR OF THE HOUSE,2012Q2,PERSONNEL COMPENSATION,"","BOWERS,KAREN L",04/01/12,06/30/12,FINANCIAL COUNSELOR,"18,719.25",FISCAL YEAR 2012,"","","","BOWERS,KAREN L"
,CHIEF ADMIN OFCR OF THE HOUSE,2012Q2,PERSONNEL COMPENSATION,"","BOWLDING, SONIA R",04/01/12,06/30/12,REC/WAREHOUSE SPEC (A),"10,980.00",FISCAL YEAR 2012,"","","","BOWLDING, SONIA R"
,CHIEF ADMIN OFCR OF THE HOUSE,2012Q2,PERSONNEL COMPENSATION,"","BOWLES JR, FREDERICK H",04/01/12,06/30/12,"SUPERVISOR-LOGISTICS, SUPP EQU","23,444.76",FISCAL YEAR 2012,"","","","BOWLES JR, FREDERICK H"
,CHIEF ADMIN OFCR OF THE HOUSE,2012Q2,PERSONNEL COMPENSATION,"","BOWLES, JAMES A",04/01/12,06/30/12,JOURNEYMAN FURNITURE SPEC,"18,903.24",FISCAL YEAR 2012,"","","","BOWLES, JAMES A"
,CHIEF ADMIN OFCR OF THE HOUSE,2012Q2,PERSONNEL COMPENSATION,"","BOWLING-STOKES,CHAUNETTE L",04/01/12,06/30/12,SUPERVISOR,"22,360.50",FISCAL YEAR 2012,"","","","BOWLING-STOKES,CHAUNETTE L"
,CHIEF ADMIN OFCR OF THE HOUSE,2012Q2,PERSONNEL COMPENSATION,"","BOWMAN,SHELIA",04/01/12,06/30/12,FINANCIAL COUNSELOR,"15,789.00",FISCAL YEAR 2012,"","","","BOWMAN,SHELIA"
,CHIEF ADMIN OFCR OF THE HOUSE,2012Q2,PERSONNEL COMPENSATION,"","BOYD, PETRINA",04/01/12,06/30/12,SALES SPECIALIST,"11,146.50",FISCAL YEAR 2012,"","","","BOYD, PETRINA"
,CHIEF ADMIN OFCR OF THE HOUSE,2012Q2,PERSONNEL COMPENSATION,"","BOYD, PETRINA",03/01/12,03/31/12,SALES SPECIALIST (OVERTIME),10.72,FISCAL YEAR 2012,"","","","BOYD, PETRINA"
,CHIEF ADMIN OFCR OF THE HOUSE,2012Q2,PERSONNEL COMPENSATION,"","BOYLE, KEVIN J",04/01/12,06/30/12,SR BUSINESS PROCESS APPL SPEC,"37,613.25",FISCAL YEAR 2012,"","","","BOYLE, KEVIN J"
,CHIEF ADMIN OFCR OF THE HOUSE,2012Q2,PERSONNEL COMPENSATION,"","BRACKENS, ROBERT",04/01/12,06/30/12,BROADCAST PRODUCTION TECHNICIA,"20,771.49",FISCAL YEAR 2012,"","","","BRACKENS, ROBERT"
,CHIEF ADMIN OFCR OF THE HOUSE,2012Q2,PERSONNEL COMPENSATION,"","BRACKENS, ROBERT",03/01/12,05/31/12,BROADCAST PRODUCTION TECHNICIA (OVERTIME),419.43,FISCAL YEAR 2012,"","","","BRACKENS, ROBERT"
,CHIEF ADMIN OFCR OF THE HOUSE,2012Q2,PERSONNEL COMPENSATION,"","BRADDY,JIMMY R",04/01/12,06/30/12,TECH SOLUTIONS ENGINEER,"16,957.26",FISCAL YEAR 2012,"","","","BRADDY,JIMMY R"
,CHIEF ADMIN OFCR OF THE HOUSE,2012Q2,PERSONNEL COMPENSATION,"","BRANCH,PAMELA J",04/01/12,06/30/12,SENIOR BENEFITS SPECIALIST,"25,939.74",FISCAL YEAR 2012,"","","","BRANCH,PAMELA J"
,CHIEF ADMIN OFCR OF THE HOUSE,2012Q2,PERSONNEL COMPENSATION,"","BRAXTON, BRANDON A",04/01/12,06/30/12,LOGISTICS & DIST SPEC (A),"10,684.50",FISCAL YEAR 2012,"","","","BRAXTON, BRANDON A"
,CHIEF ADMIN OFCR OF THE HOUSE,2012Q2,PERSONNEL COMPENSATION,"","BRAYE, LORENZO",04/01/12,06/30/12,SR BROADCAST ENG/PROD SPECLST,"23,704.50",FISCAL YEAR 2012,"","","","BRAYE, LORENZO"
,CHIEF ADMIN OFCR OF THE HOUSE,2012Q2,PERSONNEL COMPENSATION,"","BREWSTER III,JAMES E",04/01/12,06/30/12,LOGISTICS & DIST SPEC (A),"9,002.49",FISCAL YEAR 2012,"","","","BREWSTER III,JAMES E"
,CHIEF ADMIN OFCR OF THE HOUSE,2012Q2,PERSONNEL COMPENSATION,"","BREWSTER,CHRISTOPHER A",05/29/12,06/30/12,ADMINISTRATIVE COUNSEL,"14,969.87",FISCAL YEAR 2012,"","","","BREWSTER,CHRISTOPHER A"
,CHIEF ADMIN OFCR OF THE HOUSE,2012Q2,PERSONNEL COMPENSATION,"","BRIDGEFORTH, TOINETTA A",04/01/12,06/30/12,CONTRACTS SPECIALIST,"21,663.00",FISCAL YEAR 2012,"","","","BRIDGEFORTH, TOINETTA A"
,CHIEF ADMIN OFCR OF THE HOUSE,2012Q2,PERSONNEL COMPENSATION,"","BRISCOE, KEVIN",04/01/12,06/30/12,LOGISTICS & DIST SPEC (A),"10,684.50",FISCAL YEAR 2012,"","","","BRISCOE, KEVIN"
,CHIEF ADMIN OFCR OF THE HOUSE,2012Q2,PERSONNEL COMPENSATION,"","BRITT,SHANNON W",04/01/12,06/30/12,HUMAN RESOURCES GENERALIST,"13,809.24",FISCAL YEAR 2012,"","","","BRITT,SHANNON W"
,CHIEF ADMIN OFCR OF THE HOUSE,2012Q2,PERSONNEL COMPENSATION,"","BROBBEY-MENSAH, KWAME",04/01/12,06/30/12,SR INFO SYST. SECURITY ANALYST,"27,946.26",FISCAL YEAR 2012,"","","","BROBBEY-MENSAH, KWAME"
,CHIEF ADMIN OFCR OF THE HOUSE,2012Q2,PERSONNEL COMPENSATION,"","BROWN SR, DEMETRICE T",04/01/12,06/30/12,SUPERVISOR,"25,403.76",FISCAL YEAR 2012,"","","","BROWN SR, DEMETRICE T"
,CHIEF ADMIN OFCR OF THE HOUSE,2012Q2,PERSONNEL COMPENSATION,"","BROWN, ANNETTE G",04/01/12,06/30/12,SR SOFTWARE ENGINEER,"26,384.49",FISCAL YEAR 2012,"","","","BROWN, ANNETTE G"
,CHIEF ADMIN OFCR OF THE HOUSE,2012Q2,PERSONNEL COMPENSATION,"","BROWN, KEITH S",04/01/12,06/30/12,REC/WAREHOUSE SPEC (A),"13,798.50",FISCAL YEAR 2012,"","","","BROWN, KEITH S"
,CHIEF ADMIN OFCR OF THE HOUSE,2012Q2,PERSONNEL COMPENSATION,"","BROWN, PAMELA L",04/01/12,06/30/12,CUSTOMER SOLUTIONS REP,"17,994.26",FISCAL YEAR 2012,"","","","BROWN, PAMELA L"
,CHIEF ADMIN OFCR OF THE HOUSE,2012Q2,PERSONNEL COMPENSATION,"","BROWN,DAVID D",05/22/12,06/30/12,FINANCIAL COUNSELOR,"6,674.09",FISCAL YEAR 2012,"","","","BROWN,DAVID D"
,CHIEF ADMIN OFCR OF THE HOUSE,2012Q2,PERSONNEL COMPENSATION,"","BROWN,JASON",04/01/12,06/30/12,BROADCAST PRODUCTION TECHNICIA,"18,329.01",FISCAL YEAR 2012,"","","","BROWN,JASON"
,CHIEF ADMIN OFCR OF THE HOUSE,2012Q2,PERSONNEL COMPENSATION,"","BROWN,KIMBERLY K",04/01/12,06/30/12,RESOURCE ANALYST,"16,439.24",FISCAL YEAR 2012,"","","","BROWN,KIMBERLY K"
,CHIEF ADMIN OFCR OF THE HOUSE,2012Q2,PERSONNEL COMPENSATION,"","BROWN,LAWRENCE",04/01/12,06/30/12,BROADCAST ENGINEER/PROD SPEC,"21,214.74",FISCAL YEAR 2012,"","","","BROWN,LAWRENCE"
,CHIEF ADMIN OFCR OF THE HOUSE,2012Q2,PERSONNEL COMPENSATION,"","BROWN,LAWRENCE",03/01/12,04/30/12,BROADCAST ENGINEER/PROD SPEC. (OVERTIME),734.35,FISCAL YEAR 2012,"","","","BROWN,LAWRENCE"
,CHIEF ADMIN OFCR OF THE HOUSE,2012Q2,PERSONNEL COMPENSATION,"","BRUMMELL,JENELLE L",04/01/12,06/30/12,PARALEGAL,"16,569.24",FISCAL YEAR 2012,"","","","BRUMMELL,JENELLE L"
,CHIEF ADMIN OFCR OF THE HOUSE,2012Q2,PERSONNEL COMPENSATION,"","BUCKLER, RICKY L",04/01/12,06/30/12,PURCHASING AGENT,"18,198.59",FISCAL YEAR 2012,"","","","BUCKLER, RICKY L"
,CHIEF ADMIN OFCR OF THE HOUSE,2012Q2,PERSONNEL COMPENSATION,"","BUCKLER, TROY D",04/01/12,06/30/12,PURCHASING AGENT,"15,830.01",FISCAL YEAR 2012,"","","","BUCKLER, TROY D"
,CHIEF ADMIN OFCR OF THE HOUSE,2012Q2,PERSONNEL COMPENSATION,"","BUFORD, MARCIA L",04/01/12,06/30/12,COMPUTER FAC OP SUPERVISOR,"25,939.74",FISCAL YEAR 2012,"","","","BUFORD, MARCIA L"
,CHIEF ADMIN OFCR OF THE HOUSE,2012Q2,PERSONNEL COMPENSATION,"","BURCH, KENNETH J",04/01/12,06/30/12,BUSINESS PROC APPLIC SPEC,"28,962.75",FISCAL YEAR 2012,"","","","BURCH, KENNETH J"
,CHIEF ADMIN OFCR OF THE HOUSE,2012Q2,PERSONNEL COMPENSATION,"","BURNHAM, ELIZABETH",04/01/12,06/30/12,PAYROLL & BENEFITS MANAGER,"26,422.74",FISCAL YEAR 2012,"","","","BURNHAM, ELIZABETH"
,CHIEF ADMIN OFCR OF THE HOUSE,2012Q2,PERSONNEL COMPENSATION,"","BUTLER, CLARENCE G",04/01/12,06/30/12,JOURNEYMAN FURNITURE SPEC,"15,155.76",FISCAL YEAR 2012,"","","","BUTLER, CLARENCE G"
,CHIEF ADMIN OFCR OF THE HOUSE,2012Q2,PERSONNEL COMPENSATION,"","BUTLER, JAMES F",04/01/12,06/30/12,PAYROLL & BENEFITS MANAGER,"25,044.51",FISCAL YEAR 2012,"","","","BUTLER, JAMES F"
,CHIEF ADMIN OFCR OF THE HOUSE,2012Q2,PERSONNEL COMPENSATION,"","CAIN, MOLLY J",04/01/12,06/30/12,5TH ASST SUPERINTENDENT,"15,155.76",FISCAL YEAR 2012,"","","","CAIN, MOLLY J"
,CHIEF ADMIN OFCR OF THE HOUSE,2012Q2,PERSONNEL COMPENSATION,"","CALLAWAY, ROBERT M",04/01/12,06/30/12,SR BROADCAST ENG./PROD SPEC,"23,256.00",FISCAL YEAR 2012,"","","","CALLAWAY, ROBERT M"
,CHIEF ADMIN OFCR OF THE HOUSE,2012Q2,PERSONNEL COMPENSATION,"","CANNON, DREW",04/01/12,06/30/12,4TH ASST SUPERINTENDENT,"17,344.26",FISCAL YEAR 2012,"","","","CANNON, DREW"
,CHIEF ADMIN OFCR OF THE HOUSE,2012Q2,PERSONNEL COMPENSATION,"","CANNON,SUSANNAH",04/01/12,06/30/12,CUSTOMER SOLUTIONS REP,"13,460.01",FISCAL YEAR 2012,"","","","CANNON,SUSANNAH"
,CHIEF ADMIN OFCR OF THE HOUSE,2012Q2,PERSONNEL COMPENSATION,"","CARCAMO, ALICIA L",04/01/12,06/30/12,ACCOUNTING TECHNICIAN,"18,513.24",FISCAL YEAR 2012,"","","","CARCAMO, ALICIA L"
,CHIEF ADMIN OFCR OF THE HOUSE,2012Q2,PERSONNEL COMPENSATION,"","CARLSON,STACY",04/01/12,06/30/12,DEPUTY CAO,"42,674.01",FISCAL YEAR 2012,"","","","CARLSON,STACY"
,CHIEF ADMIN OFCR OF THE HOUSE,2012Q2,PERSONNEL COMPENSATION,"","CARNNIA,CASEY",04/01/12,06/30/12,INTERNET SYSTEMS SPECIALIST,"18,719.25",FISCAL YEAR 2012,"","","","CARNNIA,CASEY"
,CHIEF ADMIN OFCR OF THE HOUSE,2012Q2,PERSONNEL COMPENSATION,"","CARR, JOSH D",04/01/12,06/30/12,SENIOR SYSTEMS ENGINEER,"24,595.50",FISCAL YEAR 2012,"","","","CARR, JOSH D"
,CHIEF ADMIN OFCR OF THE HOUSE,2012Q2,PERSONNEL COMPENSATION,"","CARRICO, RONALD",04/01/12,06/30/12,SR BUSINESS PROCESS APPL SPEC,"35,775.51",FISCAL YEAR 2012,"","","","CARRICO, RONALD"
,CHIEF ADMIN OFCR OF THE HOUSE,2012Q2,PERSONNEL COMPENSATION,"","CARSON,LAWRENCE T",04/01/12,06/30/12,SALES SPECIALIST,"9,801.00",FISCAL YEAR 2012,"","","","CARSON,LAWRENCE T"
,CHIEF ADMIN OFCR OF THE HOUSE,2012Q2,PERSONNEL COMPENSATION,"","CARSON,LAWRENCE T",03/01/12,03/31/12,SALES SPECIALIST (OVERTIME),28.27,FISCAL YEAR 2012,"","","","CARSON,LAWRENCE T"
,CHIEF ADMIN OFCR OF THE HOUSE,2012Q2,PERSONNEL COMPENSATION,"","CARTER JR, JOHN L",04/01/12,06/30/12,"MANAGER, FINISHING","24,777.24",FISCAL YEAR 2012,"","","","CARTER JR, JOHN L"
,CHIEF ADMIN OFCR OF THE HOUSE,2012Q2,PERSONNEL COMPENSATION,"","CARTER,DELISA D",04/01/12,06/30/12,SR. SOFTWARE SPECIALIST,"34,344.25",FISCAL YEAR 2012,"","","","CARTER,DELISA D"
,CHIEF ADMIN OFCR OF THE HOUSE,2012Q2,PERSONNEL COMPENSATION,"","CAULK, ANDREW T",04/01/12,06/30/12,SUPERVISOR,"23,704.50",FISCAL YEAR 2012,"","","","CAULK, ANDREW T"
,CHIEF ADMIN OFCR OF THE HOUSE,2012Q2,PERSONNEL COMPENSATION,"","CHABOT, ELLIOT C",04/01/12,06/30/12,SR SYSTEMS ANALYST,"32,010.99",FISCAL YEAR 2012,"","","","CHABOT, ELLIOT C"
,CHIEF ADMIN OFCR OF THE HOUSE,2012Q2,PERSONNEL COMPENSATION,"","CHAMBERS, KEVIN N",04/01/12,06/30/12,SR CUSTOMER SOLUTIONS REP,"19,894.74",FISCAL YEAR 2012,"","","","CHAMBERS, KEVIN N"
,CHIEF ADMIN OFCR OF THE HOUSE,2012Q2,PERSONNEL COMPENSATION,"","CHAMBERS,KEVINA D",05/21/12,06/30/12,ACCOUNTING TECHNICIAN,"5,234.44",FISCAL YEAR 2012,"","","","CHAMBERS,KEVINA D"
,CHIEF ADMIN OFCR OF THE HOUSE,2012Q2,PERSONNEL COMPENSATION,"","CHANG, SU-HWA",04/01/12,06/30/12,SENIOR SYSTEMS ENGINEER,"29,978.76",FISCAL YEAR 2012,"","","","CHANG, SU-HWA"
,CHIEF ADMIN OFCR OF THE HOUSE,2012Q2,PERSONNEL COMPENSATION,"","CHEN, SUSAN",03/26/12,06/30/12,FINANCIAL COUNSELOR,"16,257.41",FISCAL YEAR 2012,"","","","CHEN, SUSAN"
,CHIEF ADMIN OFCR OF THE HOUSE,2012Q2,PERSONNEL COMPENSATION,"","CHILDRESS, J T",04/01/12,06/30/12,JOURNEYMAN FURNITURE SPEC,"18,903.24",FISCAL YEAR 2012,"","","","CHILDRESS, J T"
,CHIEF ADMIN OFCR OF THE HOUSE,2012Q2,PERSONNEL COMPENSATION,"","CIANCIOLO,CRAIG",04/01/12,06/30/12,JOURNEYMAN FURNITURE SPEC,"14,481.75",FISCAL YEAR 2012,"","","","CIANCIOLO,CRAIG"
,CHIEF ADMIN OFCR OF THE HOUSE,2012Q2,PERSONNEL COMPENSATION,"","CICALE, MICHAEL P",04/01/12,06/30/12,SR CUSTOMER SOLUTIONS REP,"18,903.24",FISCAL YEAR 2012,"","","","CICALE, MICHAEL P"
,CHIEF ADMIN OFCR OF THE HOUSE,2012Q2,PERSONNEL COMPENSATION,"","CLAGGETT, TIMOTHY A",04/01/12,06/30/12,JOURNEYMAN TEXTILE SPEC,"18,513.24",FISCAL YEAR 2012,"","","","CLAGGETT, TIMOTHY A"
,CHIEF ADMIN OFCR OF THE HOUSE,2012Q2,PERSONNEL COMPENSATION,"","CLARK, MARION",04/01/12,06/30/12,SR TELECOMMUNICATIONS ADMIN,"17,344.26",FISCAL YEAR 2012,"","","","CLARK, MARION"
,CHIEF ADMIN OFCR OF THE HOUSE,2012Q2,PERSONNEL COMPENSATION,"","CLARKE, JOHN P",04/01/12,06/30/12,SUPERVISOR,"21,214.74",FISCAL YEAR 2012,"","","","CLARKE, JOHN P"
,CHIEF ADMIN OFCR OF THE HOUSE,2012Q2,PERSONNEL COMPENSATION,"","CLOCKER, JOHN C",04/01/12,06/30/12,DIRECTOR WEB SYSTEMS,"39,794.25",FISCAL YEAR 2012,"","","","CLOCKER, JOHN C"
,CHIEF ADMIN OFCR OF THE HOUSE,2012Q2,PERSONNEL COMPENSATION,"","COAKLEY,KRISTEN J",04/01/12,06/30/12,SR TELECOMMUNICATIONS ADMIN,"16,179.24",FISCAL YEAR 2012,"","","","COAKLEY,KRISTEN J"
,CHIEF ADMIN OFCR OF THE HOUSE,2012Q2,PERSONNEL COMPENSATION,"","COBB, FAYE C",04/01/12,06/30/12,"DIR, BUDGET, POLICY & PLANNING","36,177.99",FISCAL YEAR 2012,"","","","COBB, FAYE C"
,CHIEF ADMIN OFCR OF THE HOUSE,2012Q2,PERSONNEL COMPENSATION,"","COLBERT, RAY C",04/01/12,06/30/12,ELECTRONICS TECHNICIAN (A),"21,663.00",FISCAL YEAR 2012,"","","","COLBERT, RAY C"
,CHIEF ADMIN OFCR OF THE HOUSE,2012Q2,PERSONNEL COMPENSATION,"","COLBERT, RAY C",03/01/12,05/31/12,ELECTRONICS TECHNICIAN (A) (OVERTIME),812.34,FISCAL YEAR 2012,"","","","COLBERT, RAY C"
,CHIEF ADMIN OFCR OF THE HOUSE,2012Q2,PERSONNEL COMPENSATION,"","COLLINS, JOHN B",04/01/12,06/30/12,BROADCAST PRODUCTION TECHNICIA,"22,998.51",FISCAL YEAR 2012,"","","","COLLINS, JOHN B"
,CHIEF ADMIN OFCR OF THE HOUSE,2012Q2,PERSONNEL COMPENSATION,"","COLLINS, JOHN B",03/01/12,05/31/12,BROADCAST PRODUCTION TECHNICIA (OVERTIME),"1,227.31",FISCAL YEAR 2012,"","","","COLLINS, JOHN B"
,CHIEF ADMIN OFCR OF THE HOUSE,2012Q2,PERSONNEL COMPENSATION,"","COLLINS,JOEL",04/01/12,06/30/12,SR INTERNET SYSTEMS SPECIALIST,"28,746.75",FISCAL YEAR 2012,"","","","COLLINS,JOEL"
,CHIEF ADMIN OFCR OF THE HOUSE,2012Q2,PERSONNEL COMPENSATION,"","CONNOLLY,ERIC",04/01/12,06/30/12,PHOTOGRAPHER,"14,481.75",FISCAL YEAR 2012,"","","","CONNOLLY,ERIC"
,CHIEF ADMIN OFCR OF THE HOUSE,2012Q2,PERSONNEL COMPENSATION,"","CONNOLLY,ERIC",03/01/12,03/31/12,PHOTOGRAPHER (OVERTIME),111.40,FISCAL YEAR 2012,"","","","CONNOLLY,ERIC"
,CHIEF ADMIN OFCR OF THE HOUSE,2012Q2,PERSONNEL COMPENSATION,"","COOK, ERIC H",04/01/12,06/30/12,NETWORK TECHNICIAN,"19,894.74",FISCAL YEAR 2012,"","","","COOK, ERIC H"
,CHIEF ADMIN OFCR OF THE HOUSE,2012Q2,PERSONNEL COMPENSATION,"","COOPER, RICHARD S",04/01/12,06/30/12,STAFF ACCOUNTANT (A),"24,595.50",FISCAL YEAR 2012,"","","","COOPER, RICHARD S"
,CHIEF ADMIN OFCR OF THE HOUSE,2012Q2,PERSONNEL COMPENSATION,"","COPPA, JOSEPH P",04/01/12,06/30/12,SENIOR NETWORK TECHNICIAN,"23,888.25",FISCAL YEAR 2012,"","","","COPPA, JOSEPH P"
,CHIEF ADMIN OFCR OF THE HOUSE,2012Q2,PERSONNEL COMPENSATION,"","CORNEJO, LUIS E",04/01/12,06/30/12,SENIOR SYSTEMS ENGINEER,"25,491.51",FISCAL YEAR 2012,"","","","CORNEJO, LUIS E"
,CHIEF ADMIN OFCR OF THE HOUSE,2012Q2,PERSONNEL COMPENSATION,"","COX, BRIDGET A",04/01/12,06/30/12,SENIOR SYSTEMS ANALYST,"29,470.74",FISCAL YEAR 2012,"","","","COX, BRIDGET A"
,CHIEF ADMIN OFCR OF THE HOUSE,2012Q2,PERSONNEL COMPENSATION,"","COYNE III, THOMAS E",04/01/12,06/30/12,ASSISTANT CAO,"42,102.75",FISCAL YEAR 2012,"","","","COYNE III, THOMAS E"
,CHIEF ADMIN OFCR OF THE HOUSE,2012Q2,PERSONNEL COMPENSATION,"","CROWELL, PETER L",04/01/12,06/30/12,BRANCH MANAGER,"32,621.25",FISCAL YEAR 2012,"","","","CROWELL, PETER L"
,CHIEF ADMIN OFCR OF THE HOUSE,2012Q2,PERSONNEL COMPENSATION,"","CRUDUP III, WILLIAM D",04/01/12,06/30/12,LOGISTICS & DIST SPEC (A),"12,325.26",FISCAL YEAR 2012,"","","","CRUDUP III, WILLIAM D"
,CHIEF ADMIN OFCR OF THE HOUSE,2012Q2,PERSONNEL COMPENSATION,"","CUFF,LOREN D",04/01/12,06/30/12,INTERNET SYSTEMS SPECIALIST,"19,110.75",FISCAL YEAR 2012,"","","","CUFF,LOREN D"
,CHIEF ADMIN OFCR OF THE HOUSE,2012Q2,PERSONNEL COMPENSATION,"","CUFFEY, LAWRENCE",04/01/12,06/30/12,SR RECVNG AND WAREHOUSING SPEC,"17,848.50",FISCAL YEAR 2012,"","","","CUFFEY, LAWRENCE"
,CHIEF ADMIN OFCR OF THE HOUSE,2012Q2,PERSONNEL COMPENSATION,"","CUPRILL, CARLOS",04/01/12,06/30/12,SR TECHNICAL SUPPORT REP,"22,107.00",FISCAL YEAR 2012,"","","","CUPRILL, CARLOS"
,CHIEF ADMIN OFCR OF THE HOUSE,2012Q2,PERSONNEL COMPENSATION,"","CUSATI, ALESSANDRO",04/01/12,06/30/12,CHIEF ENGINEER,"37,001.25",FISCAL YEAR 2012,"","","","CUSATI, ALESSANDRO"
,CHIEF ADMIN OFCR OF THE HOUSE,2012Q2,PERSONNEL COMPENSATION,"","CUTLER JR, BENJAMIN S",04/01/12,06/30/12,PAYROLL & BENEFITS ASSISTANT,"15,155.76",FISCAL YEAR 2012,"","","","CUTLER JR, BENJAMIN S"
,CHIEF ADMIN OFCR OF THE HOUSE,2012Q2,PERSONNEL COMPENSATION,"","D'AMICO, THOMAS A",04/01/12,06/30/12,LOCKSMITH,"18,903.24",FISCAL YEAR 2012,"","","","D'AMICO, THOMAS A"
,CHIEF ADMIN OFCR OF THE HOUSE,2012Q2,PERSONNEL COMPENSATION,"","DAHL,RYAN S",04/01/12,06/30/12,MEDIA LOGISTICS COORDINATOR,"14,819.25",FISCAL YEAR 2012,"","","","DAHL,RYAN S"
,CHIEF ADMIN OFCR OF THE HOUSE,2012Q2,PERSONNEL COMPENSATION,"","DAHLSTROM, DARREN",04/01/12,06/30/12,JOURNEYMAN FURNITURE SPEC,"18,903.24",FISCAL YEAR 2012,"","","","DAHLSTROM, DARREN"
,CHIEF ADMIN OFCR OF THE HOUSE,2012Q2,PERSONNEL COMPENSATION,"","DALTON, MARK V",04/01/12,06/30/12,SENIOR SYSTEMS ENGINEER,"28,962.75",FISCAL YEAR 2012,"","","","DALTON, MARK V"
,CHIEF ADMIN OFCR OF THE HOUSE,2012Q2,PERSONNEL COMPENSATION,"","DAS, SATYENDRA K",04/01/12,06/30/12,BUSINESS PROC APPLIC SPEC,"29,470.74",FISCAL YEAR 2012,"","","","DAS, SATYENDRA K"
,CHIEF ADMIN OFCR OF THE HOUSE,2012Q2,PERSONNEL COMPENSATION,"","DAVENPORT,KAREN V",04/01/12,06/30/12,FINANCIAL ANALYST,"21,214.74",FISCAL YEAR 2012,"","","","DAVENPORT,KAREN V"
,CHIEF ADMIN OFCR OF THE HOUSE,2012Q2,PERSONNEL COMPENSATION,"","DAVIS, JOHN J",04/01/12,06/30/12,BROADCAST PRODUCTION TECHNICIA,"22,107.00",FISCAL YEAR 2012,"","","","DAVIS, JOHN J"
,CHIEF ADMIN OFCR OF THE HOUSE,2012Q2,PERSONNEL COMPENSATION,"","DAVIS, STACHIA G",04/01/12,06/30/12,DIR MOD FURN & TRANSITION,"26,928.51",FISCAL YEAR 2012,"","","","DAVIS, STACHIA G"
,CHIEF ADMIN OFCR OF THE HOUSE,2012Q2,PERSONNEL COMPENSATION,"","DAVIS,SCOTT K",04/01/12,06/30/12,PAYROLL & BENEFITS GENERALIST,"16,179.24",FISCAL YEAR 2012,"","","","DAVIS,SCOTT K"
,CHIEF ADMIN OFCR OF THE HOUSE,2012Q2,PERSONNEL COMPENSATION,"","DAWKINS, JOANN",04/01/12,06/30/12,SR TELECOMM ADMIN,"16,167.00",FISCAL YEAR 2012,"","","","DAWKINS, JOANN"
,CHIEF ADMIN OFCR OF THE HOUSE,2012Q2,PERSONNEL COMPENSATION,"","DEAN, JOSEPH M",04/01/12,06/30/12,JOURNEYMAN TEXTILE SPEC,"19,894.74",FISCAL YEAR 2012,"","","","DEAN, JOSEPH M"
,CHIEF ADMIN OFCR OF THE HOUSE,2012Q2,PERSONNEL COMPENSATION,"","DEAVER,JAMES",04/01/12,06/30/12,SENIOR SYSTEMS ENGINEER,"31,512.51",FISCAL YEAR 2012,"","","","DEAVER,JAMES"
,CHIEF ADMIN OFCR OF THE HOUSE,2012Q2,PERSONNEL COMPENSATION,"","DELUCA, ALAN",04/01/12,06/30/12,COMPUTER FACILITIES OP MGR (A),"34,547.25",FISCAL YEAR 2012,"","","","DELUCA, ALAN"
,CHIEF ADMIN OFCR OF THE HOUSE,2012Q2,PERSONNEL COMPENSATION,"","DENT,RICHARD H",04/01/12,06/30/12,JOURNEYMAN TEXTILE SPEC,"12,002.83",FISCAL YEAR 2012,"","","","DENT,RICHARD H"
,CHIEF ADMIN OFCR OF THE HOUSE,2012Q2,PERSONNEL COMPENSATION,"","DERRICK, SCOTT",04/01/12,06/30/12,GRAPHICS & DESKTOP PUBL SPEC,"22,551.00",FISCAL YEAR 2012,"","","","DERRICK, SCOTT"
,CHIEF ADMIN OFCR OF THE HOUSE,2012Q2,PERSONNEL COMPENSATION,"","DICKIE, JAMES",04/01/12,06/30/12,ENGINEERING OPS MANAGER,"29,668.99",FISCAL YEAR 2012,"","","","DICKIE, JAMES"
,CHIEF ADMIN OFCR OF THE HOUSE,2012Q2,PERSONNEL COMPENSATION,"","DIEFFENDERFER, GARY L",04/01/12,06/30/12,SR. APPLICATION DBA SPECIALIST,"31,512.51",FISCAL YEAR 2012,"","","","DIEFFENDERFER, GARY L"
,CHIEF ADMIN OFCR OF THE HOUSE,2012Q2,PERSONNEL COMPENSATION,"","DOBBINS, MARK",04/01/12,06/30/12,"MANAGER, PURCHASING","22,998.51",FISCAL YEAR 2012,"","","","DOBBINS, MARK"
,CHIEF ADMIN OFCR OF THE HOUSE,2012Q2,PERSONNEL COMPENSATION,"","DONALDSON, KAREN",04/01/12,06/30/12,SR FINANCIAL COUNSELOR,"24,150.51",FISCAL YEAR 2012,"","","","DONALDSON, KAREN"
,CHIEF ADMIN OFCR OF THE HOUSE,2012Q2,PERSONNEL COMPENSATION,"","DOODY,ERICA",04/01/12,06/30/12,ADMINISTRATIVE SPECIALIST,"10,852.50",FISCAL YEAR 2012,"","","","DOODY,ERICA"
,CHIEF ADMIN OFCR OF THE HOUSE,2012Q2,PERSONNEL COMPENSATION,"","DOOLEY,GENEVA",04/01/12,06/30/12,SENIOR SOFTWARE SPECIALIST,"31,512.51",FISCAL YEAR 2012,"","","","DOOLEY,GENEVA"
,CHIEF ADMIN OFCR OF THE HOUSE,2012Q2,PERSONNEL COMPENSATION,"","DOZIER, BRIAN A",04/01/12,06/30/12,INVENTORY ADMINISTRATOR,"14,819.25",FISCAL YEAR 2012,"","","","DOZIER, BRIAN A"
,CHIEF ADMIN OFCR OF THE HOUSE,2012Q2,PERSONNEL COMPENSATION,"","DUENAS, JOSEPH E",04/01/12,06/30/12,TECHNICAL SUPPORT REP,"17,937.75",FISCAL YEAR 2012,"","","","DUENAS, JOSEPH E"
,CHIEF ADMIN OFCR OF THE HOUSE,2012Q2,PERSONNEL COMPENSATION,"","DUNKLIN, KELDA Y",04/01/12,06/30/12,SR TECHNICAL SUPPORT REP,"25,939.74",FISCAL YEAR 2012,"","","","DUNKLIN, KELDA Y"
,CHIEF ADMIN OFCR OF THE HOUSE,2012Q2,PERSONNEL COMPENSATION,"","DUPUIS,TIMOTHY D",04/01/12,06/30/12,ADA AIDE,"6,839.67",FISCAL YEAR 2012,"","","","DUPUIS,TIMOTHY D"
,CHIEF ADMIN OFCR OF THE HOUSE,2012Q2,PERSONNEL COMPENSATION,"","DUPUIS,TIMOTHY D",03/01/12,05/31/12,ADA AIDE (OVERTIME),"7,373.92",FISCAL YEAR 2012,"","","","DUPUIS,TIMOTHY D"
,CHIEF ADMIN OFCR OF THE HOUSE,2012Q2,PERSONNEL COMPENSATION,"","DURAN, ROLANDO",04/01/12,06/30/12,ELECTRONICS TECHNICIAN (A),"21,663.00",FISCAL YEAR 2012,"","","","DURAN, ROLANDO"
,CHIEF ADMIN OFCR OF THE HOUSE,2012Q2,PERSONNEL COMPENSATION,"","DURHAM, SANDRA F",04/01/12,06/30/12,NETWORK OPER BRANCH MGR,"33,938.25",FISCAL YEAR 2012,"","","","DURHAM, SANDRA F"
,CHIEF ADMIN OFCR OF THE HOUSE,2012Q2,PERSONNEL COMPENSATION,"","DURKIN, JEFFREY",04/01/12,06/30/12,SENIOR SYSTEMS ENGINEER,"25,939.74",FISCAL YEAR 2012,"","","","DURKIN, JEFFREY"
,CHIEF ADMIN OFCR OF THE HOUSE,2012Q2,PERSONNEL COMPENSATION,"","EBERLE,DAVID A",04/01/12,06/30/12,TECHNICAL SUPPORT REP,"18,719.25",FISCAL YEAR 2012,"","","","EBERLE,DAVID A"
,CHIEF ADMIN OFCR OF THE HOUSE,2012Q2,PERSONNEL COMPENSATION,"","EGERSON, TROY H",04/01/12,06/30/12,JOURNEYMAN TEXTILE SPEC,"18,123.51",FISCAL YEAR 2012,"","","","EGERSON, TROY H"
,CHIEF ADMIN OFCR OF THE HOUSE,2012Q2,PERSONNEL COMPENSATION,"","ELERY, JR, E J",04/01/12,06/30/12,SENIOR CONTRACTS SPECIALIST,"33,729.51",FISCAL YEAR 2012,"","","","ELERY, JR, E J"
,CHIEF ADMIN OFCR OF THE HOUSE,2012Q2,PERSONNEL COMPENSATION,"","ELIAS, ANDREW C",04/01/12,06/30/12,DEPUTY DIRECTOR,"28,962.75",FISCAL YEAR 2012,"","","","ELIAS, ANDREW C"
,CHIEF ADMIN OFCR OF THE HOUSE,2012Q2,PERSONNEL COMPENSATION,"","ELLIN, JAMES B",04/01/12,06/30/12,NETWORK SYSTEMS ENGINEER,"24,777.24",FISCAL YEAR 2012,"","","","ELLIN, JAMES B"
,CHIEF ADMIN OFCR OF THE HOUSE,2012Q2,PERSONNEL COMPENSATION,"","ELLIOTT, RONALD",04/01/12,06/30/12,SR INFO SYST. SECURITY ANALYST,"25,044.51",FISCAL YEAR 2012,"","","","ELLIOTT, RONALD"
,CHIEF ADMIN OFCR OF THE HOUSE,2012Q2,PERSONNEL COMPENSATION,"","ELLIS-GREGG, SHARON",04/01/12,06/30/12,PAYROLL & BENEFITS ASSISTANT,"13,798.50",FISCAL YEAR 2012,"","","","ELLIS-GREGG, SHARON"
,CHIEF ADMIN OFCR OF THE HOUSE,2012Q2,PERSONNEL COMPENSATION,"","EMAMALI, NICOLE S",04/01/12,06/30/12,SR TECHNICAL SUPPORT REP,"26,928.51",FISCAL YEAR 2012,"","","","EMAMALI, NICOLE S"
,CHIEF ADMIN OFCR OF THE HOUSE,2012Q2,PERSONNEL COMPENSATION,"","ENGLISH, JOSEPH H",04/01/12,06/30/12,MOBILE COMM SPECIALIST (DATA),"25,044.51",FISCAL YEAR 2012,"","","","ENGLISH, JOSEPH H"
,CHIEF ADMIN OFCR OF THE HOUSE,2012Q2,PERSONNEL COMPENSATION,"","ERVING, JAMES H",04/01/12,06/30/12,COMMUNICATIONS SPECIALIST,"25,939.74",FISCAL YEAR 2012,"","","","ERVING, JAMES H"
,CHIEF ADMIN OFCR OF THE HOUSE,2012Q2,PERSONNEL COMPENSATION,"","EVANS JR, WILLIAM R",04/01/12,06/30/12,ELECTRONICS TECHNICIAN (A),"22,551.00",FISCAL YEAR 2012,"","","","EVANS JR, WILLIAM R"
,CHIEF ADMIN OFCR OF THE HOUSE,2012Q2,PERSONNEL COMPENSATION,"","EVANS JR, WILLIAM R",03/01/12,05/31/12,ELECTRONICS TECHNICIAN (A) (OVERTIME),"2,049.08",FISCAL YEAR 2012,"","","","EVANS JR, WILLIAM R"
,CHIEF ADMIN OFCR OF THE HOUSE,2012Q2,PERSONNEL COMPENSATION,"","EWERS, GRETCHEN",04/01/12,06/30/12,MANAGER,"25,939.74",FISCAL YEAR 2012,"","","","EWERS, GRETCHEN"
,CHIEF ADMIN OFCR OF THE HOUSE,2012Q2,PERSONNEL COMPENSATION,"","EWING JR, JOHN C",04/01/12,06/30/12,LOGISTICS & DIST SPEC (A),"10,684.50",FISCAL YEAR 2012,"","","","EWING JR, JOHN C"
,CHIEF ADMIN OFCR OF THE HOUSE,2012Q2,PERSONNEL COMPENSATION,"","EY,CARL S",04/01/12,05/31/12,DIRECTOR BUSINESS CONTINUITY,"24,922.84",FISCAL YEAR 2012,"","","","EY,CARL S"
,CHIEF ADMIN OFCR OF THE HOUSE,2012Q2,PERSONNEL COMPENSATION,"","FARLEY, JOANN I",04/01/12,06/30/12,FINANCIAL COUNSELOR,"17,735.76",FISCAL YEAR 2012,"","","","FARLEY, JOANN I"
,CHIEF ADMIN OFCR OF THE HOUSE,2012Q2,PERSONNEL COMPENSATION,"","FIELD, ESTANISLAO",04/01/12,06/30/12,INFO SYSTEMS SECURITY ANALYST,"24,745.17",FISCAL YEAR 2012,"","","","FIELD, ESTANISLAO"
,CHIEF ADMIN OFCR OF THE HOUSE,2012Q2,PERSONNEL COMPENSATION,"","FISHER, JEROME",04/01/12,06/30/12,SR TECH SOLUTIONS ENGINEER,"24,150.51",FISCAL YEAR 2012,"","","","FISHER, JEROME"
,CHIEF ADMIN OFCR OF THE HOUSE,2012Q2,PERSONNEL COMPENSATION,"","FONTNEAU, BRUCE",04/01/12,06/30/12,SR SYSTEMS SUPPORT ENGINEER,"20,771.49",FISCAL YEAR 2012,"","","","FONTNEAU, BRUCE"
,CHIEF ADMIN OFCR OF THE HOUSE,2012Q2,PERSONNEL COMPENSATION,"","FORD, DARIN J",04/01/12,06/30/12,SR TECHNICAL SUPPORT REP (A),"22,107.00",FISCAL YEAR 2012,"","","","FORD, DARIN J"
,CHIEF ADMIN OFCR OF THE HOUSE,2012Q2,PERSONNEL COMPENSATION,"","FORGIONE, JOHN A",04/01/12,06/30/12,SR CUSTOMER SOLUTIONS REP,"18,513.24",FISCAL YEAR 2012,"","","","FORGIONE, JOHN A"
,CHIEF ADMIN OFCR OF THE HOUSE,2012Q2,PERSONNEL COMPENSATION,"","FOSTER, CHARLES J",04/01/12,06/30/12,PAYROLL & BENEFITS ASSISTANT,"13,798.50",FISCAL YEAR 2012,"","","","FOSTER, CHARLES J"
,CHIEF ADMIN OFCR OF THE HOUSE,2012Q2,PERSONNEL COMPENSATION,"","FOUNTAIN,ANIKA",04/01/12,06/30/12,TECH SOLUTIONS TECHNICIAN,"17,344.26",FISCAL YEAR 2012,"","","","FOUNTAIN,ANIKA"
,CHIEF ADMIN OFCR OF THE HOUSE,2012Q2,PERSONNEL COMPENSATION,"","FRANK, DEBBIE",04/01/12,06/30/12,SR EA COUNSELOR,"28,176.51",FISCAL YEAR 2012,"","","","FRANK, DEBBIE"
,CHIEF ADMIN OFCR OF THE HOUSE,2012Q2,PERSONNEL COMPENSATION,"","FRAVEL,DON J",04/01/12,06/30/12,TECH SOLUTIONS TECHNICIAN,"16,957.26",FISCAL YEAR 2012,"","","","FRAVEL,DON J"
,CHIEF ADMIN OFCR OF THE HOUSE,2012Q2,PERSONNEL COMPENSATION,"","FRECH, JASON L",04/01/12,06/30/12,SR SYSTEMS ENGINEER,"22,809.00",FISCAL YEAR 2012,"","","","FRECH, JASON L"
,CHIEF ADMIN OFCR OF THE HOUSE,2012Q2,PERSONNEL COMPENSATION,"","FREEMAN, ANTOINETTE P",04/01/12,06/30/12,ADMINISTRATIVE SPECIALIST,"14,695.00",FISCAL YEAR 2012,"","","","FREEMAN, ANTOINETTE P"
,CHIEF ADMIN OFCR OF THE HOUSE,2012Q2,PERSONNEL COMPENSATION,"","FREENEY, MALCOLM",04/01/12,06/30/12,PROJECT MANAGER,"25,491.51",FISCAL YEAR 2012,"","","","FREENEY, MALCOLM"
,CHIEF ADMIN OFCR OF THE HOUSE,2012Q2,PERSONNEL COMPENSATION,"","FRENCH, CAROL",04/01/12,06/30/12,PAYROLL & BENEFITS GENERALIST,"17,865.01",FISCAL YEAR 2012,"","","","FRENCH, CAROL"
,CHIEF ADMIN OFCR OF THE HOUSE,2012Q2,PERSONNEL COMPENSATION,"","FRENCH, CHARLES",04/01/12,06/30/12,SENIOR NETWORK TECHNICIAN,"25,044.51",FISCAL YEAR 2012,"","","","FRENCH, CHARLES"
,CHIEF ADMIN OFCR OF THE HOUSE,2012Q2,PERSONNEL COMPENSATION,"","FRITZ,ERIC D",04/01/12,06/30/12,SENIOR SYSTEMS ENGINEER,"26,422.74",FISCAL YEAR 2012,"","","","FRITZ,ERIC D"
,CHIEF ADMIN OFCR OF THE HOUSE,2012Q2,PERSONNEL COMPENSATION,"","GAERTNER, LESLIE C",04/01/12,06/30/12,SR NETWORK COMM SPEC,"28,962.75",FISCAL YEAR 2012,"","","","GAERTNER, LESLIE C"
,CHIEF ADMIN OFCR OF THE HOUSE,2012Q2,PERSONNEL COMPENSATION,"","GAINES, JULIA W",04/01/12,06/30/12,SPECIAL ASSISTANT (A),"24,777.24",FISCAL YEAR 2012,"","","","GAINES, JULIA W"
,CHIEF ADMIN OFCR OF THE HOUSE,2012Q2,PERSONNEL COMPENSATION,"","GALLAGHER, RENEE",04/01/12,06/30/12,SR INFO SYST. SECURITY ANALYST,"25,044.51",FISCAL YEAR 2012,"","","","GALLAGHER, RENEE"
,CHIEF ADMIN OFCR OF THE HOUSE,2012Q2,PERSONNEL COMPENSATION,"","GALLEGOS, JERRY L",04/01/12,06/30/12,SUPERINTENDENT,"34,836.75",FISCAL YEAR 2012,"","","","GALLEGOS, JERRY L"
,CHIEF ADMIN OFCR OF THE HOUSE,2012Q2,PERSONNEL COMPENSATION,"","GALVAN, RICARDO J",04/01/12,06/30/12,INVENTORY AND PLANNING MANAGER,"25,044.51",FISCAL YEAR 2012,"","","","GALVAN, RICARDO J"
,CHIEF ADMIN OFCR OF THE HOUSE,2012Q2,PERSONNEL COMPENSATION,"","GARAY, GERMAN",04/01/12,06/30/12,BROADCAST PRODUCTION TECHNICIA,"22,255.00",FISCAL YEAR 2012,"","","","GARAY, GERMAN"
,CHIEF ADMIN OFCR OF THE HOUSE,2012Q2,PERSONNEL COMPENSATION,"","GARAY, GERMAN",03/01/12,05/31/12,BROADCAST PRODUCTION TECHNICIA (OVERTIME),"3,092.82",FISCAL YEAR 2012,"","","","GARAY, GERMAN"
,CHIEF ADMIN OFCR OF THE HOUSE,2012Q2,PERSONNEL COMPENSATION,"","GASKINS, JAMES R",04/01/12,06/30/12,BRANCH MANAGER,"31,512.51",FISCAL YEAR 2012,"","","","GASKINS, JAMES R"
,CHIEF ADMIN OFCR OF THE HOUSE,2012Q2,PERSONNEL COMPENSATION,"","GATES, TRENA F",04/01/12,06/30/12,FINANCIAL COUNSELOR,"20,286.24",FISCAL YEAR 2012,"","","","GATES, TRENA F"
,CHIEF ADMIN OFCR OF THE HOUSE,2012Q2,PERSONNEL COMPENSATION,"","GATES,COREY M",04/01/12,06/30/12,JOURNEYMAN TEXTILE SPEC,"12,786.51",FISCAL YEAR 2012,"","","","GATES,COREY M"
,CHIEF ADMIN OFCR OF THE HOUSE,2012Q2,PERSONNEL COMPENSATION,"","GATES,THOMAS D",04/01/12,06/30/12,SYSTEMS ENGINEER,"20,323.74",FISCAL YEAR 2012,"","","","GATES,THOMAS D"
,CHIEF ADMIN OFCR OF THE HOUSE,2012Q2,PERSONNEL COMPENSATION,"","GEPERT,DARLA M",04/01/12,06/30/12,ADMINISTRATIVE SPECIALIST (A),"12,115.50",FISCAL YEAR 2012,"","","","GEPERT,DARLA M"
,CHIEF ADMIN OFCR OF THE HOUSE,2012Q2,PERSONNEL COMPENSATION,"","GERARDEN,PAUL J",04/01/12,06/30/12,CUSTOMER SOLUTIONS REP,"13,123.50",FISCAL YEAR 2012,"","","","GERARDEN,PAUL J"
,CHIEF ADMIN OFCR OF THE HOUSE,2012Q2,PERSONNEL COMPENSATION,"","GIZARA, MICHAEL P",04/01/12,06/30/12,SR APPLICATION SECURITY ANALYS,"28,962.75",FISCAL YEAR 2012,"","","","GIZARA, MICHAEL P"
,CHIEF ADMIN OFCR OF THE HOUSE,2012Q2,PERSONNEL COMPENSATION,"","GOGGINS II, JAMES D",04/01/12,06/30/12,NETWORK COMM SPECIALIST (A),"22,551.00",FISCAL YEAR 2012,"","","","GOGGINS II, JAMES D"
,CHIEF ADMIN OFCR OF THE HOUSE,2012Q2,PERSONNEL COMPENSATION,"","GOLDSBOROUGH-LEE, ANGEL M",04/01/12,06/30/12,"DIR, TECH MGT & INTERNAL CTRLS","33,938.25",FISCAL YEAR 2012,"","","","GOLDSBOROUGH-LEE, ANGEL M"
,CHIEF ADMIN OFCR OF THE HOUSE,2012Q2,PERSONNEL COMPENSATION,"","GONZALEZ, ROSARIO D",04/01/12,06/30/12,SR CUSTOMER SOLUTIONS REP,"19,502.49",FISCAL YEAR 2012,"","","","GONZALEZ, ROSARIO D"
,CHIEF ADMIN OFCR OF THE HOUSE,2012Q2,PERSONNEL COMPENSATION,"","GOULD, MICHAEL",04/01/12,06/30/12,"MANAGER, REMEDY MANAGEMENT","28,746.75",FISCAL YEAR 2012,"","","","GOULD, MICHAEL"
,CHIEF ADMIN OFCR OF THE HOUSE,2012Q2,PERSONNEL COMPENSATION,"","GRAEUB, ANDREW C",04/01/12,06/30/12,"MANAGER, NETWORK SYST ENGINEER","33,323.25",FISCAL YEAR 2012,"","","","GRAEUB, ANDREW C"
,CHIEF ADMIN OFCR OF THE HOUSE,2012Q2,PERSONNEL COMPENSATION,"","GREEN, CAROLINE",04/01/12,06/30/12,TECHNICAL SUPPORT REP (A),"17,735.76",FISCAL YEAR 2012,"","","","GREEN, CAROLINE"
,CHIEF ADMIN OFCR OF THE HOUSE,2012Q2,PERSONNEL COMPENSATION,"","GREEN, MITCHELL",04/01/12,06/30/12,CONTRACT ADMINISTRATOR,"31,697.42",FISCAL YEAR 2012,"","","","GREEN, MITCHELL"
,CHIEF ADMIN OFCR OF THE HOUSE,2012Q2,PERSONNEL COMPENSATION,"","GREEN,ANDREW L",04/01/12,06/30/12,TECHNICAL SUPPORT REP,"16,569.24",FISCAL YEAR 2012,"","","","GREEN,ANDREW L"
,CHIEF ADMIN OFCR OF THE HOUSE,2012Q2,PERSONNEL COMPENSATION,"","GREENE, CHANTEL T",04/01/12,05/31/12,DIRECTOR,"23,031.50",FISCAL YEAR 2012,"","","","GREENE, CHANTEL T"
,CHIEF ADMIN OFCR OF THE HOUSE,2012Q2,PERSONNEL COMPENSATION,"","GREENE, CHANTEL T",06/01/12,06/30/12,MGR BUS SYS AND INTEGRATION,"11,515.75",FISCAL YEAR 2012,"","","","GREENE, CHANTEL T"
,CHIEF ADMIN OFCR OF THE HOUSE,2012Q2,PERSONNEL COMPENSATION,"","GRIGGS,KYLE R",04/01/12,06/30/12,CONTRACTS SUPPORT ADMIN,"13,584.42",FISCAL YEAR 2012,"","","","GRIGGS,KYLE R"
,CHIEF ADMIN OFCR OF THE HOUSE,2012Q2,PERSONNEL COMPENSATION,"","GRISWOLD,RAYMOND",04/01/12,06/30/12,"DIRECTOR, ACQ & CONTRACT MGMT","32,096.01",FISCAL YEAR 2012,"","","","GRISWOLD,RAYMOND"
,CHIEF ADMIN OFCR OF THE HOUSE,2012Q2,PERSONNEL COMPENSATION,"","GRONSKI,ROBERT S",04/01/12,06/30/12,SR BUSINESS PROCESS APPL SPEC,"29,298.99",FISCAL YEAR 2012,"","","","GRONSKI,ROBERT S"
,CHIEF ADMIN OFCR OF THE HOUSE,2012Q2,PERSONNEL COMPENSATION,"","GUDURU,PRATAP K",04/01/12,06/30/12,SENIOR SYSTEMS ENGINEER,"30,405.24",FISCAL YEAR 2012,"","","","GUDURU,PRATAP K"
,CHIEF ADMIN OFCR OF THE HOUSE,2012Q2,PERSONNEL COMPENSATION,"","GUGLIOTTA,NORMAN",04/01/12,06/30/12,FINANCIAL COUNSELOR (A),"15,789.00",FISCAL YEAR 2012,"","","","GUGLIOTTA,NORMAN"
,CHIEF ADMIN OFCR OF THE HOUSE,2012Q2,PERSONNEL COMPENSATION,"","HALL,MORGAN",04/01/12,06/30/12,FACILITIES MANAGEMENT SPECIALI,"16,569.24",FISCAL YEAR 2012,"","","","HALL,MORGAN"
,CHIEF ADMIN OFCR OF THE HOUSE,2012Q2,PERSONNEL COMPENSATION,"","HAMBRIC, STEEN H",04/01/12,06/30/12,ASSISTANT CAO,"42,102.75",FISCAL YEAR 2012,"","","","HAMBRIC, STEEN H"
,CHIEF ADMIN OFCR OF THE HOUSE,2012Q2,PERSONNEL COMPENSATION,"","HAMEL,RYAN T",06/04/12,06/30/12,THIRD ASSISTANT,"4,853.78",FISCAL YEAR 2012,"","","","HAMEL,RYAN T"
,CHIEF ADMIN OFCR OF THE HOUSE,2012Q2,PERSONNEL COMPENSATION,"","HAMNER, PHILIP D",04/01/12,06/30/12,"DIRECTOR, ACCOUNTING","35,775.51",FISCAL YEAR 2012,"","","","HAMNER, PHILIP D"
,CHIEF ADMIN OFCR OF THE HOUSE,2012Q2,PERSONNEL COMPENSATION,"","HANCOCK, TERRY L",04/01/12,06/30/12,SR INFO SYST. SECURITY ANALYST,"31,512.51",FISCAL YEAR 2012,"","","","HANCOCK, TERRY L"
,CHIEF ADMIN OFCR OF THE HOUSE,2012Q2,PERSONNEL COMPENSATION,"","HANEY, WINSTON",04/01/12,06/30/12,ACCOUNT MANAGEMENT COUNSELOR,"13,798.50",FISCAL YEAR 2012,"","","","HANEY, WINSTON"
,CHIEF ADMIN OFCR OF THE HOUSE,2012Q2,PERSONNEL COMPENSATION,"","HANLEY,JONATHAN S",06/11/12,06/30/12,PROG COORD SUMMER ENRICH PROG,"3,898.78",FISCAL YEAR 2012,"","","","HANLEY,JONATHAN S"
,CHIEF ADMIN OFCR OF THE HOUSE,2012Q2,PERSONNEL COMPENSATION,"","HANONU, TINA M",04/01/12,06/30/12,ASSISTANT CAO,"42,102.75",FISCAL YEAR 2012,"","","","HANONU, TINA M"
,CHIEF ADMIN OFCR OF THE HOUSE,2012Q2,PERSONNEL COMPENSATION,"","HAQ,RABIA",04/01/12,06/30/12,BUSINESS PROC APPLIC SPEC,"22,809.00",FISCAL YEAR 2012,"","","","HAQ,RABIA"
,CHIEF ADMIN OFCR OF THE HOUSE,2012Q2,PERSONNEL COMPENSATION,"","HARDY, MARGUERITA P",04/01/12,06/30/12,CUSTOMER SOLUTIONS REP,"13,460.01",FISCAL YEAR 2012,"","","","HARDY, MARGUERITA P"
,CHIEF ADMIN OFCR OF THE HOUSE,2012Q2,PERSONNEL COMPENSATION,"","HARGROVE, BRIAN",04/01/12,06/30/12,LOGISTICS & DIST SPEC (A),"10,095.75",FISCAL YEAR 2012,"","","","HARGROVE, BRIAN"
,CHIEF ADMIN OFCR OF THE HOUSE,2012Q2,PERSONNEL COMPENSATION,"","HARRINGTON, KEITH",04/01/12,06/30/12,FINANCIAL COUNSELOR,"22,639.26",FISCAL YEAR 2012,"","","","HARRINGTON, KEITH"
,CHIEF ADMIN OFCR OF THE HOUSE,2012Q2,PERSONNEL COMPENSATION,"","HARRIS, DONALD",04/01/12,06/30/12,SR NETWORK COMM SPECIALIST,"28,115.51",FISCAL YEAR 2012,"","","","HARRIS, DONALD"
,CHIEF ADMIN OFCR OF THE HOUSE,2012Q2,PERSONNEL COMPENSATION,"","HARRIS, KEVIN",04/01/12,06/30/12,JOURNEYMAN FURNITURE SPEC,"18,903.24",FISCAL YEAR 2012,"","","","HARRIS, KEVIN"
,CHIEF ADMIN OFCR OF THE HOUSE,2012Q2,PERSONNEL COMPENSATION,"","HARRIS, STEPHANIE A",04/01/12,06/30/12,SR BUSINESS PROC APPL SPEC II,"42,102.75",FISCAL YEAR 2012,"","","","HARRIS, STEPHANIE A"
,CHIEF ADMIN OFCR OF THE HOUSE,2012Q2,PERSONNEL COMPENSATION,"","HARVEY, JAMIE",04/01/12,06/30/12,SR TELECOMMUNICATIONS ADMIN (A,"16,167.00",FISCAL YEAR 2012,"","","","HARVEY, JAMIE"
,CHIEF ADMIN OFCR OF THE HOUSE,2012Q2,PERSONNEL COMPENSATION,"","HARVEY,KINSEY B",04/01/12,06/30/12,MEDIA LOGISTICS COORDINATOR,"15,401.76",FISCAL YEAR 2012,"","","","HARVEY,KINSEY B"
,CHIEF ADMIN OFCR OF THE HOUSE,2012Q2,PERSONNEL COMPENSATION,"","HAYES,KATHLEEN M",04/01/12,06/30/12,CUSTOMER SOLUTIONS REP,"14,148.00",FISCAL YEAR 2012,"","","","HAYES,KATHLEEN M"
,CHIEF ADMIN OFCR OF THE HOUSE,2012Q2,PERSONNEL COMPENSATION,"","HAYES,MICHELLE P",04/01/12,06/30/12,SENIOR SYSTEMS ENGINEER,"30,960.24",FISCAL YEAR 2012,"","","","HAYES,MICHELLE P"
,CHIEF ADMIN OFCR OF THE HOUSE,2012Q2,PERSONNEL COMPENSATION,"","HEEB III, JOHN J",04/01/12,06/30/12,SR BUSINESS PROCESS APPL SPEC,"33,173.76",FISCAL YEAR 2012,"","","","HEEB III, JOHN J"
,CHIEF ADMIN OFCR OF THE HOUSE,2012Q2,PERSONNEL COMPENSATION,"","HERBERT, GREGORY L",04/01/12,06/30/12,REC/WAREHOUSE SPEC (A),"11,735.25",FISCAL YEAR 2012,"","","","HERBERT, GREGORY L"
,CHIEF ADMIN OFCR OF THE HOUSE,2012Q2,PERSONNEL COMPENSATION,"","HIBBS, CYNTHIA",04/01/12,06/30/12,NETWORK COORDINATOR (A),"18,903.24",FISCAL YEAR 2012,"","","","HIBBS, CYNTHIA"
,CHIEF ADMIN OFCR OF THE HOUSE,2012Q2,PERSONNEL COMPENSATION,"","HICKS, KATHERINE A",04/01/12,06/30/12,RESOURCE ANALYST,"19,110.75",FISCAL YEAR 2012,"","","","HICKS, KATHERINE A"
,CHIEF ADMIN OFCR OF THE HOUSE,2012Q2,PERSONNEL COMPENSATION,"","HILL, TITRA M",04/01/12,06/30/12,RECEPTIONIST,"13,460.01",FISCAL YEAR 2012,"","","","HILL, TITRA M"
,CHIEF ADMIN OFCR OF THE HOUSE,2012Q2,PERSONNEL COMPENSATION,"","HIRSCH, PATRICK A",04/01/12,06/30/12,DIR-HOUSE RECORDING STUDIO,"39,794.25",FISCAL YEAR 2012,"","","","HIRSCH, PATRICK A"
,CHIEF ADMIN OFCR OF THE HOUSE,2012Q2,PERSONNEL COMPENSATION,"","HITE,JASON A",04/01/12,06/30/12,CHIEF HUMAN RESOURCES OFFICER,"34,547.25",FISCAL YEAR 2012,"","","","HITE,JASON A"
,CHIEF ADMIN OFCR OF THE HOUSE,2012Q2,PERSONNEL COMPENSATION,"","HOANG, CHI PHUONG N",04/01/12,06/30/12,SR BUSINESS PROCESS APPL SPEC,"25,912.74",FISCAL YEAR 2012,"","","","HOANG, CHI PHUONG N"
,CHIEF ADMIN OFCR OF THE HOUSE,2012Q2,PERSONNEL COMPENSATION,"","HOBBS, DENINE",04/01/12,06/30/12,SPECIAL ASSISTANT,"24,447.17",FISCAL YEAR 2012,"","","","HOBBS, DENINE"
,CHIEF ADMIN OFCR OF THE HOUSE,2012Q2,PERSONNEL COMPENSATION,"","HODGES, JOHN E",04/01/12,06/30/12,"MANAGER, SALES & CUSTOMER SVC","24,777.24",FISCAL YEAR 2012,"","","","HODGES, JOHN E"
,CHIEF ADMIN OFCR OF THE HOUSE,2012Q2,PERSONNEL COMPENSATION,"","HOKHOLD, MARK D",04/01/12,06/30/12,SYSTEMS ENGINEER,"24,595.50",FISCAL YEAR 2012,"","","","HOKHOLD, MARK D"
,CHIEF ADMIN OFCR OF THE HOUSE,2012Q2,PERSONNEL COMPENSATION,"","HOLAU,GEORGE",04/01/12,06/30/12,FINANCIAL COUNSELOR,"20,286.24",FISCAL YEAR 2012,"","","","HOLAU,GEORGE"
,CHIEF ADMIN OFCR OF THE HOUSE,2012Q2,PERSONNEL COMPENSATION,"","HOLLAND, GREGORY",04/01/12,06/30/12,LOGISTICS & DIST SPEC (A),"11,274.00",FISCAL YEAR 2012,"","","","HOLLAND, GREGORY"
,CHIEF ADMIN OFCR OF THE HOUSE,2012Q2,PERSONNEL COMPENSATION,"","HOLLEY, STEVEN M",04/01/12,06/30/12,LOGISTICS & DIST SPEC (A),"10,684.50",FISCAL YEAR 2012,"","","","HOLLEY, STEVEN M"
,CHIEF ADMIN OFCR OF THE HOUSE,2012Q2,PERSONNEL COMPENSATION,"","HOLLIWAY, MONROE",04/01/12,06/30/12,LOGISTICS & DIST SPEC (A),"10,684.50",FISCAL YEAR 2012,"","","","HOLLIWAY, MONROE"
,CHIEF ADMIN OFCR OF THE HOUSE,2012Q2,PERSONNEL COMPENSATION,"","HOLMBERG, BARBARA A",04/01/12,06/30/12,PAYROLL & BENEFITS ASSISTANT,"14,807.25",FISCAL YEAR 2012,"","","","HOLMBERG, BARBARA A"
,CHIEF ADMIN OFCR OF THE HOUSE,2012Q2,PERSONNEL COMPENSATION,"","HORNBURG, RICHARD A",04/01/12,06/30/12,BUSINESS PROC APPLIC SPEC,"27,437.01",FISCAL YEAR 2012,"","","","HORNBURG, RICHARD A"
,CHIEF ADMIN OFCR OF THE HOUSE,2012Q2,PERSONNEL COMPENSATION,"","HORTON, ALFREDDA L",04/01/12,06/30/12,ASSISTANT CAO,"42,102.75",FISCAL YEAR 2012,"","","","HORTON, ALFREDDA L"
,CHIEF ADMIN OFCR OF THE HOUSE,2012Q2,PERSONNEL COMPENSATION,"","HOWARD, ANTHONY T",04/01/12,06/30/12,JOURNEYMAN TEXTILE SPEC,"16,505.25",FISCAL YEAR 2012,"","","","HOWARD, ANTHONY T"
,CHIEF ADMIN OFCR OF THE HOUSE,2012Q2,PERSONNEL COMPENSATION,"","HUGHES, MICHAEL A",04/01/12,06/30/12,FINANCIAL COUNSELOR,"15,491.01",FISCAL YEAR 2012,"","","","HUGHES, MICHAEL A"
,CHIEF ADMIN OFCR OF THE HOUSE,2012Q2,PERSONNEL COMPENSATION,"","HUGHES, RICHARD N",04/01/12,06/30/12,SENIOR AUDIO SPECIALIST,"29,301.41",FISCAL YEAR 2012,"","","","HUGHES, RICHARD N"
,CHIEF ADMIN OFCR OF THE HOUSE,2012Q2,PERSONNEL COMPENSATION,"","HUGHES, RICHARD N",03/01/12,05/31/12,SENIOR AUDIO SPECIALIST (OVERTIME),167.83,FISCAL YEAR 2012,"","","","HUGHES, RICHARD N"
,CHIEF ADMIN OFCR OF THE HOUSE,2012Q2,PERSONNEL COMPENSATION,"","HUNT,DANIEL",04/01/12,06/30/12,SR NETWORK COMM SPECIALIST,"30,405.24",FISCAL YEAR 2012,"","","","HUNT,DANIEL"
,CHIEF ADMIN OFCR OF THE HOUSE,2012Q2,PERSONNEL COMPENSATION,"","HUNTER, PAMELA A",04/01/12,06/30/12,PROGRAM MANAGER,"26,928.51",FISCAL YEAR 2012,"","","","HUNTER, PAMELA A"
,CHIEF ADMIN OFCR OF THE HOUSE,2012Q2,PERSONNEL COMPENSATION,"","HUNTER, STEVE",04/01/12,06/30/12,ACCOUNT MANAGEMENT COUNSELOR,"13,235.67",FISCAL YEAR 2012,"","","","HUNTER, STEVE"
,CHIEF ADMIN OFCR OF THE HOUSE,2012Q2,PERSONNEL COMPENSATION,"","HURDA, JACQUELINE L",04/01/12,06/30/12,FINANCIAL COUNSELOR (A),"19,502.49",FISCAL YEAR 2012,"","","","HURDA, JACQUELINE L"
,CHIEF ADMIN OFCR OF THE HOUSE,2012Q2,PERSONNEL COMPENSATION,"","ILOG,ANGELA M",04/01/12,06/30/12,CONTRACTS SUPPORT ADMIN,"13,809.24",FISCAL YEAR 2012,"","","","ILOG,ANGELA M"
,CHIEF ADMIN OFCR OF THE HOUSE,2012Q2,PERSONNEL COMPENSATION,"","IVERSON, IVAN",04/01/12,04/13/12,SR INFO SYST. SECURITY ANALYST,"3,742.95",FISCAL YEAR 2012,"","","","IVERSON, IVAN"
,CHIEF ADMIN OFCR OF THE HOUSE,2012Q2,PERSONNEL COMPENSATION,"","IVERSON, IVAN",04/01/12,04/13/12,SR INFO SYST. SECURITY ANALYST (OTHER COMPENSATION),"8,637.58",FISCAL YEAR 2012,"","","","IVERSON, IVAN"
,CHIEF ADMIN OFCR OF THE HOUSE,2012Q2,PERSONNEL COMPENSATION,"","JACKSON, REGGIE",04/01/12,06/30/12,SR TECHNICAL SUPPORT REP (A),"22,809.00",FISCAL YEAR 2012,"","","","JACKSON, REGGIE"
,CHIEF ADMIN OFCR OF THE HOUSE,2012Q2,PERSONNEL COMPENSATION,"","JACKSON, TREVERA R",04/01/12,06/30/12,SYSTEMS ENGINEER,"22,639.26",FISCAL YEAR 2012,"","","","JACKSON, TREVERA R"
,CHIEF ADMIN OFCR OF THE HOUSE,2012Q2,PERSONNEL COMPENSATION,"","JACKSON, WANDA J",04/01/12,06/30/12,TELECOMMUNICATIONS BRANCH MNGR,"25,912.74",FISCAL YEAR 2012,"","","","JACKSON, WANDA J"
,CHIEF ADMIN OFCR OF THE HOUSE,2012Q2,PERSONNEL COMPENSATION,"","JACOBSON, BRADLEY J",04/01/12,06/30/12,BRANCH MANAGER,"33,938.25",FISCAL YEAR 2012,"","","","JACOBSON, BRADLEY J"
,CHIEF ADMIN OFCR OF THE HOUSE,2012Q2,PERSONNEL COMPENSATION,"","JANIFER, ROLAND S",04/01/12,06/30/12,"SUPERVISOR,LOGIS & DIST (A)","17,735.76",FISCAL YEAR 2012,"","","","JANIFER, ROLAND S"
,CHIEF ADMIN OFCR OF THE HOUSE,2012Q2,PERSONNEL COMPENSATION,"","JEFFERSON,KENYATTA",04/01/12,06/30/12,TECH SOLUTIONS ENGINEER,"16,179.24",FISCAL YEAR 2012,"","","","JEFFERSON,KENYATTA"
,CHIEF ADMIN OFCR OF THE HOUSE,2012Q2,PERSONNEL COMPENSATION,"","JENKINS, JAMES",04/01/12,06/30/12,WORKFLOW COORDINATOR,"18,903.24",FISCAL YEAR 2012,"","","","JENKINS, JAMES"
,CHIEF ADMIN OFCR OF THE HOUSE,2012Q2,PERSONNEL COMPENSATION,"","JENNINGS, ARACELI",04/01/12,06/30/12,FINANCIAL ASSISTANT,"16,505.25",FISCAL YEAR 2012,"","","","JENNINGS, ARACELI"
,CHIEF ADMIN OFCR OF THE HOUSE,2012Q2,PERSONNEL COMPENSATION,"","JENSEN,CHRISTINE",04/01/12,06/30/12,PROGRAM ASSISTANT (WWP),"23,704.50",FISCAL YEAR 2012,"","","","JENSEN,CHRISTINE"
,CHIEF ADMIN OFCR OF THE HOUSE,2012Q2,PERSONNEL COMPENSATION,"","JOHANN, DEREK",04/01/12,06/30/12,SR RECEIVING & WAREHOUSIN SPEC,"16,505.25",FISCAL YEAR 2012,"","","","JOHANN, DEREK"
,CHIEF ADMIN OFCR OF THE HOUSE,2012Q2,PERSONNEL COMPENSATION,"","JOHNSON, ANDRE",04/01/12,06/30/12,APPLICATION DBA SPECIALIST,"22,551.00",FISCAL YEAR 2012,"","","","JOHNSON, ANDRE"
,CHIEF ADMIN OFCR OF THE HOUSE,2012Q2,PERSONNEL COMPENSATION,"","JOHNSON, DWAYNE",04/01/12,06/30/12,RETAIL INVENTORY SPECIALIST,"14,134.74",FISCAL YEAR 2012,"","","","JOHNSON, DWAYNE"
,CHIEF ADMIN OFCR OF THE HOUSE,2012Q2,PERSONNEL COMPENSATION,"","JOHNSON, ERIC C",04/01/12,06/30/12,LOGISTICS & DIST SPEC (A),"6,710.42",FISCAL YEAR 2012,"","","","JOHNSON, ERIC C"
,CHIEF ADMIN OFCR OF THE HOUSE,2012Q2,PERSONNEL COMPENSATION,"","JOHNSON, MARGARET K",04/01/12,06/30/12,SR MODULAR FURNITURE SPEC,"16,957.26",FISCAL YEAR 2012,"","","","JOHNSON, MARGARET K"
,CHIEF ADMIN OFCR OF THE HOUSE,2012Q2,PERSONNEL COMPENSATION,"","JOHNSON, REGINALD",04/01/12,06/30/12,FINANCIAL COUNSELOR (A),"16,957.26",FISCAL YEAR 2012,"","","","JOHNSON, REGINALD"
,CHIEF ADMIN OFCR OF THE HOUSE,2012Q2,PERSONNEL COMPENSATION,"","JOHNSON, ROBERT C",04/01/12,06/30/12,SENIOR SYSTEMS ENGINEER,"29,470.74",FISCAL YEAR 2012,"","","","JOHNSON, ROBERT C"
,CHIEF ADMIN OFCR OF THE HOUSE,2012Q2,PERSONNEL COMPENSATION,"","JOHNSON, STEPHEN R",04/01/12,06/30/12,AUDIO SPECIALIST,"25,044.51",FISCAL YEAR 2012,"","","","JOHNSON, STEPHEN R"
,CHIEF ADMIN OFCR OF THE HOUSE,2012Q2,PERSONNEL COMPENSATION,"","JOHNSON, STEPHEN R",03/01/12,05/31/12,AUDIO SPECIALIST (OVERTIME),"1,444.86",FISCAL YEAR 2012,"","","","JOHNSON, STEPHEN R"
,CHIEF ADMIN OFCR OF THE HOUSE,2012Q2,PERSONNEL COMPENSATION,"","JOHNSON,KWASI Z",04/01/12,06/30/12,LOGISTICS & DIST SPEC (A),"8,751.24",FISCAL YEAR 2012,"","","","JOHNSON,KWASI Z"
,CHIEF ADMIN OFCR OF THE HOUSE,2012Q2,PERSONNEL COMPENSATION,"","JONES III,CLARENCE",04/01/12,06/30/12,SENIOR NETWORK TECHNICIAN,"18,719.25",FISCAL YEAR 2012,"","","","JONES III,CLARENCE"
,CHIEF ADMIN OFCR OF THE HOUSE,2012Q2,PERSONNEL COMPENSATION,"","JONES JR, CHARLES J",04/01/12,06/30/12,NETWORK COMM SPECIALIST,"23,704.50",FISCAL YEAR 2012,"","","","JONES JR, CHARLES J"
,CHIEF ADMIN OFCR OF THE HOUSE,2012Q2,PERSONNEL COMPENSATION,"","JONES, DEBORAH D",04/01/12,06/30/12,FINANCIAL COUNSELOR,"21,069.99",FISCAL YEAR 2012,"","","","JONES, DEBORAH D"
,CHIEF ADMIN OFCR OF THE HOUSE,2012Q2,PERSONNEL COMPENSATION,"","JONES, MITCHAEL",04/01/12,06/30/12,TECHNICAL TRAINER,"19,763.99",FISCAL YEAR 2012,"","","","JONES, MITCHAEL"
,CHIEF ADMIN OFCR OF THE HOUSE,2012Q2,PERSONNEL COMPENSATION,"","JONES, STEPHEN E",04/01/12,06/30/12,SENIOR SYSTEMS ENGINEER,"29,298.99",FISCAL YEAR 2012,"","","","JONES, STEPHEN E"
,CHIEF ADMIN OFCR OF THE HOUSE,2012Q2,PERSONNEL COMPENSATION,"","JONES, WESLEY D",04/01/12,06/30/12,LOGISTICS & DIST SPEC (A),"10,980.00",FISCAL YEAR 2012,"","","","JONES, WESLEY D"
,CHIEF ADMIN OFCR OF THE HOUSE,2012Q2,PERSONNEL COMPENSATION,"","JONES,RODNEY B",04/01/12,06/30/12,SR TECHNICAL SUPPORT REP,"20,771.49",FISCAL YEAR 2012,"","","","JONES,RODNEY B"
,CHIEF ADMIN OFCR OF THE HOUSE,2012Q2,PERSONNEL COMPENSATION,"","JONES,YOLANDA S",04/01/12,06/30/12,PAYROLL & BENEFITS GENERALIST,"15,401.76",FISCAL YEAR 2012,"","","","JONES,YOLANDA S"
,CHIEF ADMIN OFCR OF THE HOUSE,2012Q2,PERSONNEL COMPENSATION,"","JORDAN, YONG O",04/01/12,06/30/12,SR TECH SOLUTIONS ENGINEER,"24,150.51",FISCAL YEAR 2012,"","","","JORDAN, YONG O"
,CHIEF ADMIN OFCR OF THE HOUSE,2012Q2,PERSONNEL COMPENSATION,"","JOYCE, ERIC",04/01/12,06/30/12,SUPERVISOR,"27,437.01",FISCAL YEAR 2012,"","","","JOYCE, ERIC"
,CHIEF ADMIN OFCR OF THE HOUSE,2012Q2,PERSONNEL COMPENSATION,"","JUDGE, NANCY",04/01/12,06/30/12,CUSTOMER SOLUTIONS REP,"15,155.76",FISCAL YEAR 2012,"","","","JUDGE, NANCY"
,CHIEF ADMIN OFCR OF THE HOUSE,2012Q2,PERSONNEL COMPENSATION,"","KAESER, STEVEN W",04/01/12,06/30/12,SENIOR SYSTEMS ENGINEER,"28,454.01",FISCAL YEAR 2012,"","","","KAESER, STEVEN W"
,CHIEF ADMIN OFCR OF THE HOUSE,2012Q2,PERSONNEL COMPENSATION,"","KAHLER, KENT",04/01/12,06/30/12,SYSTEMS ENGINEER,"25,044.51",FISCAL YEAR 2012,"","","","KAHLER, KENT"
,CHIEF ADMIN OFCR OF THE HOUSE,2012Q2,PERSONNEL COMPENSATION,"","KAPLAN,LEAH",04/01/12,06/30/12,MEDIA LOGISTICS ASSISTANT,"11,777.49",FISCAL YEAR 2012,"","","","KAPLAN,LEAH"
,CHIEF ADMIN OFCR OF THE HOUSE,2012Q2,PERSONNEL COMPENSATION,"","KEANE, MICHAEL T",04/01/12,06/30/12,WORKFLOW COORDINATOR,"18,719.25",FISCAL YEAR 2012,"","","","KEANE, MICHAEL T"
,CHIEF ADMIN OFCR OF THE HOUSE,2012Q2,PERSONNEL COMPENSATION,"","KELLAHER,ANTHONY",04/01/12,06/30/12,MEDIA LOGISTICS COORDINATOR,"17,544.51",FISCAL YEAR 2012,"","","","KELLAHER,ANTHONY"
,CHIEF ADMIN OFCR OF THE HOUSE,2012Q2,PERSONNEL COMPENSATION,"","KELLEY, KEVIN S",04/01/12,06/30/12,CUSTOMER SOLUTIONS REP,"15,830.01",FISCAL YEAR 2012,"","","","KELLEY, KEVIN S"
,CHIEF ADMIN OFCR OF THE HOUSE,2012Q2,PERSONNEL COMPENSATION,"","KELLEY, MARY M",04/01/12,06/30/12,RESOURCE MANAGER,"28,962.75",FISCAL YEAR 2012,"","","","KELLEY, MARY M"
,CHIEF ADMIN OFCR OF THE HOUSE,2012Q2,PERSONNEL COMPENSATION,"","KELLEY, TARA A",04/01/12,06/30/12,COMMUNICATIONS SPEC (A),"20,676.99",FISCAL YEAR 2012,"","","","KELLEY, TARA A"
,CHIEF ADMIN OFCR OF THE HOUSE,2012Q2,PERSONNEL COMPENSATION,"","KELLY, CYNTHIA W",04/01/12,06/30/12,INTERNET SYSTEMS SPECIALIST,"22,639.26",FISCAL YEAR 2012,"","","","KELLY, CYNTHIA W"
,CHIEF ADMIN OFCR OF THE HOUSE,2012Q2,PERSONNEL COMPENSATION,"","KEMP, DAVID S",04/01/12,06/30/12,SENIOR SYSTEMS ENGINEER,"32,621.25",FISCAL YEAR 2012,"","","","KEMP, DAVID S"
,CHIEF ADMIN OFCR OF THE HOUSE,2012Q2,PERSONNEL COMPENSATION,"","KENEALY, PATRICK T",04/01/12,06/30/12,FINANCIAL ANALYST,"33,729.51",FISCAL YEAR 2012,"","","","KENEALY, PATRICK T"
,CHIEF ADMIN OFCR OF THE HOUSE,2012Q2,PERSONNEL COMPENSATION,"","KILSON,FRANKLIN P",04/01/12,06/30/12,NETWORK TECHNICIAN,"21,214.74",FISCAL YEAR 2012,"","","","KILSON,FRANKLIN P"
,CHIEF ADMIN OFCR OF THE HOUSE,2012Q2,PERSONNEL COMPENSATION,"","KIMBALL, MARK E",04/01/12,06/30/12,SR TECHNICAL SUPPORT REP (A),"21,663.00",FISCAL YEAR 2012,"","","","KIMBALL, MARK E"
,CHIEF ADMIN OFCR OF THE HOUSE,2012Q2,PERSONNEL COMPENSATION,"","KING, ERIC C",04/01/12,06/30/12,JOURNEYMAN FURNITURE SPEC,"19,502.49",FISCAL YEAR 2012,"","","","KING, ERIC C"
,CHIEF ADMIN OFCR OF THE HOUSE,2012Q2,PERSONNEL COMPENSATION,"","KING, JOHN A",04/01/12,06/30/12,"SUPERVISOR,LOGISTICS & DIST (A","17,735.76",FISCAL YEAR 2012,"","","","KING, JOHN A"
,CHIEF ADMIN OFCR OF THE HOUSE,2012Q2,PERSONNEL COMPENSATION,"","KLEMP, CAROLINE",04/01/12,06/30/12,DIRECTOR MEMBERS' SERVICES,"34,836.75",FISCAL YEAR 2012,"","","","KLEMP, CAROLINE"
,CHIEF ADMIN OFCR OF THE HOUSE,2012Q2,PERSONNEL COMPENSATION,"","KLUSSENDORF, KATHLEEN M",04/01/12,06/30/12,SPECIAL ASSISTANT,"27,280.50",FISCAL YEAR 2012,"","","","KLUSSENDORF, KATHLEEN M"
,CHIEF ADMIN OFCR OF THE HOUSE,2012Q2,PERSONNEL COMPENSATION,"","KNELL, KATHERINE A",04/01/12,06/30/12,HRIS APPLICATIONS MANAGER,"37,384.26",FISCAL YEAR 2012,"","","","KNELL, KATHERINE A"
,CHIEF ADMIN OFCR OF THE HOUSE,2012Q2,PERSONNEL COMPENSATION,"","KNOERL, THOMAS K",04/01/12,06/30/12,NETWORK COMMUNICATIONS SPEC,"25,939.74",FISCAL YEAR 2012,"","","","KNOERL, THOMAS K"
,CHIEF ADMIN OFCR OF THE HOUSE,2012Q2,PERSONNEL COMPENSATION,"","KORNACKI, OLGA R",04/01/12,06/30/12,DIRECTOR,"32,251.91",FISCAL YEAR 2012,"","","","KORNACKI, OLGA R"
,CHIEF ADMIN OFCR OF THE HOUSE,2012Q2,PERSONNEL COMPENSATION,"","KOSH, EMORY A",04/01/12,06/30/12,PAYROLL & BENEFITS GENERALIST,"15,789.00",FISCAL YEAR 2012,"","","","KOSH, EMORY A"
,CHIEF ADMIN OFCR OF THE HOUSE,2012Q2,PERSONNEL COMPENSATION,"","KOZTOSKI, DOUGLAS W",04/01/12,06/30/12,BROADCAST PRODUCTION TECHNICIA,"18,980.25",FISCAL YEAR 2012,"","","","KOZTOSKI, DOUGLAS W"
,CHIEF ADMIN OFCR OF THE HOUSE,2012Q2,PERSONNEL COMPENSATION,"","KOZTOSKI, DOUGLAS W",03/01/12,05/31/12,BROADCAST PRODUCTION TECHNICIA (OVERTIME),"1,366.87",FISCAL YEAR 2012,"","","","KOZTOSKI, DOUGLAS W"
,CHIEF ADMIN OFCR OF THE HOUSE,2012Q2,PERSONNEL COMPENSATION,"","KRALY,ELIZABETH A",04/01/12,06/30/12,"MANAGER, CAO HUMAN RESOURCES","25,912.74",FISCAL YEAR 2012,"","","","KRALY,ELIZABETH A"
,CHIEF ADMIN OFCR OF THE HOUSE,2012Q2,PERSONNEL COMPENSATION,"","KRAMER, STEPHEN",04/01/12,06/30/12,NETWORK COMMUNICATIONS SPEC,"25,044.51",FISCAL YEAR 2012,"","","","KRAMER, STEPHEN"
,CHIEF ADMIN OFCR OF THE HOUSE,2012Q2,PERSONNEL COMPENSATION,"","KREMKAU,REBECCA K",04/01/12,06/30/12,FINANCIAL ANALYST,"20,472.99",FISCAL YEAR 2012,"","","","KREMKAU,REBECCA K"
,CHIEF ADMIN OFCR OF THE HOUSE,2012Q2,PERSONNEL COMPENSATION,"","KUPER, KAREN",04/01/12,06/30/12,SPECIAL ASSISTANT/OPER SUPERVI,"24,595.50",FISCAL YEAR 2012,"","","","KUPER, KAREN"
,CHIEF ADMIN OFCR OF THE HOUSE,2012Q2,PERSONNEL COMPENSATION,"","LAGASSE, DANIEL",04/01/12,06/30/12,MOBILE COMM SPEC - TELEPHONY,"29,978.76",FISCAL YEAR 2012,"","","","LAGASSE, DANIEL"
,CHIEF ADMIN OFCR OF THE HOUSE,2012Q2,PERSONNEL COMPENSATION,"","LAU,DAVID E",04/01/12,06/30/12,SR SYSTEMS SECURITY ENGINEER,"29,853.99",FISCAL YEAR 2012,"","","","LAU,DAVID E"
,CHIEF ADMIN OFCR OF THE HOUSE,2012Q2,PERSONNEL COMPENSATION,"","LAWSON,DION A",04/01/12,06/30/12,PAYROLL & BENEFITS GENERALIST,"15,919.08",FISCAL YEAR 2012,"","","","LAWSON,DION A"
,CHIEF ADMIN OFCR OF THE HOUSE,2012Q2,PERSONNEL COMPENSATION,"","LEBER, DENNIS",04/01/12,06/30/12,SR NETWORK SYSTEMS ENGINEER,"27,437.01",FISCAL YEAR 2012,"","","","LEBER, DENNIS"
,CHIEF ADMIN OFCR OF THE HOUSE,2012Q2,PERSONNEL COMPENSATION,"","LEIBACH,WILLIAM",04/01/12,06/30/12,"DIRECTOR, INTERNAL CONTROLS","32,096.01",FISCAL YEAR 2012,"","","","LEIBACH,WILLIAM"
,CHIEF ADMIN OFCR OF THE HOUSE,2012Q2,PERSONNEL COMPENSATION,"","LEON-CAMPOS, CARLOS",04/01/12,06/30/12,MANAGER,"24,150.51",FISCAL YEAR 2012,"","","","LEON-CAMPOS, CARLOS"
,CHIEF ADMIN OFCR OF THE HOUSE,2012Q2,PERSONNEL COMPENSATION,"","LESANE, SONYIA",04/09/12,06/30/12,EXECUTIVE ASSISTANT,"15,985.00",FISCAL YEAR 2012,"","","","LESANE, SONYIA"
,CHIEF ADMIN OFCR OF THE HOUSE,2012Q2,PERSONNEL COMPENSATION,"","LEVENGOOD, DAVID S",04/01/12,06/30/12,TECHNICAL TRAINER,"17,937.75",FISCAL YEAR 2012,"","","","LEVENGOOD, DAVID S"
,CHIEF ADMIN OFCR OF THE HOUSE,2012Q2,PERSONNEL COMPENSATION,"","LEWIS, JOHN T",04/01/12,06/30/12,DIRECTOR FURNISHINGS,"27,437.01",FISCAL YEAR 2012,"","","","LEWIS, JOHN T"
,CHIEF ADMIN OFCR OF THE HOUSE,2012Q2,PERSONNEL COMPENSATION,"","LEWIS, ROBERT M",04/01/12,06/30/12,PHOTOGRAPHIC LAB TECHNICIAN,"17,175.99",FISCAL YEAR 2012,"","","","LEWIS, ROBERT M"
,CHIEF ADMIN OFCR OF THE HOUSE,2012Q2,PERSONNEL COMPENSATION,"","LIM,CHAU T",04/01/12,06/30/12,SENIOR ACCOUNTANT (A),"24,595.50",FISCAL YEAR 2012,"","","","LIM,CHAU T"
,CHIEF ADMIN OFCR OF THE HOUSE,2012Q2,PERSONNEL COMPENSATION,"","LINVILLE, RAY A",04/01/12,06/30/12,SENIOR SYSTEMS ENGINEER,"29,978.76",FISCAL YEAR 2012,"","","","LINVILLE, RAY A"
,CHIEF ADMIN OFCR OF THE HOUSE,2012Q2,PERSONNEL COMPENSATION,"","LITTLE, ANDREAL P",04/01/12,06/30/12,ADMINISTRATIVE SPECIALIST,"15,830.01",FISCAL YEAR 2012,"","","","LITTLE, ANDREAL P"
,CHIEF ADMIN OFCR OF THE HOUSE,2012Q2,PERSONNEL COMPENSATION,"","LITTLE, HAROLD M",04/01/12,06/30/12,SR TECH SOLUTIONS ENGINEER,"23,704.50",FISCAL YEAR 2012,"","","","LITTLE, HAROLD M"
,CHIEF ADMIN OFCR OF THE HOUSE,2012Q2,PERSONNEL COMPENSATION,"","LOGAN, KATHERINE J",04/01/12,06/30/12,DIRECTOR PAYROLL AND BENEFITS,"37,384.26",FISCAL YEAR 2012,"","","","LOGAN, KATHERINE J"
,CHIEF ADMIN OFCR OF THE HOUSE,2012Q2,PERSONNEL COMPENSATION,"","LONG, JOHN P",04/01/12,06/30/12,SR MODULAR FURNITURE SPEC,"23,444.76",FISCAL YEAR 2012,"","","","LONG, JOHN P"
,CHIEF ADMIN OFCR OF THE HOUSE,2012Q2,PERSONNEL COMPENSATION,"","LOVING, ANTHONY",04/01/12,06/30/12,APPLICATION DBA SPECIALIST,"27,437.01",FISCAL YEAR 2012,"","","","LOVING, ANTHONY"
,CHIEF ADMIN OFCR OF THE HOUSE,2012Q2,PERSONNEL COMPENSATION,"","LOZITO, PAUL F",04/01/12,06/30/12,SR CONTRACT ADMINISTRATOR,"22,861.11",FISCAL YEAR 2012,"","","","LOZITO, PAUL F"
,CHIEF ADMIN OFCR OF THE HOUSE,2012Q2,PERSONNEL COMPENSATION,"","LOZITO, PAUL F",06/01/12,06/30/12,SR CONTRACT ADMINISTRATOR (OTHER COMPENSATION),"10,915.24",FISCAL YEAR 2012,"","","","LOZITO, PAUL F"
,CHIEF ADMIN OFCR OF THE HOUSE,2012Q2,PERSONNEL COMPENSATION,"","MAAS, JENNIFER A",04/01/12,06/30/12,"MGR, USER EXPERIENCE & DESIGN","25,403.76",FISCAL YEAR 2012,"","","","MAAS, JENNIFER A"
,CHIEF ADMIN OFCR OF THE HOUSE,2012Q2,PERSONNEL COMPENSATION,"","MAGRUDER, TIMOTHY",04/01/12,06/30/12,JOURNEYMAN FURNITURE SPEC,"15,491.01",FISCAL YEAR 2012,"","","","MAGRUDER, TIMOTHY"
,CHIEF ADMIN OFCR OF THE HOUSE,2012Q2,PERSONNEL COMPENSATION,"","MAHAR,EDWARD A",04/01/12,06/30/12,INFO SYSTEMS SECURITY MGR,"32,714.49",FISCAL YEAR 2012,"","","","MAHAR,EDWARD A"
,CHIEF ADMIN OFCR OF THE HOUSE,2012Q2,PERSONNEL COMPENSATION,"","MAIDEN III, LEWIS L",04/01/12,06/30/12,LOGISTICS & DIST SPEC (A),"14,134.74",FISCAL YEAR 2012,"","","","MAIDEN III, LEWIS L"
,CHIEF ADMIN OFCR OF THE HOUSE,2012Q2,PERSONNEL COMPENSATION,"","MAKO, THOMAS E",04/01/12,06/30/12,SENIOR NETWORK TECHNICIAN,"22,998.51",FISCAL YEAR 2012,"","","","MAKO, THOMAS E"
,CHIEF ADMIN OFCR OF THE HOUSE,2012Q2,PERSONNEL COMPENSATION,"","MALASPINA,KIMBERLY J",04/01/12,06/30/12,JOURNEYMAN TEXTILE SPEC,"16,569.24",FISCAL YEAR 2012,"","","","MALASPINA,KIMBERLY J"
,CHIEF ADMIN OFCR OF THE HOUSE,2012Q2,PERSONNEL COMPENSATION,"","MALLON, MICHAEL P",04/01/12,06/30/12,RESOURCE ANALYST,"22,551.00",FISCAL YEAR 2012,"","","","MALLON, MICHAEL P"
,CHIEF ADMIN OFCR OF THE HOUSE,2012Q2,PERSONNEL COMPENSATION,"","MALLOY, DEON",04/01/12,06/30/12,SR TECHNICAL SUPPORT REP (A),"21,663.00",FISCAL YEAR 2012,"","","","MALLOY, DEON"
